{"text_format":"1","workbook":"xlsx","n_sheets":17,"sheets":["README","Instructions (Quick Reference)","Main Menu","IDEA Data","Comparison Data","Composition","Composition Summary","Risk Ratio","Risk Ratio Summary","Weighted Risk Ratio","Weighted Risk Ratio Summary","Risk Difference","Risk Difference Summary","Alternate Risk Ratio","Alternate Risk Ratio Summary","Error Review","dummy"],"not_rendered":{"charts":0,"images":2,"macros":1,"external_links":1,"defined_names":109,"comments":0,"pivot_tables":0},"unopened":[],"bounds":{"document_bytes":16777216,"sheet_cells":100000,"rows_first":2000,"rows_last":500,"rows_between":2000,"halvings":0,"cell_chars":16384,"cell_head_chars":4096},"cells_cut":0,"cells_raw":0,"read":"whole","date_system":"1900"}

{"sheet":"README","index":0,"n_rows":16,"n_cols":1,"rows_kept":16,"cut":false,"hidden":false,"merged":[[5,0,5,9],[0,6,0,8],[1,0,1,9],[2,0,2,9],[3,0,3,9],[4,0,4,9],[15,0,15,9],[6,0,6,9],[7,0,7,9],[9,0,9,9],[10,0,10,9],[11,0,11,10],[12,0,12,2]]}
[]
["SPP/APR Indicators 9 and 10 Calculator"]
["Please note this tool is currently not 508 compliant. If you need assistance with the use of this tool, please contact your IDC State Liaison or email"]
["IDEAdata@westat.com"]
["This IDC resource was created using Excel, a Microsoft Office application. This resource contains macros. Macros are a series of commands used to automate tasks and make this resource function correctly. The Microsoft Corporation recently changed the way they manage the security of downloaded files containing macros. After downloading this resource, you will need to save a copy of the resource to a folder on your computer so you can successfully open the file and enable the macros that allow the resource to function properly.\n\nPlease be aware that some macros in files from other sources can pose a security risk by introducing viruses or malicious software to your computer. \n\nDepending on your organization's network security rules, macros may need to be unblocked by modifying the properties of the file. If you need assistance opening and enabling the macros in this resource, please see the following guidance from Microsoft: "]
["https://learn.microsoft.com/en-us/deployoffice/security/internet-macros-blocked"]
["https://support.microsoft.com/en-us/topic/a-potentially-dangerous-macro-has-been-blocked-0952faa0-37e7-4316-b61d-5b5ed6024216"]
["If you would like assistance using this tool, please contact your IDC State Liaison or email "]
["IDEAdata@westat.com"]
["The IDEA Data Center (IDC) created this publication under U.S. Department of Education, Office of Special Education Programs grant number H373Y240002. Amy Bae and Alexis Lessans serve as the project officers."]
["The views expressed herein do not necessarily represent the positions or policies of the U.S. Department of Education. No official endorsement by the U.S. Department of Education of any product, commodity, service, or enterprise mentioned in this publication is intended or should be inferred. This product is in the public domain. Authorization to reproduce it in whole or in part is granted. \n\n"]
["Westat is the lead organization for IDC. For more information about the center’s work and its partners, see"]
["ideadata.org"]
["Version Date: July 2025"]
["Suggested Citation:"]
["Ferrier, A., Bitterman, A., and Kapombe, M. (2025, July). SPP/APR Indicators 9 and 10 Calculator.  IDEA Data Center. Rockville, MD: Westat."]

{"sheet":"Instructions (Quick Reference)","index":1,"n_rows":17,"n_cols":3,"rows_kept":17,"cut":false,"hidden":false,"merged":[[6,2,6,9],[0,6,0,8],[1,0,1,9],[2,0,2,9],[4,2,4,9],[5,0,5,9],[13,2,13,9],[14,2,14,9],[15,2,15,9],[17,1,17,9],[7,2,7,9],[8,2,8,9],[9,2,9,9],[10,2,10,9],[11,2,11,9],[12,2,12,9]]}
[]
["SPP/APR Indicators 9 and 10 Calculator\nQuick Reference Sheet"]
["States can use this Excel tool to calculate disproportionate representation for State Performance Plan/Annual Performance Report (SPP/APR) Indicators 9 and 10. The application calculates several measures, including difference in composition, relative difference in composition, risk ratio, weighted risk ratio, risk difference, and alternate risk ratio. IDC’s technical assistance document, Methods for Assessing Racial/Ethnic Disproportionality in Special Education: A Technical Assistance Guide (Revised), provides more information about these measures, including step-by-step instructions on how to calculate them, discussions on how to interpret each, and considerations. Users should have basic Excel knowledge and familiarity with analyzing special education data to use this calculator."]
["Please read the following instructions before using this tool:"]
[null,"1.","Setup\nTo begin using this calculator, you will need to enable macros. Then, navigate to the Main Menu sheet and complete\nthe fields as follows:"]
["Step 1: Provide general information regarding your data. Select the number of years of data included in the analysis (1-3 years) and indicate if you have included state totals within your formatted data sheet. \nStep 2: Enter criteria for calculations (i.e., risk ratio/composition threshold, minimum cell size, and minimum n-size)."]
[null,"2.","Data Entry\nOnce you have specified all criteria in the General Information section of the Main Menu sheet, enter or copy and paste your IDEA Child Count data on the IDEA  Data sheet. Enter or copy and paste corresponding enrollment data on the Comparison Data sheet. Ensure consistency in LEA IDs across sheets. If rows become misaligned, the affected data rows will be highlighted in red on the Error Review sheet.\n\n"]
[null,"3.","Running Calculations\nReturn to the Main Menu sheet. Under Actions, select your calculation method and tap the button (i.e., Calculate Composition, Calculate Risk Ratio, Calculate Risk Difference, Calculate Alternate Risk Ratio, Calculate Weighted Risk Ratio) to run calculations on your data using that method. Once the calculator has finished processing, the detailed results and summary sheets for that method will appear. To analyze your data using a different method, return to the Main Menu sheet and select the Calculate button for a different method. The sheets displaying the results from your previous calculation method will remain visible."]
[null,"4.","Reviewing Results\nAfter the calculator has completed processing, the application will automatically direct you to the summary sheet that corresponds to your selected calculation method. For instance, if you select the risk ratio method, the Risk Ratio Summary sheet will appear. On the summary, results, and Error Review sheets, the state-level counts are automatically totaled and results are displayed below the LEA-level results.\n\nTan highlighted cells marked with an \"X\" on the summary sheets indicate LEAs and racial/ethnic groups that met or exceeded the threshold for the number of years selected on the Main Menu. For detailed calculations, refer to the appropriate results sheets (i.e., Composition, Risk Ratio, Weighted Risk Ratio, Risk Difference, Alternate Risk Ratio). In each results sheet, users can use the toggle in cell A2 (at the far left) to hide either the risk and comparison values (showing only the risk ratios, weighted risk ratios, risk difference, or alternate risk ratios) or the composition and comparison values (showing only the difference and relative difference in composition).\n\nOnce you have reviewed the summary and results sheets, review the Error Review sheet to identify any data issues and review total data counts. The Error Review sheet flags problems such as missing data, invalid data, or misaligned LEA IDs between the IDEA Data and Comparison Data sheets.\n\n"]
[null,"5.","Shading Indicators \nTan shading: Highlights cells on the summary and results sheets where disproportionate representation has been identified (i.e., values met or exceeded the threshold indicated on the Main Menu).\nAqua shading: Highlights cells on the results sheets where alternate risk ratio calculations were automatically applied due to the comparison group not meeting the required minimum size.\n\nOn the Error Review sheet\nRed shading: Identifies missing data or misaligned LEA IDs. \nGreen shading: Shows discrepancies between provided state totals and calculated totals.\nYellow shading: Highlights IDEA Child Count data values that are larger than the corresponding comparison data values for the same category. This may indicate potential data inaccuracies or cell misalignment.\n"]
[null,"6.","Data Formatting Requirements\n- Data must be numeric and formatted by district and race/ethnicity.\n- Unique LEA/school identifiers are mandatory and must align across sheets.\n\nState totals\n- Include state totals as the last row if applicable.\n- Indicate on the Main Menu sheet whether state totals are included."]
[null,"7.","Racial/Ethnic Group Codes\nThe racial/ethnic group codes, based on federal permitted value abbreviations for race/ethnicity, are defined below."]
[null,null,"HI7:        Hispanic/Latino\nAM7:      American Indian or Alaska Native\nAS7:       Asian\nBL7:       Black or African American\nPI7:        Native Hawaiian or Other Pacific Islander\nWH7:    White\nMU7:     Two or more races"]
[null,"8.","Clearing Data\nNavigate to the Main Menu sheet and select the appropriate clear option. Each option is defined below.\n\nClear Main Menu: Clears all the data labels and resets the Main Menu sheet options. \nClear IDEA Data: Deletes the data on the IDEA Data sheet.\nClear Comparison Data: Deletes the data on the Comparison Data sheet.\nClear Error Review & Results: Deletes the results from the Composition, Risk, and Error Review sheets.\nClear All Data, Error Review, & Results: Deletes the data and results from all input and results sheets (i.e., IDEA Data, Comparison Data, Composition, Risk, Error Review, etc.)."]
[null,"9.","Error Messages\nWhen attempting to run the calculator, you may run into one of the error messages below.\n\n\"Please Select…\"\nOn the Main Menu, you must select the number of years of data to calculate. This is a required field. If left unanswered, the following message will appear when you select one of the Calculate buttons under Actions: \"Please select number of years of data.\"\n\n\"One of your Data Sheets is Empty\"\nThis message appears if data are missing in either the IDEA Data or Comparison Data sheets. To resolve this error, follow these steps:\n1. Check the IDEA Data and Comparison Data sheets for missing information.\n2. Enter or copy and paste the required data onto the appropriate sheet.\n3. Return to the Main Menu and select the Calculate button again.\n\nRun-time Error '13': Type Mismatch\n- This error indicates that one or more data cells contain text values instead of numeric values.\n- Examples of invalid text include symbols (*, #, %, etc.).\n- Ensure all cells other than the LEA IDs in the IDEA Data and Comparison Data sheets contain only numeric values before re-running the calculator.\n\n\n\n"]
[null,"10.","Additional Support \nRefer to IDC’s technical assistance guide, Methods for Assessing Racial/Ethnic Disproportionality in Special Education: A Technical Assistance Guide (Revised), for detailed explanations of methodologies and calculations. If you would like assistance using this tool, please contact your IDC State Liaison or email "]
[null,null,"IDEAdata@westat.com"]

{"sheet":"Main Menu","index":2,"n_rows":203,"n_cols":26,"rows_kept":203,"cut":false,"hidden":false,"merged":[[1,0,1,4]]}
[null,null,null,null,null,null,null,null,null,null,null,null,null,null,null,null,null,null,null,null,null,null,null,null,null,2]
["Main Menu",null,null,null,null,null,null,null,null,null,null,null,null,null,null,null,null,null,null,null,null,null,null,null,null,1]
[]
["General Information"]
[]
[]
["Select the number of years of data "]
[" (minimum of 1 year, maximum of 3 years):"]
[{"$f":"IF(OR(TRIM(input_number_year)=\"One Year\",TRIM(input_number_year)=\"Two Years\",TRIM(input_number_year)=\"Three Years\"),\"Year 1  -  select school year from list:\",\"\")","v":""}]
[{"$f":"IF(OR(TRIM(input_number_year)=\"Two Years\",TRIM(input_number_year)=\"Three Years\"),\"Year 2  -  select school year from list:\",\"\")","v":""}]
[{"$f":"IF(TRIM(input_number_year)=\"Three Years\",\"Year 3  -  select school year from list:\",\"\")","v":""}]
[]
["  Are state totals included?","No - last row is not state total"]
[]
[]
["  Risk ratio/composition threshold",0]
["  Min cell size (risk numerator)"]
["  Min n-size (risk denominator)"]
[]
["Actions"]
[]
[]
[]
[]
[]
[]
[]
[]
[]
[]
[]
[]
[]
[]
[]
[]
[]
[]
[]
[]
[]
[]
[]
[]
[]
[]
[]
[]
[]
[]
[]
[]
[]
[]
[]
[]
[]
[]
[]
[]
[]
[]
[]
[]
[]
[]
[]
[]
[]
[]
[]
[]
[]
[]
[]
[]
[]
[]
[]
[]
[]
[]
["Parameters:"]
[]
["Clear Menu Option",1]
[]
[]
["Input Type","Child Count"]
[null,"Environment"]
[null,"Discipline"]
[null,"Other"]
[]
[]
["Disability","All Disabilities"]
[null,"Autism"]
[null,"Deaf-Blindness"]
[null,"Developmental Delay"]
[null,"Emotional Disturbance"]
[null,"Hearing Impairments"]
[null,"Intellectual Disabilities"]
[null,"Multiple Disabilities"]
[null,"Orthopedic Impairments"]
[null,"Other Health Impairments"]
[null,"Specific Learning Disabilities"]
[null,"Speech or Language Impairments"]
[null,"Traumatic Brain Injury"]
[null,"Visual Impairments"]
[null,"Other"]
[]
["Environments","Total"]
[null,"Inside regular class 80 percent or more of the day"]
[null,"Inside regular class no more than 79% of day and no less than 40% percent of the day"]
[null,"Inside regular class less than 40 percent of the day "]
[null,"Separate school"]
[null,"Residential facility"]
[null,"Homebound/hospital"]
[null,"Correctional facility"]
[null,"Parentally placed in private schools"]
[null,"Other"]
[]
["Discipline","Out-of-school suspensions/expulsions totaling 10 days or less"]
[null,"Out-of-school suspensions/expulsions totaling > 10 days"]
[null,"In-school suspensions totaling 10 days or less"]
[null,"In-school suspensions totaling > 10 days"]
[null,"Total disciplinary removals"]
[null,"Other"]
[]
["Total Disciplinary Removals","Total-Removals"]
[null,"Other"]
[]
["Race/Ethnicity","5 Categories"]
[null,"7 Categories"]
[null,"Other"]
[]
["Population Type","Enrollment"]
[null,"Total Child Count"]
[null,"Other"]
[]
[]
["Totals","Yes - last row is state total"]
[null,"No - last row is not state total"]
[null,"Yes - last rows are state totals"]
[null,"No - last rows are not state totals"]
[]
["Decimals",0]
[null,1]
[null,2]
[null,3]
[null,4]
[]
[]
["Flags:"]
["All Disabilities Run?","No"]
["All Disabilities - Age",""]
["All Disabilities - Year"]
["All Disabilities - Pop Type","Enrollment"]
["Include Total?","N"]
["Run?","Y"]
["Unique Discipline Types","OSS>10"]
[null,"1"]
[null,"2"]
[null,"c"]
[null,"c"]
[null,"e"]
[null,"d"]
[null,"zz"]
["Previous Run","Child Count"]
[]
[]
["Select School Year"]
["2015-16"]
["2016-17"]
["2017-18"]
["2018-19"]
["2019-20"]
["2020-21"]
["2021-22"]
["2022-23"]
["2023-24"]
["2024-25"]
["2025-26"]
["2026-27"]
["2027-28"]
["2028-29"]
["2029-30"]
["2030-31"]
["2031-32"]
["2032-33"]
["2033-34"]
["2034-35"]
["2035-36"]
["2036-37"]
["2037-38"]
["2038-39"]
["2039-40"]
[]
[]
["One Year"]
["Two Years"]
["Three Years"]
[]
["Yes"]
["No"]

{"sheet":"IDEA Data","index":3,"n_rows":3,"n_cols":50,"rows_kept":3,"cut":false,"hidden":false,"merged":[[0,0,2,0],[0,1,0,7],[1,1,1,7],[0,43,0,49],[1,43,1,49],[0,8,0,14],[0,15,0,21],[1,8,1,14],[1,15,1,21],[0,22,0,28],[1,22,1,28],[0,29,0,35],[1,29,1,35],[0,36,0,42],[1,36,1,42]]}
["LEA/school",{"$f":"IF(TRIM(input_year)<>\"\",input_year&\": \",\"\")&\"IDEA Data Group - All children with disabilities \n(ages 5 [in K] through 21)\"","v":"IDEA Data Group - All children with disabilities \n(ages 5 [in K] through 21)"},null,null,null,null,null,null,{"$f":"IF(TRIM(input_year)<>\"\",input_year&\": \",\"\")&\"IDEA Data Group - Autism \n(ages 5 [in K] through 21)\"","v":"IDEA Data Group - Autism \n(ages 5 [in K] through 21)"},null,null,null,null,null,null,{"$f":"IF(TRIM(input_year)<>\"\",input_year&\": \",\"\")&\"IDEA Data Group - Emotional disturbance \n(ages 5 [in K] through 21)\"","v":"IDEA Data Group - Emotional disturbance \n(ages 5 [in K] through 21)"},null,null,null,null,null,null,{"$f":"IF(TRIM(input_year)<>\"\",input_year&\": \",\"\")&\"IDEA Data Group - Intellectual disability \n(ages 5 [in K] through 21)\"","v":"IDEA Data Group - Intellectual disability \n(ages 5 [in K] through 21)"},null,null,null,null,null,null,{"$f":"IF(TRIM(input_year)<>\"\",input_year&\": \",\"\")&\"IDEA Data Group - Other health impairment \n(ages 5 [in K] through 21)\"","v":"IDEA Data Group - Other health impairment \n(ages 5 [in K] through 21)"},null,null,null,null,null,null,{"$f":"IF(TRIM(input_year)<>\"\",input_year&\": \",\"\")&\"IDEA Data Group - Specific learning disability \n(ages 5 [in K] through 21)\"","v":"IDEA Data Group - Specific learning disability \n(ages 5 [in K] through 21)"},null,null,null,null,null,null,{"$f":"IF(TRIM(input_year)<>\"\",input_year&\": \",\"\")&\"IDEA Data Group - Speech or language impairment \n(ages 5 [in K] through 21)\"","v":"IDEA Data Group - Speech or language impairment \n(ages 5 [in K] through 21)"}]
[null,"Race/ethnicity",null,null,null,null,null,null,"Race/ethnicity",null,null,null,null,null,null,"Race/ethnicity",null,null,null,null,null,null,"Race/ethnicity",null,null,null,null,null,null,"Race/ethnicity",null,null,null,null,null,null,"Race/ethnicity",null,null,null,null,null,null,"Race/ethnicity"]
["LEA/School","HI7","AM7","AS7","BL7","PI7","WH7","MU7","HI7","AM7","AS7","BL7","PI7","WH7","MU7","HI7","AM7","AS7","BL7","PI7","WH7","MU7","HI7","AM7","AS7","BL7","PI7","WH7","MU7","HI7","AM7","AS7","BL7","PI7","WH7","MU7","HI7","AM7","AS7","BL7","PI7","WH7","MU7","HI7","AM7","AS7","BL7","PI7","WH7","MU7"]

{"sheet":"Comparison Data","index":4,"n_rows":3,"n_cols":8,"rows_kept":3,"cut":false,"hidden":false,"merged":[[0,1,0,7],[1,1,1,7],[0,0,2,0]]}
["LEA/school",{"$f":"IF(TRIM(input_year)<>\"\",input_year&\": \",\"\")&\"Comparison Data - Total student enrollment \n(ages 5 [in K] through 21)\"","v":"Comparison Data - Total student enrollment \n(ages 5 [in K] through 21)"}]
[null,"Race/ethnicity"]
["LEA/School","HI7","AM7","AS7","BL7","PI7","WH7","MU7"]

{"sheet":"Composition","index":5,"n_rows":7,"n_cols":463,"rows_kept":7,"cut":false,"hidden":true,"merged":[[5,148,5,154],[4,134,4,140],[4,141,4,147],[4,148,4,154],[5,1,5,7],[5,8,5,14],[5,15,5,21],[5,22,5,28],[5,29,5,35],[5,36,5,42],[5,43,5,49],[5,50,5,56],[5,57,5,63],[5,64,5,70],[5,71,5,77],[5,78,5,84],[5,85,5,91],[5,92,5,98],[5,99,5,105],[5,106,5,112],[5,113,5,119],[5,141,5,147],[5,120,5,126],[5,127,5,133],[4,1,4,7],[4,8,4,14],[4,15,4,21],[4,22,4,28],[4,29,4,35],[4,36,4,42],[4,43,4,49],[4,50,4,56],[4,57,4,63],[5,134,5,140],[4,127,4,133],[3,57,3,63],[3,64,3,70],[3,71,3,77],[3,78,3,84],[3,85,3,91],[3,92,3,98],[3,99,3,105],[3,106,3,112],[3,113,3,119],[4,106,4,112],[4,113,4,119],[4,64,4,70],[4,71,4,77],[4,78,4,84],[4,85,4,91],[4,92,4,98],[4,99,4,105],[3,120,3,126],[3,127,3,133],[3,134,3,140],[4,120,4,126],[3,155,3,161],[3,162,3,168],[3,169,3,175],[3,176,3,182],[3,183,3,189],[0,3,0,7],[3,1,3,7],[3,8,3,14],[3,15,3,21],[3,22,3,28],[3,29,3,35],[3,36,3,42],[3,43,3,49],[3,50,3,56],[3,148,3,154],[3,141,3,147],[3,225,3,231],[3,232,3,238],[3,239,3,245],[3,246,3,252],[3,253,3,259],[3,190,3,196],[3,197,3,203],[3,204,3,210],[3,211,3,217],[3,218,3,224],[4,218,4,224],[4,225,4,231],[4,232,4,238],[3,400,3,406],[3,407,3,413],[3,414,3,420],[3,421,3,427],[3,428,3,434],[3,365,3,371],[3,372,3,378],[3,379,3,385],[3,386,3,392],[3,393,3,399],[3,330,3,336],[3,337,3,343],[3,344,3,350],[3,351,3,357],[3,358,3,364],[3,295,3,301],[3,302,3,308],[3,309,3,315],[3,316,3,322],[3,323,3,329],[3,260,3,266],[4,155,4,161],[4,162,4,168],[4,169,4,175],[4,176,4,182],[4,183,4,189],[4,190,4,196],[4,197,4,203],[4,204,4,210],[4,211,4,217],[4,239,4,245],[4,246,4,252],[4,253,4,259],[4,260,4,266],[4,267,4,273],[3,435,3,441],[3,442,3,448],[3,449,3,455],[3,456,3,462],[3,267,3,273],[3,274,3,280],[3,281,3,287],[3,288,3,294],[5,218,5,224],[5,225,5,231],[5,232,5,238],[5,239,5,245],[5,246,5,252],[4,414,4,420],[4,421,4,427],[4,428,4,434],[4,435,4,441],[4,379,4,385],[4,386,4,392],[4,393,4,399],[4,400,4,406],[4,407,4,413],[4,344,4,350],[4,351,4,357],[4,358,4,364],[4,365,4,371],[4,372,4,378],[4,309,4,315],[4,316,4,322],[4,323,4,329],[4,330,4,336],[4,337,4,343],[5,155,5,161],[5,162,5,168],[5,169,5,175],[5,176,5,182],[5,183,5,189],[5,190,5,196],[5,197,5,203],[5,204,5,210],[5,211,5,217],[5,309,5,315],[5,316,5,322],[5,253,5,259],[5,260,5,266],[5,267,5,273],[5,274,5,280],[5,281,5,287],[4,449,4,455],[4,456,4,462],[4,442,4,448],[4,274,4,280],[4,281,4,287],[4,288,4,294],[4,295,4,301],[4,302,4,308],[3,0,6,0],[5,428,5,434],[5,435,5,441],[5,442,5,448],[5,449,5,455],[5,456,5,462],[5,393,5,399],[5,400,5,406],[5,407,5,413],[5,414,5,420],[5,421,5,427],[5,358,5,364],[5,365,5,371],[5,372,5,378],[5,379,5,385],[5,386,5,392],[5,323,5,329],[5,330,5,336],[5,337,5,343],[5,344,5,350],[5,351,5,357],[5,288,5,294],[5,295,5,301],[5,302,5,308]]}
["Hide composition columns?",null,null,"RACE/ETHNICITY CODE DEFINITIONS\na\nHI7 = Hispanic/Latino\nAM7 = American Indian or Alaska Native\nAS7 = Asian\nBL7 = Black or African American\nPI7 = Native Hawaiian or Other Pactific Islander\nWH7 = White\nMU7 = Two or more races",null,null,null,null,null,null,null,null,null,null,null,null,null,null,null,null,null,null,null,null,null,null,null,null,null,null,null,null,null,null,null,null,null,null,null,null,null,null,null,null,null,null,null,null,null,null,null,null,null,null,null,null,null,null,null," "," "," "," "," "]
["No"]
[]
["LEA/school",{"$f":"IF(TRIM(input_year)<>\"\",input_year&\": \",\"\")&\"Composition\"","v":"Composition"},null,null,null,null,null,null,{"$f":"IF(TRIM(input_year)<>\"\",input_year&\": \",\"\")&\"Composition\"","v":"Composition"},null,null,null,null,null,null,{"$f":"IF(TRIM(input_year)<>\"\",input_year&\": \",\"\")&\"Composition\"","v":"Composition"},null,null,null,null,null,null,{"$f":"IF(TRIM(input_year)<>\"\",input_year&\": \",\"\")&\"Composition\"","v":"Composition"},null,null,null,null,null,null,{"$f":"IF(TRIM(input_year)<>\"\",input_year&\": \",\"\")&\"Composition\"","v":"Composition"},null,null,null,null,null,null,{"$f":"IF(TRIM(input_year)<>\"\",input_year&\": \",\"\")&\"Composition\"","v":"Composition"},null,null,null,null,null,null,{"$f":"IF(TRIM(input_year)<>\"\",input_year&\": \",\"\")&\"Composition\"","v":"Composition"},null,null,null,null,null,null,{"$f":"IF(TRIM(input_year)<>\"\",input_year&\": \",\"\")&\"Comparison composition\"","v":"Comparison composition"},null,null,null,null,null,null,{"$f":"IF(TRIM(input_year)<>\"\",input_year&\": \",\"\")&\"Difference in composition\"","v":"Difference in composition"},null,null,null,null,null,null,{"$f":"IF(TRIM(input_year)<>\"\",input_year&\": \",\"\")&\"Difference in composition\"","v":"Difference in composition"},null,null,null,null,null,null,{"$f":"IF(TRIM(input_year)<>\"\",input_year&\": \",\"\")&\"Difference in composition\"","v":"Difference in composition"},null,null,null,null,null,null,{"$f":"IF(TRIM(input_year)<>\"\",input_year&\": \",\"\")&\"Difference in composition\"","v":"Difference in composition"},null,null,null,null,null,null,{"$f":"IF(TRIM(input_year)<>\"\",input_year&\": \",\"\")&\"Difference in composition\"","v":"Difference in composition"},null,null,null,null,null,null,{"$f":"IF(TRIM(input_year)<>\"\",input_year&\": \",\"\")&\"Difference in composition\"","v":"Difference in composition"},null,null,null,null,null,null,{"$f":"IF(TRIM(input_year)<>\"\",input_year&\": \",\"\")&\"Difference in composition\"","v":"Difference in composition"},null,null,null,null,null,null,{"$f":"IF(TRIM(input_year)<>\"\",input_year&\": \",\"\")&\"Relative difference in composition\"","v":"Relative difference in composition"},null,null,null,null,null,null,{"$f":"IF(TRIM(input_year)<>\"\",input_year&\": \",\"\")&\"Relative difference in composition\"","v":"Relative difference in composition"},null,null,null,null,null,null,{"$f":"IF(TRIM(input_year)<>\"\",input_year&\": \",\"\")&\"Relative difference in composition\"","v":"Relative difference in composition"},null,null,null,null,null,null,{"$f":"IF(TRIM(input_year)<>\"\",input_year&\": \",\"\")&\"Relative difference in composition\"","v":"Relative difference in composition"},null,null,null,null,null,null,{"$f":"IF(TRIM(input_year)<>\"\",input_year&\": \",\"\")&\"Relative difference in composition\"","v":"Relative difference in composition"},null,null,null,null,null,null,{"$f":"IF(TRIM(input_year)<>\"\",input_year&\": \",\"\")&\"Relative difference in composition\"","v":"Relative difference in composition"},null,null,null,null,null,null,{"$f":"IF(TRIM(input_year)<>\"\",input_year&\": \",\"\")&\"Relative difference in composition\"","v":"Relative difference in composition"},null,null,null,null,null,null,{"$f":"IF(TRIM(input_year2)<>\"\",input_year2&\": \",\"\")&\"Composition\"","v":"Composition"},null,null,null,null,null,null,{"$f":"IF(TRIM(input_year2)<>\"\",input_year2&\": \",\"\")&\"Composition\"","v":"Composition"},null,null,null,null,null,null,{"$f":"IF(TRIM(input_year2)<>\"\",input_year2&\": \",\"\")&\"Composition\"","v":"Composition"},null,null,null,null,null,null,{"$f":"IF(TRIM(input_year2)<>\"\",input_year2&\": \",\"\")&\"Composition\"","v":"Composition"},null,null,null,null,null,null,{"$f":"IF(TRIM(input_year2)<>\"\",input_year2&\": \",\"\")&\"Composition\"","v":"Composition"},null,null,null,null,null,null,{"$f":"IF(TRIM(input_year2)<>\"\",input_year2&\": \",\"\")&\"Composition\"","v":"Composition"},null,null,null,null,null,null,{"$f":"IF(TRIM(input_year2)<>\"\",input_year2&\": \",\"\")&\"Composition\"","v":"Composition"},null,null,null,null,null,null,{"$f":"IF(TRIM(input_year2)<>\"\",input_year2&\": \",\"\")&\"Comparison composition\"","v":"Comparison composition"},null,null,null,null,null,null,{"$f":"IF(TRIM(input_year2)<>\"\",input_year2&\": \",\"\")&\"Difference in composition\"","v":"Difference in composition"},null,null,null,null,null,null,{"$f":"IF(TRIM(input_year2)<>\"\",input_year2&\": \",\"\")&\"Difference in composition\"","v":"Difference in composition"},null,null,null,null,null,null,{"$f":"IF(TRIM(input_year2)<>\"\",input_year2&\": \",\"\")&\"Difference in composition\"","v":"Difference in composition"},null,null,null,null,null,null,{"$f":"IF(TRIM(input_year2)<>\"\",input_year2&\": \",\"\")&\"Difference in composition\"","v":"Difference in composition"},null,null,null,null,null,null,{"$f":"IF(TRIM(input_year2)<>\"\",input_year2&\": \",\"\")&\"Difference in composition\"","v":"Difference in composition"},null,null,null,null,null,null,{"$f":"IF(TRIM(input_year2)<>\"\",input_year2&\": \",\"\")&\"Difference in composition\"","v":"Difference in composition"},null,null,null,null,null,null,{"$f":"IF(TRIM(input_year2)<>\"\",input_year2&\": \",\"\")&\"Difference in composition\"","v":"Difference in composition"},null,null,null,null,null,null,{"$f":"IF(TRIM(input_year2)<>\"\",input_year2&\": \",\"\")&\"Relative difference in composition\"","v":"Relative difference in composition"},null,null,null,null,null,null,{"$f":"IF(TRIM(input_year2)<>\"\",input_year2&\": \",\"\")&\"Relative difference in composition\"","v":"Relative difference in composition"},null,null,null,null,null,null,{"$f":"IF(TRIM(input_year2)<>\"\",input_year2&\": \",\"\")&\"Relative difference in composition\"","v":"Relative difference in composition"},null,null,null,null,null,null,{"$f":"IF(TRIM(input_year2)<>\"\",input_year2&\": \",\"\")&\"Relative difference in composition\"","v":"Relative difference in composition"},null,null,null,null,null,null,{"$f":"IF(TRIM(input_year2)<>\"\",input_year2&\": \",\"\")&\"Relative difference in composition\"","v":"Relative difference in composition"},null,null,null,null,null,null,{"$f":"IF(TRIM(input_year2)<>\"\",input_year2&\": \",\"\")&\"Relative difference in composition\"","v":"Relative difference in composition"},null,null,null,null,null,null,{"$f":"IF(TRIM(input_year2)<>\"\",input_year2&\": \",\"\")&\"Relative difference in composition\"","v":"Relative difference in composition"},null,null,null,null,null,null,{"$f":"IF(TRIM(input_year3)<>\"\",input_year3&\": \",\"\")&\"Composition\"","v":"Composition"},null,null,null,null,null,null,{"$f":"IF(TRIM(input_year3)<>\"\",input_year3&\": \",\"\")&\"Composition\"","v":"Composition"},null,null,null,null,null,null,{"$f":"IF(TRIM(input_year3)<>\"\",input_year3&\": \",\"\")&\"Composition\"","v":"Composition"},null,null,null,null,null,null,{"$f":"IF(TRIM(input_year3)<>\"\",input_year3&\": \",\"\")&\"Composition\"","v":"Composition"},null,null,null,null,null,null,{"$f":"IF(TRIM(input_year3)<>\"\",input_year3&\": \",\"\")&\"Composition\"","v":"Composition"},null,null,null,null,null,null,{"$f":"IF(TRIM(input_year3)<>\"\",input_year3&\": \",\"\")&\"Composition\"","v":"Composition"},null,null,null,null,null,null,{"$f":"IF(TRIM(input_year3)<>\"\",input_year3&\": \",\"\")&\"Composition\"","v":"Composition"},null,null,null,null,null,null,{"$f":"IF(TRIM(input_year3)<>\"\",input_year3&\": \",\"\")&\"Comparison composition\"","v":"Comparison composition"},null,null,null,null,null,null,{"$f":"IF(TRIM(input_year3)<>\"\",input_year3&\": \",\"\")&\"Difference in composition\"","v":"Difference in composition"},null,null,null,null,null,null,{"$f":"IF(TRIM(input_year3)<>\"\",input_year3&\": \",\"\")&\"Difference in composition\"","v":"Difference in composition"},null,null,null,null,null,null,{"$f":"IF(TRIM(input_year3)<>\"\",input_year3&\": \",\"\")&\"Difference in composition\"","v":"Difference in composition"},null,null,null,null,null,null,{"$f":"IF(TRIM(input_year3)<>\"\",input_year3&\": \",\"\")&\"Difference in composition\"","v":"Difference in composition"},null,null,null,null,null,null,{"$f":"IF(TRIM(input_year3)<>\"\",input_year3&\": \",\"\")&\"Difference in composition\"","v":"Difference in composition"},null,null,null,null,null,null,{"$f":"IF(TRIM(input_year3)<>\"\",input_year3&\": \",\"\")&\"Difference in composition\"","v":"Difference in composition"},null,null,null,null,null,null,{"$f":"IF(TRIM(input_year3)<>\"\",input_year3&\": \",\"\")&\"Difference in composition\"","v":"Difference in composition"},null,null,null,null,null,null,{"$f":"IF(TRIM(input_year3)<>\"\",input_year3&\": \",\"\")&\"Relative difference in composition\"","v":"Relative difference in composition"},null,null,null,null,null,null,{"$f":"IF(TRIM(input_year3)<>\"\",input_year3&\": \",\"\")&\"Relative difference in composition\"","v":"Relative difference in composition"},null,null,null,null,null,null,{"$f":"IF(TRIM(input_year3)<>\"\",input_year3&\": \",\"\")&\"Relative difference in composition\"","v":"Relative difference in composition"},null,null,null,null,null,null,{"$f":"IF(TRIM(input_year3)<>\"\",input_year3&\": \",\"\")&\"Relative difference in composition\"","v":"Relative difference in composition"},null,null,null,null,null,null,{"$f":"IF(TRIM(input_year3)<>\"\",input_year3&\": \",\"\")&\"Relative difference in composition\"","v":"Relative difference in composition"},null,null,null,null,null,null,{"$f":"IF(TRIM(input_year3)<>\"\",input_year3&\": \",\"\")&\"Relative difference in composition\"","v":"Relative difference in composition"},null,null,null,null,null,null,{"$f":"IF(TRIM(input_year3)<>\"\",input_year3&\": \",\"\")&\"Relative difference in composition\"","v":"Relative difference in composition"}]
[null,"All children with disabilities (ages 5 [in K] through 21)",null,null,null,null,null,null,"Autism (ages 5 [in K] through 21)",null,null,null,null,null,null,"Emotional disturbance (ages 5 [in K] through 21)",null,null,null,null,null,null,"Intellectual disability (ages 5 [in K] through 21)",null,null,null,null,null,null,"Other health impairment (ages 5 [in K] through 21)",null,null,null,null,null,null,"Specific learning disability (ages 5 [in K] through 21)",null,null,null,null,null,null,"Speech or language impairment (ages 5 [in K] through 21)",null,null,null,null,null,null,"Total student enrollment (ages 5 [in K] through 21)",null,null,null,null,null,null,"All children with disabilities (ages 5 [in K] through 21)",null,null,null,null,null,null,"Autism (ages 5 [in K] through 21)",null,null,null,null,null,null,"Emotional disturbance (ages 5 [in K] through 21)",null,null,null,null,null,null,"Intellectual disability (ages 5 [in K] through 21)",null,null,null,null,null,null,"Other health impairment (ages 5 [in K] through 21)",null,null,null,null,null,null,"Specific learning disability (ages 5 [in K] through 21)",null,null,null,null,null,null,"Speech or language impairment (ages 5 [in K] through 21)",null,null,null,null,null,null,"All children with disabilities (ages 5 [in K] through 21)",null,null,null,null,null,null,"Autism (ages 5 [in K] through 21)",null,null,null,null,null,null,"Emotional disturbance (ages 5 [in K] through 21)",null,null,null,null,null,null,"Intellectual disability (ages 5 [in K] through 21)",null,null,null,null,null,null,"Other health impairment (ages 5 [in K] through 21)",null,null,null,null,null,null,"Specific learning disability (ages 5 [in K] through 21)",null,null,null,null,null,null,"Speech or language impairment (ages 5 [in K] through 21)",null,null,null,null,null,null,"All children with disabilities (ages 5 [in K] through 21)",null,null,null,null,null,null,"Autism (ages 5 [in K] through 21)",null,null,null,null,null,null,"Emotional disturbance (ages 5 [in K] through 21)",null,null,null,null,null,null,"Intellectual disability (ages 5 [in K] through 21)",null,null,null,null,null,null,"Other health impairment (ages 5 [in K] through 21)",null,null,null,null,null,null,"Specific learning disability (ages 5 [in K] through 21)",null,null,null,null,null,null,"Speech or language impairment (ages 5 [in K] through 21)",null,null,null,null,null,null,"Total student enrollment (ages 5 [in K] through 21)",null,null,null,null,null,null,"All children with disabilities (ages 5 [in K] through 21)",null,null,null,null,null,null,"Autism (ages 5 [in K] through 21)",null,null,null,null,null,null,"Emotional disturbance (ages 5 [in K] through 21)",null,null,null,null,null,null,"Intellectual disability (ages 5 [in K] through 21)",null,null,null,null,null,null,"Other health impairment (ages 5 [in K] through 21)",null,null,null,null,null,null,"Specific learning disability (ages 5 [in K] through 21)",null,null,null,null,null,null,"Speech or language impairment (ages 5 [in K] through 21)",null,null,null,null,null,null,"All children with disabilities (ages 5 [in K] through 21)",null,null,null,null,null,null,"Autism (ages 5 [in K] through 21)",null,null,null,null,null,null,"Emotional disturbance (ages 5 [in K] through 21)",null,null,null,null,null,null,"Intellectual disability (ages 5 [in K] through 21)",null,null,null,null,null,null,"Other health impairment (ages 5 [in K] through 21)",null,null,null,null,null,null,"Specific learning disability (ages 5 [in K] through 21)",null,null,null,null,null,null,"Speech or language impairment (ages 5 [in K] through 21)",null,null,null,null,null,null,"All children with disabilities (ages 5 [in K] through 21)",null,null,null,null,null,null,"Autism (ages 5 [in K] through 21)",null,null,null,null,null,null,"Emotional disturbance (ages 5 [in K] through 21)",null,null,null,null,null,null,"Intellectual disability (ages 5 [in K] through 21)",null,null,null,null,null,null,"Other health impairment (ages 5 [in K] through 21)",null,null,null,null,null,null,"Specific learning disability (ages 5 [in K] through 21)",null,null,null,null,null,null,"Speech or language impairment (ages 5 [in K] through 21)",null,null,null,null,null,null,"Total student enrollment (ages 5 [in K] through 21)",null,null,null,null,null,null,"All children with disabilities (ages 5 [in K] through 21)",null,null,null,null,null,null,"Autism (ages 5 [in K] through 21)",null,null,null,null,null,null,"Emotional disturbance (ages 5 [in K] through 21)",null,null,null,null,null,null,"Intellectual disability (ages 5 [in K] through 21)",null,null,null,null,null,null,"Other health impairment (ages 5 [in K] through 21)",null,null,null,null,null,null,"Specific learning disability (ages 5 [in K] through 21)",null,null,null,null,null,null,"Speech or language impairment (ages 5 [in K] through 21)",null,null,null,null,null,null,"All children with disabilities (ages 5 [in K] through 21)",null,null,null,null,null,null,"Autism (ages 5 [in K] through 21)",null,null,null,null,null,null,"Emotional disturbance (ages 5 [in K] through 21)",null,null,null,null,null,null,"Intellectual disability (ages 5 [in K] through 21)",null,null,null,null,null,null,"Other health impairment (ages 5 [in K] through 21)",null,null,null,null,null,null,"Specific learning disability (ages 5 [in K] through 21)",null,null,null,null,null,null,"Speech or language impairment (ages 5 [in K] through 21)"]
[null,"Race/ethnicity",null,null,null,null,null,null,"Race/ethnicity",null,null,null,null,null,null,"Race/ethnicity",null,null,null,null,null,null,"Race/ethnicity",null,null,null,null,null,null,"Race/ethnicity",null,null,null,null,null,null,"Race/ethnicity",null,null,null,null,null,null,"Race/ethnicity",null,null,null,null,null,null,"Race/ethnicity",null,null,null,null,null,null,"Race/ethnicity",null,null,null,null,null,null,"Race/ethnicity",null,null,null,null,null,null,"Race/ethnicity",null,null,null,null,null,null,"Race/ethnicity",null,null,null,null,null,null,"Race/ethnicity",null,null,null,null,null,null,"Race/ethnicity",null,null,null,null,null,null,"Race/ethnicity",null,null,null,null,null,null,"Race/ethnicity",null,null,null,null,null,null,"Race/ethnicity",null,null,null,null,null,null,"Race/ethnicity",null,null,null,null,null,null,"Race/ethnicity",null,null,null,null,null,null,"Race/ethnicity",null,null,null,null,null,null,"Race/ethnicity",null,null,null,null,null,null,"Race/ethnicity",null,null,null,null,null,null,"Race/ethnicity",null,null,null,null,null,null,"Race/ethnicity",null,null,null,null,null,null,"Race/ethnicity",null,null,null,null,null,null,"Race/ethnicity",null,null,null,null,null,null,"Race/ethnicity",null,null,null,null,null,null,"Race/ethnicity",null,null,null,null,null,null,"Race/ethnicity",null,null,null,null,null,null,"Race/ethnicity",null,null,null,null,null,null,"Race/ethnicity",null,null,null,null,null,null,"Race/ethnicity",null,null,null,null,null,null,"Race/ethnicity",null,null,null,null,null,null,"Race/ethnicity",null,null,null,null,null,null,"Race/ethnicity",null,null,null,null,null,null,"Race/ethnicity",null,null,null,null,null,null,"Race/ethnicity",null,null,null,null,null,null,"Race/ethnicity",null,null,null,null,null,null,"Race/ethnicity",null,null,null,null,null,null,"Race/ethnicity",null,null,null,null,null,null,"Race/ethnicity",null,null,null,null,null,null,"Race/ethnicity",null,null,null,null,null,null,"Race/ethnicity",null,null,null,null,null,null,"Race/ethnicity",null,null,null,null,null,null,"Race/ethnicity",null,null,null,null,null,null,"Race/ethnicity",null,null,null,null,null,null,"Race/ethnicity",null,null,null,null,null,null,"Race/ethnicity",null,null,null,null,null,null,"Race/ethnicity",null,null,null,null,null,null,"Race/ethnicity",null,null,null,null,null,null,"Race/ethnicity",null,null,null,null,null,null,"Race/ethnicity",null,null,null,null,null,null,"Race/ethnicity",null,null,null,null,null,null,"Race/ethnicity",null,null,null,null,null,null,"Race/ethnicity",null,null,null,null,null,null,"Race/ethnicity",null,null,null,null,null,null,"Race/ethnicity",null,null,null,null,null,null,"Race/ethnicity",null,null,null,null,null,null,"Race/ethnicity",null,null,null,null,null,null,"Race/ethnicity",null,null,null,null,null,null,"Race/ethnicity",null,null,null,null,null,null,"Race/ethnicity",null,null,null,null,null,null,"Race/ethnicity",null,null,null,null,null,null,"Race/ethnicity",null,null,null,null,null,null,"Race/ethnicity",null,null,null,null,null,null,"Race/ethnicity"]
[null,"HI7","AM7","AS7","BL7","PI7","WH7","MU7","HI7","AM7","AS7","BL7","PI7","WH7","MU7","HI7","AM7","AS7","BL7","PI7","WH7","MU7","HI7","AM7","AS7","BL7","PI7","WH7","MU7","HI7","AM7","AS7","BL7","PI7","WH7","MU7","HI7","AM7","AS7","BL7","PI7","WH7","MU7","HI7","AM7","AS7","BL7","PI7","WH7","MU7","HI7","AM7","AS7","BL7","PI7","WH7","MU7","HI7","AM7","AS7","BL7","PI7","WH7","MU7","HI7","AM7","AS7","BL7","PI7","WH7","MU7","HI7","AM7","AS7","BL7","PI7","WH7","MU7","HI7","AM7","AS7","BL7","PI7","WH7","MU7","HI7","AM7","AS7","BL7","PI7","WH7","MU7","HI7","AM7","AS7","BL7","PI7","WH7","MU7","HI7","AM7","AS7","BL7","PI7","WH7","MU7","HI7","AM7","AS7","BL7","PI7","WH7","MU7","HI7","AM7","AS7","BL7","PI7","WH7","MU7","HI7","AM7","AS7","BL7","PI7","WH7","MU7","HI7","AM7","AS7","BL7","PI7","WH7","MU7","HI7","AM7","AS7","BL7","PI7","WH7","MU7","HI7","AM7","AS7","BL7","PI7","WH7","MU7","HI7","AM7","AS7","BL7","PI7","WH7","MU7","HI7","AM7","AS7","BL7","PI7","WH7","MU7","HI7","AM7","AS7","BL7","PI7","WH7","MU7","HI7","AM7","AS7","BL7","PI7","WH7","MU7","HI7","AM7","AS7","BL7","PI7","WH7","MU7","HI7","AM7","AS7","BL7","PI7","WH7","MU7","HI7","AM7","AS7","BL7","PI7","WH7","MU7","HI7","AM7","AS7","BL7","PI7","WH7","MU7","HI7","AM7","AS7","BL7","PI7","WH7","MU7","HI7","AM7","AS7","BL7","PI7","WH7","MU7","HI7","AM7","AS7","BL7","PI7","WH7","MU7","HI7","AM7","AS7","BL7","PI7","WH7","MU7","HI7","AM7","AS7","BL7","PI7","WH7","MU7","HI7","AM7","AS7","BL7","PI7","WH7","MU7","HI7","AM7","AS7","BL7","PI7","WH7","MU7","HI7","AM7","AS7","BL7","PI7","WH7","MU7","HI7","AM7","AS7","BL7","PI7","WH7","MU7","HI7","AM7","AS7","BL7","PI7","WH7","MU7","HI7","AM7","AS7","BL7","PI7","WH7","MU7","HI7","AM7","AS7","BL7","PI7","WH7","MU7","HI7","AM7","AS7","BL7","PI7","WH7","MU7","HI7","AM7","AS7","BL7","PI7","WH7","MU7","HI7","AM7","AS7","BL7","PI7","WH7","MU7","HI7","AM7","AS7","BL7","PI7","WH7","MU7","HI7","AM7","AS7","BL7","PI7","WH7","MU7","HI7","AM7","AS7","BL7","PI7","WH7","MU7","HI7","AM7","AS7","BL7","PI7","WH7","MU7","HI7","AM7","AS7","BL7","PI7","WH7","MU7","HI7","AM7","AS7","BL7","PI7","WH7","MU7","HI7","AM7","AS7","BL7","PI7","WH7","MU7","HI7","AM7","AS7","BL7","PI7","WH7","MU7","HI7","AM7","AS7","BL7","PI7","WH7","MU7","HI7","AM7","AS7","BL7","PI7","WH7","MU7","HI7","AM7","AS7","BL7","PI7","WH7","MU7","HI7","AM7","AS7","BL7","PI7","WH7","MU7","HI7","AM7","AS7","BL7","PI7","WH7","MU7","HI7","AM7","AS7","BL7","PI7","WH7","MU7","HI7","AM7","AS7","BL7","PI7","WH7","MU7","HI7","AM7","AS7","BL7","PI7","WH7","MU7","HI7","AM7","AS7","BL7","PI7","WH7","MU7","HI7","AM7","AS7","BL7","PI7","WH7","MU7","HI7","AM7","AS7","BL7","PI7","WH7","MU7","HI7","AM7","AS7","BL7","PI7","WH7","MU7","HI7","AM7","AS7","BL7","PI7","WH7","MU7","HI7","AM7","AS7","BL7","PI7","WH7","MU7"]

{"sheet":"Composition Summary","index":6,"n_rows":7,"n_cols":99,"rows_kept":7,"cut":false,"hidden":true,"merged":[[0,3,0,7],[5,85,5,91],[5,92,5,98],[5,43,5,49],[5,50,5,56],[5,57,5,63],[5,64,5,70],[5,71,5,77],[4,36,4,42],[4,85,4,91],[4,92,4,98],[4,43,4,49],[4,50,4,56],[4,57,4,63],[4,64,4,70],[4,71,4,77],[4,1,4,7],[4,8,4,14],[4,15,4,21],[4,22,4,28],[4,29,4,35],[5,78,5,84],[5,1,5,7],[5,8,5,14],[5,15,5,21],[5,22,5,28],[5,29,5,35],[5,36,5,42],[3,0,6,0],[3,85,3,91],[3,92,3,98],[3,78,3,84],[3,1,3,7],[3,8,3,14],[3,15,3,21],[3,22,3,28],[3,29,3,35],[3,36,3,42],[3,43,3,49],[3,50,3,56],[3,57,3,63],[3,64,3,70],[3,71,3,77],[4,78,4,84]]}
[null,null,null,"RACE/ETHNICITY CODE DEFINITIONS\na\nHI7 = Hispanic/Latino\nAM7 = American Indian or Alaska Native\nAS7 = Asian\nBL7 = Black or African American\nPI7 = Native Hawaiian or Other Pactific Islander\nWH7 = White\nMU7 = Two or more races"]
[]
[]
["LEA/school",{"$f":"\"Difference in composition\"","v":"Difference in composition"},null,null,null,null,null,null,{"$f":"\"Difference in composition\"","v":"Difference in composition"},null,null,null,null,null,null,{"$f":"\"Difference in composition\"","v":"Difference in composition"},null,null,null,null,null,null,{"$f":"\"Difference in composition\"","v":"Difference in composition"},null,null,null,null,null,null,{"$f":"\"Difference in composition\"","v":"Difference in composition"},null,null,null,null,null,null,{"$f":"\"Difference in composition\"","v":"Difference in composition"},null,null,null,null,null,null,{"$f":"\"Difference in composition\"","v":"Difference in composition"},null,null,null,null,null,null,{"$f":"\"Relative difference in composition\"","v":"Relative difference in composition"},null,null,null,null,null,null,{"$f":"\"Relative difference in composition\"","v":"Relative difference in composition"},null,null,null,null,null,null,{"$f":"\"Relative difference in composition\"","v":"Relative difference in composition"},null,null,null,null,null,null,{"$f":"\"Relative difference in composition\"","v":"Relative difference in composition"},null,null,null,null,null,null,{"$f":"\"Relative difference in composition\"","v":"Relative difference in composition"},null,null,null,null,null,null,{"$f":"\"Relative difference in composition\"","v":"Relative difference in composition"},null,null,null,null,null,null,{"$f":"\"Relative difference in composition\"","v":"Relative difference in composition"}]
[null,"All children with disabilities (ages 5 [in K] through 21)",null,null,null,null,null,null,"Autism (ages 5 [in K] through 21)",null,null,null,null,null,null,"Emotional disturbance (ages 5 [in K] through 21)",null,null,null,null,null,null,"Intellectual disability (ages 5 [in K] through 21)",null,null,null,null,null,null,"Other health impairment (ages 5 [in K] through 21)",null,null,null,null,null,null,"Specific learning disability (ages 5 [in K] through 21)",null,null,null,null,null,null,"Speech or language impairment (ages 5 [in K] through 21)",null,null,null,null,null,null,"All children with disabilities (ages 5 [in K] through 21)",null,null,null,null,null,null,"Autism (ages 5 [in K] through 21)",null,null,null,null,null,null,"Emotional disturbance (ages 5 [in K] through 21)",null,null,null,null,null,null,"Intellectual disability (ages 5 [in K] through 21)",null,null,null,null,null,null,"Other health impairment (ages 5 [in K] through 21)",null,null,null,null,null,null,"Specific learning disability (ages 5 [in K] through 21)",null,null,null,null,null,null,"Speech or language impairment (ages 5 [in K] through 21)"]
[null,"Race/ethnicity",null,null,null,null,null,null,"Race/ethnicity",null,null,null,null,null,null,"Race/ethnicity",null,null,null,null,null,null,"Race/ethnicity",null,null,null,null,null,null,"Race/ethnicity",null,null,null,null,null,null,"Race/ethnicity",null,null,null,null,null,null,"Race/ethnicity",null,null,null,null,null,null,"Race/ethnicity",null,null,null,null,null,null,"Race/ethnicity",null,null,null,null,null,null,"Race/ethnicity",null,null,null,null,null,null,"Race/ethnicity",null,null,null,null,null,null,"Race/ethnicity",null,null,null,null,null,null,"Race/ethnicity",null,null,null,null,null,null,"Race/ethnicity"]
["LEA/School","HI7","AM7","AS7","BL7","PI7","WH7","MU7","HI7","AM7","AS7","BL7","PI7","WH7","MU7","HI7","AM7","AS7","BL7","PI7","WH7","MU7","HI7","AM7","AS7","BL7","PI7","WH7","MU7","HI7","AM7","AS7","BL7","PI7","WH7","MU7","HI7","AM7","AS7","BL7","PI7","WH7","MU7","HI7","AM7","AS7","BL7","PI7","WH7","MU7","HI7","AM7","AS7","BL7","PI7","WH7","MU7","HI7","AM7","AS7","BL7","PI7","WH7","MU7","HI7","AM7","AS7","BL7","PI7","WH7","MU7","HI7","AM7","AS7","BL7","PI7","WH7","MU7","HI7","AM7","AS7","BL7","PI7","WH7","MU7","HI7","AM7","AS7","BL7","PI7","WH7","MU7","HI7","AM7","AS7","BL7","PI7","WH7","MU7"]

{"sheet":"Risk Ratio","index":7,"n_rows":7,"n_cols":442,"rows_kept":7,"cut":false,"hidden":true,"merged":[[0,101,0,105],[5,29,5,35],[4,36,4,42],[5,1,5,7],[5,8,5,14],[3,0,6,0],[3,78,3,84],[4,57,4,63],[4,64,4,70],[4,71,4,77],[4,78,4,84],[3,71,3,77],[4,1,4,7],[4,8,4,14],[4,15,4,21],[4,22,4,28],[4,50,4,56],[5,64,5,70],[5,71,5,77],[5,57,5,63],[5,78,5,84],[5,50,5,56],[5,36,5,42],[5,15,5,21],[4,92,4,98],[5,22,5,28],[4,43,4,49],[4,29,4,35],[4,85,4,91],[0,3,0,7],[3,29,3,35],[3,134,3,140],[3,141,3,147],[3,36,3,42],[3,43,3,49],[3,50,3,56],[3,113,3,119],[3,57,3,63],[3,64,3,70],[3,127,3,133],[3,99,3,105],[3,106,3,112],[3,85,3,91],[3,1,3,7],[3,8,3,14],[3,15,3,21],[3,22,3,28],[3,92,3,98],[5,43,5,49],[5,141,5,147],[5,92,5,98],[5,99,5,105],[5,106,5,112],[5,113,5,119],[5,120,5,126],[5,127,5,133],[5,134,5,140],[5,85,5,91],[3,148,3,154],[3,155,3,161],[3,162,3,168],[3,169,3,175],[3,176,3,182],[4,141,4,147],[4,127,4,133],[4,99,4,105],[4,106,4,112],[4,120,4,126],[4,134,4,140],[4,113,4,119],[3,120,3,126],[3,218,3,224],[3,225,3,231],[3,232,3,238],[3,239,3,245],[3,246,3,252],[3,183,3,189],[3,190,3,196],[3,197,3,203],[3,204,3,210],[3,211,3,217],[3,288,3,294],[3,295,3,301],[3,302,3,308],[3,309,3,315],[3,316,3,322],[3,253,3,259],[3,260,3,266],[3,267,3,273],[3,274,3,280],[3,281,3,287],[3,414,3,420],[3,421,3,427],[3,358,3,364],[3,365,3,371],[3,372,3,378],[3,379,3,385],[3,386,3,392],[3,323,3,329],[3,330,3,336],[3,337,3,343],[3,344,3,350],[3,351,3,357],[4,246,4,252],[4,253,4,259],[4,260,4,266],[4,267,4,273],[4,274,4,280],[3,428,3,434],[3,435,3,441],[4,148,4,154],[4,155,4,161],[4,162,4,168],[4,169,4,175],[4,176,4,182],[4,183,4,189],[4,190,4,196],[4,197,4,203],[4,204,4,210],[4,211,4,217],[4,218,4,224],[4,225,4,231],[4,232,4,238],[4,239,4,245],[3,393,3,399],[3,400,3,406],[3,407,3,413],[4,372,4,378],[4,379,4,385],[4,316,4,322],[4,323,4,329],[4,330,4,336],[4,337,4,343],[4,344,4,350],[4,281,4,287],[4,288,4,294],[4,295,4,301],[4,302,4,308],[4,309,4,315],[4,421,4,427],[4,428,4,434],[4,435,4,441],[5,148,5,154],[5,155,5,161],[5,162,5,168],[5,169,5,175],[5,176,5,182],[5,183,5,189],[5,190,5,196],[5,197,5,203],[5,204,5,210],[5,211,5,217],[5,218,5,224],[5,225,5,231],[5,232,5,238],[4,386,4,392],[4,393,4,399],[4,400,4,406],[4,407,4,413],[4,414,4,420],[4,351,4,357],[4,358,4,364],[4,365,4,371],[5,274,5,280],[5,281,5,287],[5,288,5,294],[5,295,5,301],[5,302,5,308],[5,239,5,245],[5,246,5,252],[5,253,5,259],[5,260,5,266],[5,267,5,273],[5,344,5,350],[5,351,5,357],[5,358,5,364],[5,365,5,371],[5,372,5,378],[5,309,5,315],[5,316,5,322],[5,323,5,329],[5,330,5,336],[5,337,5,343],[5,414,5,420],[5,421,5,427],[5,428,5,434],[5,435,5,441],[5,379,5,385],[5,386,5,392],[5,393,5,399],[5,400,5,406],[5,407,5,413]]}
["Hide risk columns?",null,null,"RACE/ETHNICITY CODE DEFINITIONS\na\nHI7 = Hispanic/Latino\nAM7 = American Indian or Alaska Native\nAS7 = Asian\nBL7 = Black or African American\nPI7 = Native Hawaiian or Other Pactific Islander\nWH7 = White\nMU7 = Two or more races",null,null,null,null,null,null,null,null,null,null,null,null,null,null,null,null,null,null,null,null,null,null,null,null,null,null,null,null,null,null,null,null,null,null,null,null,null,null,null,null,null,null,null,null,null,null,null,null,null,null,null,null,null,null,null,null,null,null,null,null,null,null,null,null,null,null,null,null,null,null,null,null,null,null,null,null,null,null,null,null,null,null,null,null,null,null,null,null,null,null,null,null,null,null,null,null,null," "]
["No"]
[]
["LEA/school",{"$f":"IF(TRIM(input_year)<>\"\",input_year&\": \",\"\")&\"Risk\"","v":"Risk"},null,null,null,null,null,null,{"$f":"IF(TRIM(input_year)<>\"\",input_year&\": \",\"\")&\"Risk\"","v":"Risk"},null,null,null,null,null,null,{"$f":"IF(TRIM(input_year)<>\"\",input_year&\": \",\"\")&\"Risk\"","v":"Risk"},null,null,null,null,null,null,{"$f":"IF(TRIM(input_year)<>\"\",input_year&\": \",\"\")&\"Risk\"","v":"Risk"},null,null,null,null,null,null,{"$f":"IF(TRIM(input_year)<>\"\",input_year&\": \",\"\")&\"Risk\"","v":"Risk"},null,null,null,null,null,null,{"$f":"IF(TRIM(input_year)<>\"\",input_year&\": \",\"\")&\"Risk\"","v":"Risk"},null,null,null,null,null,null,{"$f":"IF(TRIM(input_year)<>\"\",input_year&\": \",\"\")&\"Risk\"","v":"Risk"},null,null,null,null,null,null,{"$f":"IF(TRIM(input_year)<>\"\",input_year&\": \",\"\")&\"Risk for comparison\"","v":"Risk for comparison"},null,null,null,null,null,null,{"$f":"IF(TRIM(input_year)<>\"\",input_year&\": \",\"\")&\"Risk for comparison\"","v":"Risk for comparison"},null,null,null,null,null,null,{"$f":"IF(TRIM(input_year)<>\"\",input_year&\": \",\"\")&\"Risk for comparison\"","v":"Risk for comparison"},null,null,null,null,null,null,{"$f":"IF(TRIM(input_year)<>\"\",input_year&\": \",\"\")&\"Risk for comparison\"","v":"Risk for comparison"},null,null,null,null,null,null,{"$f":"IF(TRIM(input_year)<>\"\",input_year&\": \",\"\")&\"Risk for comparison\"","v":"Risk for comparison"},null,null,null,null,null,null,{"$f":"IF(TRIM(input_year)<>\"\",input_year&\": \",\"\")&\"Risk for comparison\"","v":"Risk for comparison"},null,null,null,null,null,null,{"$f":"IF(TRIM(input_year)<>\"\",input_year&\": \",\"\")&\"Risk for comparison\"","v":"Risk for comparison"},null,null,null,null,null,null,{"$f":"IF(TRIM(input_year)<>\"\",input_year&\": \",\"\")&\"Risk ratio\"","v":"Risk ratio"},null,null,null,null,null,null,{"$f":"IF(TRIM(input_year)<>\"\",input_year&\": \",\"\")&\"Risk ratio\"","v":"Risk ratio"},null,null,null,null,null,null,{"$f":"IF(TRIM(input_year)<>\"\",input_year&\": \",\"\")&\"Risk ratio\"","v":"Risk ratio"},null,null,null,null,null,null,{"$f":"IF(TRIM(input_year)<>\"\",input_year&\": \",\"\")&\"Risk ratio\"","v":"Risk ratio"},null,null,null,null,null,null,{"$f":"IF(TRIM(input_year)<>\"\",input_year&\": \",\"\")&\"Risk ratio\"","v":"Risk ratio"},null,null,null,null,null,null,{"$f":"IF(TRIM(input_year)<>\"\",input_year&\": \",\"\")&\"Risk ratio\"","v":"Risk ratio"},null,null,null,null,null,null,{"$f":"IF(TRIM(input_year)<>\"\",input_year&\": \",\"\")&\"Risk ratio\"","v":"Risk ratio"},null,null,null,null,null,null,{"$f":"IF(TRIM(input_year2)<>\"\",input_year2&\": \",\"\")&\"Risk\"","v":"Risk"},null,null,null,null,null,null,{"$f":"IF(TRIM(input_year2)<>\"\",input_year2&\": \",\"\")&\"Risk\"","v":"Risk"},null,null,null,null,null,null,{"$f":"IF(TRIM(input_year2)<>\"\",input_year2&\": \",\"\")&\"Risk\"","v":"Risk"},null,null,null,null,null,null,{"$f":"IF(TRIM(input_year2)<>\"\",input_year2&\": \",\"\")&\"Risk\"","v":"Risk"},null,null,null,null,null,null,{"$f":"IF(TRIM(input_year2)<>\"\",input_year2&\": \",\"\")&\"Risk\"","v":"Risk"},null,null,null,null,null,null,{"$f":"IF(TRIM(input_year2)<>\"\",input_year2&\": \",\"\")&\"Risk\"","v":"Risk"},null,null,null,null,null,null,{"$f":"IF(TRIM(input_year2)<>\"\",input_year2&\": \",\"\")&\"Risk\"","v":"Risk"},null,null,null,null,null,null,{"$f":"IF(TRIM(input_year2)<>\"\",input_year2&\": \",\"\")&\"Risk for comparison\"","v":"Risk for comparison"},null,null,null,null,null,null,{"$f":"IF(TRIM(input_year2)<>\"\",input_year2&\": \",\"\")&\"Risk for comparison\"","v":"Risk for comparison"},null,null,null,null,null,null,{"$f":"IF(TRIM(input_year2)<>\"\",input_year2&\": \",\"\")&\"Risk for comparison\"","v":"Risk for comparison"},null,null,null,null,null,null,{"$f":"IF(TRIM(input_year2)<>\"\",input_year2&\": \",\"\")&\"Risk for comparison\"","v":"Risk for comparison"},null,null,null,null,null,null,{"$f":"IF(TRIM(input_year2)<>\"\",input_year2&\": \",\"\")&\"Risk for comparison\"","v":"Risk for comparison"},null,null,null,null,null,null,{"$f":"IF(TRIM(input_year2)<>\"\",input_year2&\": \",\"\")&\"Risk for comparison\"","v":"Risk for comparison"},null,null,null,null,null,null,{"$f":"IF(TRIM(input_year2)<>\"\",input_year2&\": \",\"\")&\"Risk for comparison\"","v":"Risk for comparison"},null,null,null,null,null,null,{"$f":"IF(TRIM(input_year2)<>\"\",input_year2&\": \",\"\")&\"Risk ratio\"","v":"Risk ratio"},null,null,null,null,null,null,{"$f":"IF(TRIM(input_year2)<>\"\",input_year2&\": \",\"\")&\"Risk ratio\"","v":"Risk ratio"},null,null,null,null,null,null,{"$f":"IF(TRIM(input_year2)<>\"\",input_year2&\": \",\"\")&\"Risk ratio\"","v":"Risk ratio"},null,null,null,null,null,null,{"$f":"IF(TRIM(input_year2)<>\"\",input_year2&\": \",\"\")&\"Risk ratio\"","v":"Risk ratio"},null,null,null,null,null,null,{"$f":"IF(TRIM(input_year2)<>\"\",input_year2&\": \",\"\")&\"Risk ratio\"","v":"Risk ratio"},null,null,null,null,null,null,{"$f":"IF(TRIM(input_year2)<>\"\",input_year2&\": \",\"\")&\"Risk ratio\"","v":"Risk ratio"},null,null,null,null,null,null,{"$f":"IF(TRIM(input_year2)<>\"\",input_year2&\": \",\"\")&\"Risk ratio\"","v":"Risk ratio"},null,null,null,null,null,null,{"$f":"IF(TRIM(input_year3)<>\"\",input_year3&\": \",\"\")&\"Risk\"","v":"Risk"},null,null,null,null,null,null,{"$f":"IF(TRIM(input_year3)<>\"\",input_year3&\": \",\"\")&\"Risk\"","v":"Risk"},null,null,null,null,null,null,{"$f":"IF(TRIM(input_year3)<>\"\",input_year3&\": \",\"\")&\"Risk\"","v":"Risk"},null,null,null,null,null,null,{"$f":"IF(TRIM(input_year3)<>\"\",input_year3&\": \",\"\")&\"Risk\"","v":"Risk"},null,null,null,null,null,null,{"$f":"IF(TRIM(input_year3)<>\"\",input_year3&\": \",\"\")&\"Risk\"","v":"Risk"},null,null,null,null,null,null,{"$f":"IF(TRIM(input_year3)<>\"\",input_year3&\": \",\"\")&\"Risk\"","v":"Risk"},null,null,null,null,null,null,{"$f":"IF(TRIM(input_year3)<>\"\",input_year3&\": \",\"\")&\"Risk\"","v":"Risk"},null,null,null,null,null,null,{"$f":"IF(TRIM(input_year3)<>\"\",input_year3&\": \",\"\")&\"Risk for comparison\"","v":"Risk for comparison"},null,null,null,null,null,null,{"$f":"IF(TRIM(input_year3)<>\"\",input_year3&\": \",\"\")&\"Risk for comparison\"","v":"Risk for comparison"},null,null,null,null,null,null,{"$f":"IF(TRIM(input_year3)<>\"\",input_year3&\": \",\"\")&\"Risk for comparison\"","v":"Risk for comparison"},null,null,null,null,null,null,{"$f":"IF(TRIM(input_year3)<>\"\",input_year3&\": \",\"\")&\"Risk for comparison\"","v":"Risk for comparison"},null,null,null,null,null,null,{"$f":"IF(TRIM(input_year3)<>\"\",input_year3&\": \",\"\")&\"Risk for comparison\"","v":"Risk for comparison"},null,null,null,null,null,null,{"$f":"IF(TRIM(input_year3)<>\"\",input_year3&\": \",\"\")&\"Risk for comparison\"","v":"Risk for comparison"},null,null,null,null,null,null,{"$f":"IF(TRIM(input_year3)<>\"\",input_year3&\": \",\"\")&\"Risk for comparison\"","v":"Risk for comparison"},null,null,null,null,null,null,{"$f":"IF(TRIM(input_year3)<>\"\",input_year3&\": \",\"\")&\"Risk ratio\"","v":"Risk ratio"},null,null,null,null,null,null,{"$f":"IF(TRIM(input_year3)<>\"\",input_year3&\": \",\"\")&\"Risk ratio\"","v":"Risk ratio"},null,null,null,null,null,null,{"$f":"IF(TRIM(input_year3)<>\"\",input_year3&\": \",\"\")&\"Risk ratio\"","v":"Risk ratio"},null,null,null,null,null,null,{"$f":"IF(TRIM(input_year3)<>\"\",input_year3&\": \",\"\")&\"Risk ratio\"","v":"Risk ratio"},null,null,null,null,null,null,{"$f":"IF(TRIM(input_year3)<>\"\",input_year3&\": \",\"\")&\"Risk ratio\"","v":"Risk ratio"},null,null,null,null,null,null,{"$f":"IF(TRIM(input_year3)<>\"\",input_year3&\": \",\"\")&\"Risk ratio\"","v":"Risk ratio"},null,null,null,null,null,null,{"$f":"IF(TRIM(input_year3)<>\"\",input_year3&\": \",\"\")&\"Risk ratio\"","v":"Risk ratio"}]
[null,"All children with disabilities (ages 5 [in K] through 21)",null,null,null,null,null,null,"Autism (ages 5 [in K] through 21)",null,null,null,null,null,null,"Emotional disturbance (ages 5 [in K] through 21)",null,null,null,null,null,null,"Intellectual disability (ages 5 [in K] through 21)",null,null,null,null,null,null,"Other health impairment (ages 5 [in K] through 21)",null,null,null,null,null,null,"Specific learning disability (ages 5 [in K] through 21)",null,null,null,null,null,null,"Speech or language impairment (ages 5 [in K] through 21)",null,null,null,null,null,null,"All children with disabilities (ages 5 [in K] through 21)",null,null,null,null,null,null,"Autism (ages 5 [in K] through 21)",null,null,null,null,null,null,"Emotional disturbance (ages 5 [in K] through 21)",null,null,null,null,null,null," Intellectual disability (ages 5 [in K] through 21)",null,null,null,null,null,null,"Other health impairment (ages 5 [in K] through 21)",null,null,null,null,null,null,"Specific learning disability (ages 5 [in K] through 21)",null,null,null,null,null,null,"Speech or language impairment (ages 5 [in K] through 21)",null,null,null,null,null,null,"All children with disabilities (ages 5 [in K] through 21)",null,null,null,null,null,null,"Autism (ages 5 [in K] through 21)",null,null,null,null,null,null,"Emotional disturbance (ages 5 [in K] through 21)",null,null,null,null,null,null,"Intellectual disability (ages 5 [in K] through 21)",null,null,null,null,null,null,"Other health impairment (ages 5 [in K] through 21)",null,null,null,null,null,null,"Specific learning disability (ages 5 [in K] through 21)",null,null,null,null,null,null,"Speech or language impairment (ages 5 [in K] through 21)",null,null,null,null,null,null,"All children with disabilities (ages 5 [in K] through 21)",null,null,null,null,null,null,"Autism (ages 5 [in K] through 21)",null,null,null,null,null,null,"Emotional disturbance (ages 5 [in K] through 21)",null,null,null,null,null,null,"Intellectual disability (ages 5 [in K] through 21)",null,null,null,null,null,null,"Other health impairment (ages 5 [in K] through 21)",null,null,null,null,null,null,"Specific learning disability (ages 5 [in K] through 21)",null,null,null,null,null,null,"Speech or language impairment (ages 5 [in K] through 21)",null,null,null,null,null,null,"All children with disabilities (ages 5 [in K] through 21)",null,null,null,null,null,null,"Autism (ages 5 [in K] through 21)",null,null,null,null,null,null,"Emotional disturbance (ages 5 [in K] through 21)",null,null,null,null,null,null,"Intellectual disability (ages 5 [in K] through 21)",null,null,null,null,null,null,"Other health impairment (ages 5 [in K] through 21)",null,null,null,null,null,null,"Specific learning disability (ages 5 [in K] through 21)",null,null,null,null,null,null,"Speech or language impairment (ages 5 [in K] through 21)",null,null,null,null,null,null,"All children with disabilities (ages 5 [in K] through 21)",null,null,null,null,null,null,"Autism (ages 5 [in K] through 21)",null,null,null,null,null,null,"Emotional disturbance (ages 5 [in K] through 21)",null,null,null,null,null,null,"Intellectual disability (ages 5 [in K] through 21)",null,null,null,null,null,null,"Other health impairment (ages 5 [in K] through 21)",null,null,null,null,null,null,"Specific learning disability (ages 5 [in K] through 21)",null,null,null,null,null,null,"Speech or language impairment (ages 5 [in K] through 21)",null,null,null,null,null,null,"All children with disabilities (ages 5 [in K] through 21)",null,null,null,null,null,null,"Autism (ages 5 [in K] through 21)",null,null,null,null,null,null,"Emotional disturbance (ages 5 [in K] through 21)",null,null,null,null,null,null,"Intellectual disability (ages 5 [in K] through 21)",null,null,null,null,null,null,"Other health impairment (ages 5 [in K] through 21)",null,null,null,null,null,null,"Specific learning disability (ages 5 [in K] through 21)",null,null,null,null,null,null,"Speech or language impairment (ages 5 [in K] through 21)",null,null,null,null,null,null,"All children with disabilities (ages 5 [in K] through 21)",null,null,null,null,null,null,"Autism (ages 5 [in K] through 21)",null,null,null,null,null,null,"Emotional disturbance (ages 5 [in K] through 21)",null,null,null,null,null,null,"Intellectual disability (ages 5 [in K] through 21)",null,null,null,null,null,null,"Other health impairment (ages 5 [in K] through 21)",null,null,null,null,null,null,"Specific learning disability (ages 5 [in K] through 21)",null,null,null,null,null,null,"Speech or language impairment (ages 5 [in K] through 21)",null,null,null,null,null,null,"All children with disabilities (ages 5 [in K] through 21)",null,null,null,null,null,null,"Autism (ages 5 [in K] through 21)",null,null,null,null,null,null,"Emotional disturbance (ages 5 [in K] through 21)",null,null,null,null,null,null,"Intellectual disability (ages 5 [in K] through 21)",null,null,null,null,null,null,"Other health impairment (ages 5 [in K] through 21)",null,null,null,null,null,null,"Specific learning disability (ages 5 [in K] through 21)",null,null,null,null,null,null,"Speech or language impairment (ages 5 [in K] through 21)"]
[null,"Race/ethnicity",null,null,null,null,null,null,"Race/ethnicity",null,null,null,null,null,null,"Race/ethnicity",null,null,null,null,null,null,"Race/ethnicity",null,null,null,null,null,null,"Race/ethnicity",null,null,null,null,null,null,"Race/ethnicity",null,null,null,null,null,null,"Race/ethnicity",null,null,null,null,null,null,"Race/ethnicity",null,null,null,null,null,null,"Race/ethnicity",null,null,null,null,null,null,"Race/ethnicity",null,null,null,null,null,null,"Race/ethnicity",null,null,null,null,null,null,"Race/ethnicity",null,null,null,null,null,null,"Race/ethnicity",null,null,null,null,null,null,"Race/ethnicity",null,null,null,null,null,null,"Race/ethnicity",null,null,null,null,null,null,"Race/ethnicity",null,null,null,null,null,null,"Race/ethnicity",null,null,null,null,null,null,"Race/ethnicity",null,null,null,null,null,null,"Race/ethnicity",null,null,null,null,null,null,"Race/ethnicity",null,null,null,null,null,null,"Race/ethnicity",null,null,null,null,null,null,"Race/ethnicity",null,null,null,null,null,null,"Race/ethnicity",null,null,null,null,null,null,"Race/ethnicity",null,null,null,null,null,null,"Race/ethnicity",null,null,null,null,null,null,"Race/ethnicity",null,null,null,null,null,null,"Race/ethnicity",null,null,null,null,null,null,"Race/ethnicity",null,null,null,null,null,null,"Race/ethnicity",null,null,null,null,null,null,"Race/ethnicity",null,null,null,null,null,null,"Race/ethnicity",null,null,null,null,null,null,"Race/ethnicity",null,null,null,null,null,null,"Race/ethnicity",null,null,null,null,null,null,"Race/ethnicity",null,null,null,null,null,null,"Race/ethnicity",null,null,null,null,null,null,"Race/ethnicity",null,null,null,null,null,null,"Race/ethnicity",null,null,null,null,null,null,"Race/ethnicity",null,null,null,null,null,null,"Race/ethnicity",null,null,null,null,null,null,"Race/ethnicity",null,null,null,null,null,null,"Race/ethnicity",null,null,null,null,null,null,"Race/ethnicity",null,null,null,null,null,null,"Race/ethnicity",null,null,null,null,null,null,"Race/ethnicity",null,null,null,null,null,null,"Race/ethnicity",null,null,null,null,null,null,"Race/ethnicity",null,null,null,null,null,null,"Race/ethnicity",null,null,null,null,null,null,"Race/ethnicity",null,null,null,null,null,null,"Race/ethnicity",null,null,null,null,null,null,"Race/ethnicity",null,null,null,null,null,null,"Race/ethnicity",null,null,null,null,null,null,"Race/ethnicity",null,null,null,null,null,null,"Race/ethnicity",null,null,null,null,null,null,"Race/ethnicity",null,null,null,null,null,null,"Race/ethnicity",null,null,null,null,null,null,"Race/ethnicity",null,null,null,null,null,null,"Race/ethnicity",null,null,null,null,null,null,"Race/ethnicity",null,null,null,null,null,null,"Race/ethnicity",null,null,null,null,null,null,"Race/ethnicity",null,null,null,null,null,null,"Race/ethnicity",null,null,null,null,null,null,"Race/ethnicity",null,null,null,null,null,null,"Race/ethnicity"]
[null,"HI7","AM7","AS7","BL7","PI7","WH7","MU7","HI7","AM7","AS7","BL7","PI7","WH7","MU7","HI7","AM7","AS7","BL7","PI7","WH7","MU7","HI7","AM7","AS7","BL7","PI7","WH7","MU7","HI7","AM7","AS7","BL7","PI7","WH7","MU7","HI7","AM7","AS7","BL7","PI7","WH7","MU7","HI7","AM7","AS7","BL7","PI7","WH7","MU7","HI7","AM7","AS7","BL7","PI7","WH7","MU7","HI7","AM7","AS7","BL7","PI7","WH7","MU7","HI7","AM7","AS7","BL7","PI7","WH7","MU7","HI7","AM7","AS7","BL7","PI7","WH7","MU7","HI7","AM7","AS7","BL7","PI7","WH7","MU7","HI7","AM7","AS7","BL7","PI7","WH7","MU7","HI7","AM7","AS7","BL7","PI7","WH7","MU7","HI7","AM7","AS7","BL7","PI7","WH7","MU7","HI7","AM7","AS7","BL7","PI7","WH7","MU7","HI7","AM7","AS7","BL7","PI7","WH7","MU7","HI7","AM7","AS7","BL7","PI7","WH7","MU7","HI7","AM7","AS7","BL7","PI7","WH7","MU7","HI7","AM7","AS7","BL7","PI7","WH7","MU7","HI7","AM7","AS7","BL7","PI7","WH7","MU7","HI7","AM7","AS7","BL7","PI7","WH7","MU7","HI7","AM7","AS7","BL7","PI7","WH7","MU7","HI7","AM7","AS7","BL7","PI7","WH7","MU7","HI7","AM7","AS7","BL7","PI7","WH7","MU7","HI7","AM7","AS7","BL7","PI7","WH7","MU7","HI7","AM7","AS7","BL7","PI7","WH7","MU7","HI7","AM7","AS7","BL7","PI7","WH7","MU7","HI7","AM7","AS7","BL7","PI7","WH7","MU7","HI7","AM7","AS7","BL7","PI7","WH7","MU7","HI7","AM7","AS7","BL7","PI7","WH7","MU7","HI7","AM7","AS7","BL7","PI7","WH7","MU7","HI7","AM7","AS7","BL7","PI7","WH7","MU7","HI7","AM7","AS7","BL7","PI7","WH7","MU7","HI7","AM7","AS7","BL7","PI7","WH7","MU7","HI7","AM7","AS7","BL7","PI7","WH7","MU7","HI7","AM7","AS7","BL7","PI7","WH7","MU7","HI7","AM7","AS7","BL7","PI7","WH7","MU7","HI7","AM7","AS7","BL7","PI7","WH7","MU7","HI7","AM7","AS7","BL7","PI7","WH7","MU7","HI7","AM7","AS7","BL7","PI7","WH7","MU7","HI7","AM7","AS7","BL7","PI7","WH7","MU7","HI7","AM7","AS7","BL7","PI7","WH7","MU7","HI7","AM7","AS7","BL7","PI7","WH7","MU7","HI7","AM7","AS7","BL7","PI7","WH7","MU7","HI7","AM7","AS7","BL7","PI7","WH7","MU7","HI7","AM7","AS7","BL7","PI7","WH7","MU7","HI7","AM7","AS7","BL7","PI7","WH7","MU7","HI7","AM7","AS7","BL7","PI7","WH7","MU7","HI7","AM7","AS7","BL7","PI7","WH7","MU7","HI7","AM7","AS7","BL7","PI7","WH7","MU7","HI7","AM7","AS7","BL7","PI7","WH7","MU7","HI7","AM7","AS7","BL7","PI7","WH7","MU7","HI7","AM7","AS7","BL7","PI7","WH7","MU7","HI7","AM7","AS7","BL7","PI7","WH7","MU7","HI7","AM7","AS7","BL7","PI7","WH7","MU7","HI7","AM7","AS7","BL7","PI7","WH7","MU7","HI7","AM7","AS7","BL7","PI7","WH7","MU7","HI7","AM7","AS7","BL7","PI7","WH7","MU7","HI7","AM7","AS7","BL7","PI7","WH7","MU7","HI7","AM7","AS7","BL7","PI7","WH7","MU7","HI7","AM7","AS7","BL7","PI7","WH7","MU7","HI7","AM7","AS7","BL7","PI7","WH7","MU7"]

{"sheet":"Risk Ratio Summary","index":8,"n_rows":7,"n_cols":50,"rows_kept":7,"cut":false,"hidden":true,"merged":[[3,0,6,0],[0,3,0,7],[5,29,5,35],[5,36,5,42],[5,43,5,49],[4,43,4,49],[4,29,4,35],[4,36,4,42],[3,29,3,35],[3,36,3,42],[3,43,3,49],[3,1,3,7],[3,8,3,14],[3,15,3,21],[3,22,3,28],[5,1,5,7],[5,8,5,14],[5,15,5,21],[5,22,5,28],[4,1,4,7],[4,8,4,14],[4,15,4,21],[4,22,4,28]]}
[null,null,null,"RACE/ETHNICITY CODE DEFINITIONS\na\nHI7 = Hispanic/Latino\nAM7 = American Indian or Alaska Native\nAS7 = Asian\nBL7 = Black or African American\nPI7 = Native Hawaiian or Other Pactific Islander\nWH7 = White\nMU7 = Two or more races"]
[]
[]
["LEA/school",{"$f":"\"Risk ratio\"","v":"Risk ratio"},null,null,null,null,null,null,{"$f":"\"Risk ratio\"","v":"Risk ratio"},null,null,null,null,null,null,{"$f":"\"Risk ratio\"","v":"Risk ratio"},null,null,null,null,null,null,{"$f":"\"Risk ratio\"","v":"Risk ratio"},null,null,null,null,null,null,{"$f":"\"Risk ratio\"","v":"Risk ratio"},null,null,null,null,null,null,{"$f":"\"Risk ratio\"","v":"Risk ratio"},null,null,null,null,null,null,{"$f":"\"Risk ratio\"","v":"Risk ratio"}]
[null,"All children with disabilities (ages 5 [in K] through 21)",null,null,null,null,null,null,"Autism (ages 5 [in K] through 21)",null,null,null,null,null,null,"Emotional disturbance (ages 5 [in K] through 21)",null,null,null,null,null,null,"Intellectual disability (ages 5 [in K] through 21)",null,null,null,null,null,null,"Other health impairment (ages 5 [in K] through 21)",null,null,null,null,null,null,"Specific learning disability (ages 5 [in K] through 21)",null,null,null,null,null,null,"Speech or language impairment (ages 5 [in K] through 21)"]
[null,"Race/ethnicity",null,null,null,null,null,null,"Race/ethnicity",null,null,null,null,null,null,"Race/ethnicity",null,null,null,null,null,null,"Race/ethnicity",null,null,null,null,null,null,"Race/ethnicity",null,null,null,null,null,null,"Race/ethnicity",null,null,null,null,null,null,"Race/ethnicity"]
[null,"HI7","AM7","AS7","BL7","PI7","WH7","MU7","HI7","AM7","AS7","BL7","PI7","WH7","MU7","HI7","AM7","AS7","BL7","PI7","WH7","MU7","HI7","AM7","AS7","BL7","PI7","WH7","MU7","HI7","AM7","AS7","BL7","PI7","WH7","MU7","HI7","AM7","AS7","BL7","PI7","WH7","MU7","HI7","AM7","AS7","BL7","PI7","WH7","MU7"]

{"sheet":"Weighted Risk Ratio","index":9,"n_rows":7,"n_cols":442,"rows_kept":7,"cut":false,"hidden":true,"merged":[[3,0,6,0],[5,141,5,147],[4,127,4,133],[4,134,4,140],[4,141,4,147],[5,127,5,133],[5,134,5,140],[3,120,3,126],[5,64,5,70],[3,113,3,119],[5,99,5,105],[5,106,5,112],[5,78,5,84],[5,85,5,91],[3,71,3,77],[5,120,5,126],[4,113,4,119],[5,113,5,119],[4,120,4,126],[4,92,4,98],[4,106,4,112],[4,99,4,105],[4,78,4,84],[4,71,4,77],[3,148,3,154],[3,155,3,161],[3,162,3,168],[0,3,0,7],[4,57,4,63],[4,64,4,70],[4,36,4,42],[3,29,3,35],[4,1,4,7],[4,8,4,14],[4,15,4,21],[4,22,4,28],[3,1,3,7],[3,8,3,14],[3,15,3,21],[3,22,3,28],[3,50,3,56],[3,57,3,63],[3,64,3,70],[3,141,3,147],[3,127,3,133],[0,101,0,105],[3,134,3,140],[3,169,3,175],[3,176,3,182],[5,1,5,7],[5,8,5,14],[5,15,5,21],[5,22,5,28],[5,29,5,35],[4,29,4,35],[5,50,5,56],[5,57,5,63],[5,36,5,42],[3,106,3,112],[4,85,4,91],[4,43,4,49],[4,50,4,56],[5,43,5,49],[3,43,3,49],[3,99,3,105],[3,78,3,84],[3,36,3,42],[5,71,5,77],[5,92,5,98],[3,85,3,91],[3,92,3,98],[3,218,3,224],[3,225,3,231],[3,232,3,238],[3,239,3,245],[3,246,3,252],[3,183,3,189],[3,190,3,196],[3,197,3,203],[3,204,3,210],[3,211,3,217],[3,288,3,294],[3,295,3,301],[3,302,3,308],[3,309,3,315],[3,316,3,322],[3,253,3,259],[3,260,3,266],[3,267,3,273],[3,274,3,280],[3,281,3,287],[3,414,3,420],[3,421,3,427],[3,358,3,364],[3,365,3,371],[3,372,3,378],[3,379,3,385],[3,386,3,392],[3,323,3,329],[3,330,3,336],[3,337,3,343],[3,344,3,350],[3,351,3,357],[4,246,4,252],[4,253,4,259],[4,260,4,266],[4,267,4,273],[4,274,4,280],[3,428,3,434],[3,435,3,441],[4,148,4,154],[4,155,4,161],[4,162,4,168],[4,169,4,175],[4,176,4,182],[4,183,4,189],[4,190,4,196],[4,197,4,203],[4,204,4,210],[4,211,4,217],[4,218,4,224],[4,225,4,231],[4,232,4,238],[4,239,4,245],[3,393,3,399],[3,400,3,406],[3,407,3,413],[4,372,4,378],[4,379,4,385],[4,316,4,322],[4,323,4,329],[4,330,4,336],[4,337,4,343],[4,344,4,350],[4,281,4,287],[4,288,4,294],[4,295,4,301],[4,302,4,308],[4,309,4,315],[4,421,4,427],[4,428,4,434],[4,435,4,441],[5,148,5,154],[5,155,5,161],[5,162,5,168],[5,169,5,175],[5,176,5,182],[5,183,5,189],[5,190,5,196],[5,197,5,203],[5,204,5,210],[5,211,5,217],[5,218,5,224],[5,225,5,231],[5,232,5,238],[4,386,4,392],[4,393,4,399],[4,400,4,406],[4,407,4,413],[4,414,4,420],[4,351,4,357],[4,358,4,364],[4,365,4,371],[5,274,5,280],[5,281,5,287],[5,288,5,294],[5,295,5,301],[5,302,5,308],[5,239,5,245],[5,246,5,252],[5,253,5,259],[5,260,5,266],[5,267,5,273],[5,344,5,350],[5,351,5,357],[5,358,5,364],[5,365,5,371],[5,372,5,378],[5,309,5,315],[5,316,5,322],[5,323,5,329],[5,330,5,336],[5,337,5,343],[5,414,5,420],[5,421,5,427],[5,428,5,434],[5,435,5,441],[5,379,5,385],[5,386,5,392],[5,393,5,399],[5,400,5,406],[5,407,5,413]]}
["Hide risk columns?",null,null,"RACE/ETHNICITY CODE DEFINITIONS\na\nHI7 = Hispanic/Latino\nAM7 = American Indian or Alaska Native\nAS7 = Asian\nBL7 = Black or African American\nPI7 = Native Hawaiian or Other Pactific Islander\nWH7 = White\nMU7 = Two or more races",null,null,null,null,null,null,null,null,null,null,null,null,null,null,null,null,null,null,null,null,null,null,null,null,null,null,null,null,null,null,null,null,null,null,null,null,null,null,null,null,null,null,null,null,null,null,null,null,null,null,null,null,null,null,null,null,null,null,null,null,null,null,null,null,null,null,null,null,null,null,null,null,null,null,null,null,null,null,null,null,null,null,null,null,null,null,null,null,null,null,null,null,null,null,null,null,null," "]
["No"]
[]
["LEA/school",{"$f":"IF(TRIM(input_year)<>\"\",input_year&\": \",\"\")&\"Risk\"","v":"Risk"},null,null,null,null,null,null,{"$f":"IF(TRIM(input_year)<>\"\",input_year&\": \",\"\")&\"Risk\"","v":"Risk"},null,null,null,null,null,null,{"$f":"IF(TRIM(input_year)<>\"\",input_year&\": \",\"\")&\"Risk\"","v":"Risk"},null,null,null,null,null,null,{"$f":"IF(TRIM(input_year)<>\"\",input_year&\": \",\"\")&\"Risk\"","v":"Risk"},null,null,null,null,null,null,{"$f":"IF(TRIM(input_year)<>\"\",input_year&\": \",\"\")&\"Risk\"","v":"Risk"},null,null,null,null,null,null,{"$f":"IF(TRIM(input_year)<>\"\",input_year&\": \",\"\")&\"Risk\"","v":"Risk"},null,null,null,null,null,null,{"$f":"IF(TRIM(input_year)<>\"\",input_year&\": \",\"\")&\"Risk\"","v":"Risk"},null,null,null,null,null,null,{"$f":"IF(TRIM(input_year)<>\"\",input_year&\": \",\"\")&\"Risk for comparison\"","v":"Risk for comparison"},null,null,null,null,null,null,{"$f":"IF(TRIM(input_year)<>\"\",input_year&\": \",\"\")&\"Risk for comparison\"","v":"Risk for comparison"},null,null,null,null,null,null,{"$f":"IF(TRIM(input_year)<>\"\",input_year&\": \",\"\")&\"Risk for comparison\"","v":"Risk for comparison"},null,null,null,null,null,null,{"$f":"IF(TRIM(input_year)<>\"\",input_year&\": \",\"\")&\"Risk for comparison\"","v":"Risk for comparison"},null,null,null,null,null,null,{"$f":"IF(TRIM(input_year)<>\"\",input_year&\": \",\"\")&\"Risk for comparison\"","v":"Risk for comparison"},null,null,null,null,null,null,{"$f":"IF(TRIM(input_year)<>\"\",input_year&\": \",\"\")&\"Risk for comparison\"","v":"Risk for comparison"},null,null,null,null,null,null,{"$f":"IF(TRIM(input_year)<>\"\",input_year&\": \",\"\")&\"Risk for comparison\"","v":"Risk for comparison"},null,null,null,null,null,null,{"$f":"IF(TRIM(input_year)<>\"\",input_year&\": \",\"\")&\"Weighted risk ratio\"","v":"Weighted risk ratio"},null,null,null,null,null,null,{"$f":"IF(TRIM(input_year)<>\"\",input_year&\": \",\"\")&\"Weighted risk ratio\"","v":"Weighted risk ratio"},null,null,null,null,null,null,{"$f":"IF(TRIM(input_year)<>\"\",input_year&\": \",\"\")&\"Weighted risk ratio\"","v":"Weighted risk ratio"},null,null,null,null,null,null,{"$f":"IF(TRIM(input_year)<>\"\",input_year&\": \",\"\")&\"Weighted risk ratio\"","v":"Weighted risk ratio"},null,null,null,null,null,null,{"$f":"IF(TRIM(input_year)<>\"\",input_year&\": \",\"\")&\"Weighted risk ratio\"","v":"Weighted risk ratio"},null,null,null,null,null,null,{"$f":"IF(TRIM(input_year)<>\"\",input_year&\": \",\"\")&\"Weighted risk ratio\"","v":"Weighted risk ratio"},null,null,null,null,null,null,{"$f":"IF(TRIM(input_year)<>\"\",input_year&\": \",\"\")&\"Weighted risk ratio\"","v":"Weighted risk ratio"},null,null,null,null,null,null,{"$f":"IF(TRIM(input_year2)<>\"\",input_year2&\": \",\"\")&\"Risk\"","v":"Risk"},null,null,null,null,null,null,{"$f":"IF(TRIM(input_year2)<>\"\",input_year2&\": \",\"\")&\"Risk\"","v":"Risk"},null,null,null,null,null,null,{"$f":"IF(TRIM(input_year2)<>\"\",input_year2&\": \",\"\")&\"Risk\"","v":"Risk"},null,null,null,null,null,null,{"$f":"IF(TRIM(input_year2)<>\"\",input_year2&\": \",\"\")&\"Risk\"","v":"Risk"},null,null,null,null,null,null,{"$f":"IF(TRIM(input_year2)<>\"\",input_year2&\": \",\"\")&\"Risk\"","v":"Risk"},null,null,null,null,null,null,{"$f":"IF(TRIM(input_year2)<>\"\",input_year2&\": \",\"\")&\"Risk\"","v":"Risk"},null,null,null,null,null,null,{"$f":"IF(TRIM(input_year2)<>\"\",input_year2&\": \",\"\")&\"Risk\"","v":"Risk"},null,null,null,null,null,null,{"$f":"IF(TRIM(input_year2)<>\"\",input_year2&\": \",\"\")&\"Risk for comparison\"","v":"Risk for comparison"},null,null,null,null,null,null,{"$f":"IF(TRIM(input_year2)<>\"\",input_year2&\": \",\"\")&\"Risk for comparison\"","v":"Risk for comparison"},null,null,null,null,null,null,{"$f":"IF(TRIM(input_year2)<>\"\",input_year2&\": \",\"\")&\"Risk for comparison\"","v":"Risk for comparison"},null,null,null,null,null,null,{"$f":"IF(TRIM(input_year2)<>\"\",input_year2&\": \",\"\")&\"Risk for comparison\"","v":"Risk for comparison"},null,null,null,null,null,null,{"$f":"IF(TRIM(input_year2)<>\"\",input_year2&\": \",\"\")&\"Risk for comparison\"","v":"Risk for comparison"},null,null,null,null,null,null,{"$f":"IF(TRIM(input_year2)<>\"\",input_year2&\": \",\"\")&\"Risk for comparison\"","v":"Risk for comparison"},null,null,null,null,null,null,{"$f":"IF(TRIM(input_year2)<>\"\",input_year2&\": \",\"\")&\"Risk for comparison\"","v":"Risk for comparison"},null,null,null,null,null,null,{"$f":"IF(TRIM(input_year2)<>\"\",input_year2&\": \",\"\")&\"Weighted risk ratio\"","v":"Weighted risk ratio"},null,null,null,null,null,null,{"$f":"IF(TRIM(input_year2)<>\"\",input_year2&\": \",\"\")&\"Weighted risk ratio\"","v":"Weighted risk ratio"},null,null,null,null,null,null,{"$f":"IF(TRIM(input_year2)<>\"\",input_year2&\": \",\"\")&\"Weighted risk ratio\"","v":"Weighted risk ratio"},null,null,null,null,null,null,{"$f":"IF(TRIM(input_year2)<>\"\",input_year2&\": \",\"\")&\"Weighted risk ratio\"","v":"Weighted risk ratio"},null,null,null,null,null,null,{"$f":"IF(TRIM(input_year2)<>\"\",input_year2&\": \",\"\")&\"Weighted risk ratio\"","v":"Weighted risk ratio"},null,null,null,null,null,null,{"$f":"IF(TRIM(input_year2)<>\"\",input_year2&\": \",\"\")&\"Weighted risk ratio\"","v":"Weighted risk ratio"},null,null,null,null,null,null,{"$f":"IF(TRIM(input_year2)<>\"\",input_year2&\": \",\"\")&\"Weighted risk ratio\"","v":"Weighted risk ratio"},null,null,null,null,null,null,{"$f":"IF(TRIM(input_year3)<>\"\",input_year3&\": \",\"\")&\"Risk\"","v":"Risk"},null,null,null,null,null,null,{"$f":"IF(TRIM(input_year3)<>\"\",input_year3&\": \",\"\")&\"Risk\"","v":"Risk"},null,null,null,null,null,null,{"$f":"IF(TRIM(input_year3)<>\"\",input_year3&\": \",\"\")&\"Risk\"","v":"Risk"},null,null,null,null,null,null,{"$f":"IF(TRIM(input_year3)<>\"\",input_year3&\": \",\"\")&\"Risk\"","v":"Risk"},null,null,null,null,null,null,{"$f":"IF(TRIM(input_year3)<>\"\",input_year3&\": \",\"\")&\"Risk\"","v":"Risk"},null,null,null,null,null,null,{"$f":"IF(TRIM(input_year3)<>\"\",input_year3&\": \",\"\")&\"Risk\"","v":"Risk"},null,null,null,null,null,null,{"$f":"IF(TRIM(input_year3)<>\"\",input_year3&\": \",\"\")&\"Risk\"","v":"Risk"},null,null,null,null,null,null,{"$f":"IF(TRIM(input_year3)<>\"\",input_year3&\": \",\"\")&\"Risk for comparison\"","v":"Risk for comparison"},null,null,null,null,null,null,{"$f":"IF(TRIM(input_year3)<>\"\",input_year3&\": \",\"\")&\"Risk for comparison\"","v":"Risk for comparison"},null,null,null,null,null,null,{"$f":"IF(TRIM(input_year3)<>\"\",input_year3&\": \",\"\")&\"Risk for comparison\"","v":"Risk for comparison"},null,null,null,null,null,null,{"$f":"IF(TRIM(input_year3)<>\"\",input_year3&\": \",\"\")&\"Risk for comparison\"","v":"Risk for comparison"},null,null,null,null,null,null,{"$f":"IF(TRIM(input_year3)<>\"\",input_year3&\": \",\"\")&\"Risk for comparison\"","v":"Risk for comparison"},null,null,null,null,null,null,{"$f":"IF(TRIM(input_year3)<>\"\",input_year3&\": \",\"\")&\"Risk for comparison\"","v":"Risk for comparison"},null,null,null,null,null,null,{"$f":"IF(TRIM(input_year3)<>\"\",input_year3&\": \",\"\")&\"Risk for comparison\"","v":"Risk for comparison"},null,null,null,null,null,null,{"$f":"IF(TRIM(input_year3)<>\"\",input_year3&\": \",\"\")&\"Weighted risk ratio\"","v":"Weighted risk ratio"},null,null,null,null,null,null,{"$f":"IF(TRIM(input_year3)<>\"\",input_year3&\": \",\"\")&\"Weighted risk ratio\"","v":"Weighted risk ratio"},null,null,null,null,null,null,{"$f":"IF(TRIM(input_year3)<>\"\",input_year3&\": \",\"\")&\"Weighted risk ratio\"","v":"Weighted risk ratio"},null,null,null,null,null,null,{"$f":"IF(TRIM(input_year3)<>\"\",input_year3&\": \",\"\")&\"Weighted risk ratio\"","v":"Weighted risk ratio"},null,null,null,null,null,null,{"$f":"IF(TRIM(input_year3)<>\"\",input_year3&\": \",\"\")&\"Weighted risk ratio\"","v":"Weighted risk ratio"},null,null,null,null,null,null,{"$f":"IF(TRIM(input_year3)<>\"\",input_year3&\": \",\"\")&\"Weighted risk ratio\"","v":"Weighted risk ratio"},null,null,null,null,null,null,{"$f":"IF(TRIM(input_year3)<>\"\",input_year3&\": \",\"\")&\"Weighted risk ratio\"","v":"Weighted risk ratio"}]
[null,"All children with disabilities (ages 5 [in K] through 21)",null,null,null,null,null,null,"Autism (ages 5 [in K] through 21)",null,null,null,null,null,null,"Emotional disturbance (ages 5 [in K] through 21)",null,null,null,null,null,null,"Intellectual disability (ages 5 [in K] through 21)",null,null,null,null,null,null,"Other health impairment (ages 5 [in K] through 21)",null,null,null,null,null,null,"Specific learning disability (ages 5 [in K] through 21)",null,null,null,null,null,null,"Speech or language impairment (ages 5 [in K] through 21)",null,null,null,null,null,null,"All children with disabilities (ages 5 [in K] through 21)",null,null,null,null,null,null,"Autism (ages 5 [in K] through 21)",null,null,null,null,null,null,"Emotional disturbance (ages 5 [in K] through 21)",null,null,null,null,null,null," Intellectual disability (ages 5 [in K] through 21)",null,null,null,null,null,null,"Other health impairment (ages 5 [in K] through 21)",null,null,null,null,null,null,"Specific learning disability (ages 5 [in K] through 21)",null,null,null,null,null,null,"Speech or language impairment (ages 5 [in K] through 21)",null,null,null,null,null,null,"All children with disabilities (ages 5 [in K] through 21)",null,null,null,null,null,null,"Autism (ages 5 [in K] through 21)",null,null,null,null,null,null,"Emotional disturbance (ages 5 [in K] through 21)",null,null,null,null,null,null,"Intellectual disability (ages 5 [in K] through 21)",null,null,null,null,null,null,"Other health impairment (ages 5 [in K] through 21)",null,null,null,null,null,null,"Specific learning disability (ages 5 [in K] through 21)",null,null,null,null,null,null,"Speech or language impairment (ages 5 [in K] through 21)",null,null,null,null,null,null,"All children with disabilities (ages 5 [in K] through 21)",null,null,null,null,null,null,"Autism (ages 5 [in K] through 21)",null,null,null,null,null,null,"Emotional disturbance (ages 5 [in K] through 21)",null,null,null,null,null,null,"Intellectual disability (ages 5 [in K] through 21)",null,null,null,null,null,null,"Other health impairment (ages 5 [in K] through 21)",null,null,null,null,null,null,"Specific learning disability (ages 5 [in K] through 21)",null,null,null,null,null,null,"Speech or language impairment (ages 5 [in K] through 21)",null,null,null,null,null,null,"All children with disabilities (ages 5 [in K] through 21)",null,null,null,null,null,null,"Autism (ages 5 [in K] through 21)",null,null,null,null,null,null,"Emotional disturbance (ages 5 [in K] through 21)",null,null,null,null,null,null,"Intellectual disability (ages 5 [in K] through 21)",null,null,null,null,null,null,"Other health impairment (ages 5 [in K] through 21)",null,null,null,null,null,null,"Specific learning disability (ages 5 [in K] through 21)",null,null,null,null,null,null,"Speech or language impairment (ages 5 [in K] through 21)",null,null,null,null,null,null,"All children with disabilities (ages 5 [in K] through 21)",null,null,null,null,null,null,"Autism (ages 5 [in K] through 21)",null,null,null,null,null,null,"Emotional disturbance (ages 5 [in K] through 21)",null,null,null,null,null,null,"Intellectual disability (ages 5 [in K] through 21)",null,null,null,null,null,null,"Other health impairment (ages 5 [in K] through 21)",null,null,null,null,null,null,"Specific learning disability (ages 5 [in K] through 21)",null,null,null,null,null,null,"Speech or language impairment (ages 5 [in K] through 21)",null,null,null,null,null,null,"All children with disabilities (ages 5 [in K] through 21)",null,null,null,null,null,null,"Autism (ages 5 [in K] through 21)",null,null,null,null,null,null,"Emotional disturbance (ages 5 [in K] through 21)",null,null,null,null,null,null,"Intellectual disability (ages 5 [in K] through 21)",null,null,null,null,null,null,"Other health impairment (ages 5 [in K] through 21)",null,null,null,null,null,null,"Specific learning disability (ages 5 [in K] through 21)",null,null,null,null,null,null,"Speech or language impairment (ages 5 [in K] through 21)",null,null,null,null,null,null,"All children with disabilities (ages 5 [in K] through 21)",null,null,null,null,null,null,"Autism (ages 5 [in K] through 21)",null,null,null,null,null,null,"Emotional disturbance (ages 5 [in K] through 21)",null,null,null,null,null,null,"Intellectual disability (ages 5 [in K] through 21)",null,null,null,null,null,null,"Other health impairment (ages 5 [in K] through 21)",null,null,null,null,null,null,"Specific learning disability (ages 5 [in K] through 21)",null,null,null,null,null,null,"Speech or language impairment (ages 5 [in K] through 21)",null,null,null,null,null,null,"All children with disabilities (ages 5 [in K] through 21)",null,null,null,null,null,null,"Autism (ages 5 [in K] through 21)",null,null,null,null,null,null,"Emotional disturbance (ages 5 [in K] through 21)",null,null,null,null,null,null,"Intellectual disability (ages 5 [in K] through 21)",null,null,null,null,null,null,"Other health impairment (ages 5 [in K] through 21)",null,null,null,null,null,null,"Specific learning disability (ages 5 [in K] through 21)",null,null,null,null,null,null,"Speech or language impairment (ages 5 [in K] through 21)"]
[null,"Race/ethnicity",null,null,null,null,null,null,"Race/ethnicity",null,null,null,null,null,null,"Race/ethnicity",null,null,null,null,null,null,"Race/ethnicity",null,null,null,null,null,null,"Race/ethnicity",null,null,null,null,null,null,"Race/ethnicity",null,null,null,null,null,null,"Race/ethnicity",null,null,null,null,null,null,"Race/ethnicity",null,null,null,null,null,null,"Race/ethnicity",null,null,null,null,null,null,"Race/ethnicity",null,null,null,null,null,null,"Race/ethnicity",null,null,null,null,null,null,"Race/ethnicity",null,null,null,null,null,null,"Race/ethnicity",null,null,null,null,null,null,"Race/ethnicity",null,null,null,null,null,null,"Race/ethnicity",null,null,null,null,null,null,"Race/ethnicity",null,null,null,null,null,null,"Race/ethnicity",null,null,null,null,null,null,"Race/ethnicity",null,null,null,null,null,null,"Race/ethnicity",null,null,null,null,null,null,"Race/ethnicity",null,null,null,null,null,null,"Race/ethnicity",null,null,null,null,null,null,"Race/ethnicity",null,null,null,null,null,null,"Race/ethnicity",null,null,null,null,null,null,"Race/ethnicity",null,null,null,null,null,null,"Race/ethnicity",null,null,null,null,null,null,"Race/ethnicity",null,null,null,null,null,null,"Race/ethnicity",null,null,null,null,null,null,"Race/ethnicity",null,null,null,null,null,null,"Race/ethnicity",null,null,null,null,null,null,"Race/ethnicity",null,null,null,null,null,null,"Race/ethnicity",null,null,null,null,null,null,"Race/ethnicity",null,null,null,null,null,null,"Race/ethnicity",null,null,null,null,null,null,"Race/ethnicity",null,null,null,null,null,null,"Race/ethnicity",null,null,null,null,null,null,"Race/ethnicity",null,null,null,null,null,null,"Race/ethnicity",null,null,null,null,null,null,"Race/ethnicity",null,null,null,null,null,null,"Race/ethnicity",null,null,null,null,null,null,"Race/ethnicity",null,null,null,null,null,null,"Race/ethnicity",null,null,null,null,null,null,"Race/ethnicity",null,null,null,null,null,null,"Race/ethnicity",null,null,null,null,null,null,"Race/ethnicity",null,null,null,null,null,null,"Race/ethnicity",null,null,null,null,null,null,"Race/ethnicity",null,null,null,null,null,null,"Race/ethnicity",null,null,null,null,null,null,"Race/ethnicity",null,null,null,null,null,null,"Race/ethnicity",null,null,null,null,null,null,"Race/ethnicity",null,null,null,null,null,null,"Race/ethnicity",null,null,null,null,null,null,"Race/ethnicity",null,null,null,null,null,null,"Race/ethnicity",null,null,null,null,null,null,"Race/ethnicity",null,null,null,null,null,null,"Race/ethnicity",null,null,null,null,null,null,"Race/ethnicity",null,null,null,null,null,null,"Race/ethnicity",null,null,null,null,null,null,"Race/ethnicity",null,null,null,null,null,null,"Race/ethnicity",null,null,null,null,null,null,"Race/ethnicity",null,null,null,null,null,null,"Race/ethnicity",null,null,null,null,null,null,"Race/ethnicity",null,null,null,null,null,null,"Race/ethnicity"]
[null,"HI7","AM7","AS7","BL7","PI7","WH7","MU7","HI7","AM7","AS7","BL7","PI7","WH7","MU7","HI7","AM7","AS7","BL7","PI7","WH7","MU7","HI7","AM7","AS7","BL7","PI7","WH7","MU7","HI7","AM7","AS7","BL7","PI7","WH7","MU7","HI7","AM7","AS7","BL7","PI7","WH7","MU7","HI7","AM7","AS7","BL7","PI7","WH7","MU7","HI7","AM7","AS7","BL7","PI7","WH7","MU7","HI7","AM7","AS7","BL7","PI7","WH7","MU7","HI7","AM7","AS7","BL7","PI7","WH7","MU7","HI7","AM7","AS7","BL7","PI7","WH7","MU7","HI7","AM7","AS7","BL7","PI7","WH7","MU7","HI7","AM7","AS7","BL7","PI7","WH7","MU7","HI7","AM7","AS7","BL7","PI7","WH7","MU7","HI7","AM7","AS7","BL7","PI7","WH7","MU7","HI7","AM7","AS7","BL7","PI7","WH7","MU7","HI7","AM7","AS7","BL7","PI7","WH7","MU7","HI7","AM7","AS7","BL7","PI7","WH7","MU7","HI7","AM7","AS7","BL7","PI7","WH7","MU7","HI7","AM7","AS7","BL7","PI7","WH7","MU7","HI7","AM7","AS7","BL7","PI7","WH7","MU7","HI7","AM7","AS7","BL7","PI7","WH7","MU7","HI7","AM7","AS7","BL7","PI7","WH7","MU7","HI7","AM7","AS7","BL7","PI7","WH7","MU7","HI7","AM7","AS7","BL7","PI7","WH7","MU7","HI7","AM7","AS7","BL7","PI7","WH7","MU7","HI7","AM7","AS7","BL7","PI7","WH7","MU7","HI7","AM7","AS7","BL7","PI7","WH7","MU7","HI7","AM7","AS7","BL7","PI7","WH7","MU7","HI7","AM7","AS7","BL7","PI7","WH7","MU7","HI7","AM7","AS7","BL7","PI7","WH7","MU7","HI7","AM7","AS7","BL7","PI7","WH7","MU7","HI7","AM7","AS7","BL7","PI7","WH7","MU7","HI7","AM7","AS7","BL7","PI7","WH7","MU7","HI7","AM7","AS7","BL7","PI7","WH7","MU7","HI7","AM7","AS7","BL7","PI7","WH7","MU7","HI7","AM7","AS7","BL7","PI7","WH7","MU7","HI7","AM7","AS7","BL7","PI7","WH7","MU7","HI7","AM7","AS7","BL7","PI7","WH7","MU7","HI7","AM7","AS7","BL7","PI7","WH7","MU7","HI7","AM7","AS7","BL7","PI7","WH7","MU7","HI7","AM7","AS7","BL7","PI7","WH7","MU7","HI7","AM7","AS7","BL7","PI7","WH7","MU7","HI7","AM7","AS7","BL7","PI7","WH7","MU7","HI7","AM7","AS7","BL7","PI7","WH7","MU7","HI7","AM7","AS7","BL7","PI7","WH7","MU7","HI7","AM7","AS7","BL7","PI7","WH7","MU7","HI7","AM7","AS7","BL7","PI7","WH7","MU7","HI7","AM7","AS7","BL7","PI7","WH7","MU7","HI7","AM7","AS7","BL7","PI7","WH7","MU7","HI7","AM7","AS7","BL7","PI7","WH7","MU7","HI7","AM7","AS7","BL7","PI7","WH7","MU7","HI7","AM7","AS7","BL7","PI7","WH7","MU7","HI7","AM7","AS7","BL7","PI7","WH7","MU7","HI7","AM7","AS7","BL7","PI7","WH7","MU7","HI7","AM7","AS7","BL7","PI7","WH7","MU7","HI7","AM7","AS7","BL7","PI7","WH7","MU7","HI7","AM7","AS7","BL7","PI7","WH7","MU7","HI7","AM7","AS7","BL7","PI7","WH7","MU7","HI7","AM7","AS7","BL7","PI7","WH7","MU7","HI7","AM7","AS7","BL7","PI7","WH7","MU7","HI7","AM7","AS7","BL7","PI7","WH7","MU7","HI7","AM7","AS7","BL7","PI7","WH7","MU7"]

{"sheet":"Weighted Risk Ratio Summary","index":10,"n_rows":7,"n_cols":50,"rows_kept":7,"cut":false,"hidden":true,"merged":[[5,29,5,35],[0,3,0,7],[4,36,4,42],[4,43,4,49],[3,36,3,42],[3,43,3,49],[5,36,5,42],[5,43,5,49],[3,29,3,35],[4,29,4,35],[5,1,5,7],[5,8,5,14],[5,15,5,21],[5,22,5,28],[3,1,3,7],[3,8,3,14],[3,0,6,0],[3,15,3,21],[3,22,3,28],[4,1,4,7],[4,8,4,14],[4,15,4,21],[4,22,4,28]]}
[null,null,null,"RACE/ETHNICITY CODE DEFINITIONS\na\nHI7 = Hispanic/Latino\nAM7 = American Indian or Alaska Native\nAS7 = Asian\nBL7 = Black or African American\nPI7 = Native Hawaiian or Other Pactific Islander\nWH7 = White\nMU7 = Two or more races"]
[]
[]
["LEA/school",{"$f":"\"Weighted risk ratio\"","v":"Weighted risk ratio"},null,null,null,null,null,null,{"$f":"\"Weighted risk ratio\"","v":"Weighted risk ratio"},null,null,null,null,null,null,{"$f":"\"Weighted risk ratio\"","v":"Weighted risk ratio"},null,null,null,null,null,null,{"$f":"\"Weighted risk ratio\"","v":"Weighted risk ratio"},null,null,null,null,null,null,{"$f":"\"Weighted risk ratio\"","v":"Weighted risk ratio"},null,null,null,null,null,null,{"$f":"\"Weighted risk ratio\"","v":"Weighted risk ratio"},null,null,null,null,null,null,{"$f":"\"Weighted risk ratio\"","v":"Weighted risk ratio"}]
[null,"All children with disabilities (ages 5 [in K] through 21)",null,null,null,null,null,null,"Autism (ages 5 [in K] through 21)",null,null,null,null,null,null,"Emotional disturbance (ages 5 [in K] through 21)",null,null,null,null,null,null,"Intellectual disability (ages 5 [in K] through 21)",null,null,null,null,null,null,"Other health impairment (ages 5 [in K] through 21)",null,null,null,null,null,null,"Specific learning disability (ages 5 [in K] through 21)",null,null,null,null,null,null,"Speech or language impairment (ages 5 [in K] through 21)"]
[null,"Race/ethnicity",null,null,null,null,null,null,"Race/ethnicity",null,null,null,null,null,null,"Race/ethnicity",null,null,null,null,null,null,"Race/ethnicity",null,null,null,null,null,null,"Race/ethnicity",null,null,null,null,null,null,"Race/ethnicity",null,null,null,null,null,null,"Race/ethnicity"]
[null,"HI7","AM7","AS7","BL7","PI7","WH7","MU7","HI7","AM7","AS7","BL7","PI7","WH7","MU7","HI7","AM7","AS7","BL7","PI7","WH7","MU7","HI7","AM7","AS7","BL7","PI7","WH7","MU7","HI7","AM7","AS7","BL7","PI7","WH7","MU7","HI7","AM7","AS7","BL7","PI7","WH7","MU7","HI7","AM7","AS7","BL7","PI7","WH7","MU7"]

{"sheet":"Risk Difference","index":11,"n_rows":7,"n_cols":442,"rows_kept":7,"cut":false,"hidden":true,"merged":[[3,141,3,147],[0,3,0,7],[3,64,3,70],[3,71,3,77],[3,78,3,84],[3,85,3,91],[3,92,3,98],[3,99,3,105],[3,106,3,112],[3,113,3,119],[3,36,3,42],[3,43,3,49],[3,50,3,56],[5,78,5,84],[5,85,5,91],[5,92,5,98],[5,99,5,105],[3,29,3,35],[4,85,4,91],[3,15,3,21],[3,22,3,28],[3,134,3,140],[4,1,4,7],[4,8,4,14],[4,15,4,21],[4,22,4,28],[4,29,4,35],[3,0,6,0],[4,141,4,147],[4,134,4,140],[3,120,3,126],[3,127,3,133],[5,134,5,140],[4,120,4,126],[4,127,4,133],[5,127,5,133],[5,141,5,147],[5,120,5,126],[5,113,5,119],[5,1,5,7],[5,8,5,14],[5,15,5,21],[5,22,5,28],[3,1,3,7],[3,8,3,14],[5,64,5,70],[3,148,3,154],[3,155,3,161],[3,162,3,168],[3,169,3,175],[3,176,3,182],[5,29,5,35],[4,36,4,42],[4,43,4,49],[4,50,4,56],[5,57,5,63],[5,36,5,42],[5,43,5,49],[5,50,5,56],[4,92,4,98],[4,71,4,77],[4,78,4,84],[4,57,4,63],[3,57,3,63],[4,113,4,119],[4,106,4,112],[4,64,4,70],[4,99,4,105],[5,106,5,112],[5,71,5,77],[3,218,3,224],[3,225,3,231],[3,232,3,238],[3,239,3,245],[3,246,3,252],[3,183,3,189],[3,190,3,196],[3,197,3,203],[3,204,3,210],[3,211,3,217],[3,288,3,294],[3,295,3,301],[3,302,3,308],[3,309,3,315],[3,316,3,322],[3,253,3,259],[3,260,3,266],[3,267,3,273],[3,274,3,280],[3,281,3,287],[3,414,3,420],[3,421,3,427],[3,358,3,364],[3,365,3,371],[3,372,3,378],[3,379,3,385],[3,386,3,392],[3,323,3,329],[3,330,3,336],[3,337,3,343],[3,344,3,350],[3,351,3,357],[4,246,4,252],[4,253,4,259],[4,260,4,266],[4,267,4,273],[4,274,4,280],[3,428,3,434],[3,435,3,441],[4,148,4,154],[4,155,4,161],[4,162,4,168],[4,169,4,175],[4,176,4,182],[4,183,4,189],[4,190,4,196],[4,197,4,203],[4,204,4,210],[4,211,4,217],[4,218,4,224],[4,225,4,231],[4,232,4,238],[4,239,4,245],[3,393,3,399],[3,400,3,406],[3,407,3,413],[4,372,4,378],[4,379,4,385],[4,316,4,322],[4,323,4,329],[4,330,4,336],[4,337,4,343],[4,344,4,350],[4,281,4,287],[4,288,4,294],[4,295,4,301],[4,302,4,308],[4,309,4,315],[4,421,4,427],[4,428,4,434],[4,435,4,441],[5,148,5,154],[5,155,5,161],[5,162,5,168],[5,169,5,175],[5,176,5,182],[5,183,5,189],[5,190,5,196],[5,197,5,203],[5,204,5,210],[5,211,5,217],[5,218,5,224],[5,225,5,231],[5,232,5,238],[4,386,4,392],[4,393,4,399],[4,400,4,406],[4,407,4,413],[4,414,4,420],[4,351,4,357],[4,358,4,364],[4,365,4,371],[5,274,5,280],[5,281,5,287],[5,288,5,294],[5,295,5,301],[5,302,5,308],[5,239,5,245],[5,246,5,252],[5,253,5,259],[5,260,5,266],[5,267,5,273],[5,344,5,350],[5,351,5,357],[5,358,5,364],[5,365,5,371],[5,372,5,378],[5,309,5,315],[5,316,5,322],[5,323,5,329],[5,330,5,336],[5,337,5,343],[5,414,5,420],[5,421,5,427],[5,428,5,434],[5,435,5,441],[5,379,5,385],[5,386,5,392],[5,393,5,399],[5,400,5,406],[5,407,5,413]]}
["Hide risk columns?",null,null,"RACE/ETHNICITY CODE DEFINITIONS\na\nHI7 = Hispanic/Latino\nAM7 = American Indian or Alaska Native\nAS7 = Asian\nBL7 = Black or African American\nPI7 = Native Hawaiian or Other Pactific Islander\nWH7 = White\nMU7 = Two or more races",null,null,null,null,null,null,null,null,null,null,null,null,null,null,null,null,null,null,null,null,null,null,null,null,null,null,null,null,null,null,null,null,null,null,null,null,null,null,null,null,null,null,null,null,null,null,null,null,null,null,null,null,null,null,null,null,null,null,null,null,null,null,null,null,null,null,null,null,null,null,null,null,null,null,null,null,null,null,null,null,null,null,null,null,null,null,null,null,null,null,null,null,null,null,null,null,null," "," "," "," "," "]
["No"]
[]
["LEA/school",{"$f":"IF(TRIM(input_year)<>\"\",input_year&\": \",\"\")&\"Risk\"","v":"Risk"},null,null,null,null,null,null,{"$f":"IF(TRIM(input_year)<>\"\",input_year&\": \",\"\")&\"Risk\"","v":"Risk"},null,null,null,null,null,null,{"$f":"IF(TRIM(input_year)<>\"\",input_year&\": \",\"\")&\"Risk\"","v":"Risk"},null,null,null,null,null,null,{"$f":"IF(TRIM(input_year)<>\"\",input_year&\": \",\"\")&\"Risk\"","v":"Risk"},null,null,null,null,null,null,{"$f":"IF(TRIM(input_year)<>\"\",input_year&\": \",\"\")&\"Risk\"","v":"Risk"},null,null,null,null,null,null,{"$f":"IF(TRIM(input_year)<>\"\",input_year&\": \",\"\")&\"Risk\"","v":"Risk"},null,null,null,null,null,null,{"$f":"IF(TRIM(input_year)<>\"\",input_year&\": \",\"\")&\"Risk\"","v":"Risk"},null,null,null,null,null,null,{"$f":"IF(TRIM(input_year)<>\"\",input_year&\": \",\"\")&\"Risk for comparison\"","v":"Risk for comparison"},null,null,null,null,null,null,{"$f":"IF(TRIM(input_year)<>\"\",input_year&\": \",\"\")&\"Risk for comparison\"","v":"Risk for comparison"},null,null,null,null,null,null,{"$f":"IF(TRIM(input_year)<>\"\",input_year&\": \",\"\")&\"Risk for comparison\"","v":"Risk for comparison"},null,null,null,null,null,null,{"$f":"IF(TRIM(input_year)<>\"\",input_year&\": \",\"\")&\"Risk for comparison\"","v":"Risk for comparison"},null,null,null,null,null,null,{"$f":"IF(TRIM(input_year)<>\"\",input_year&\": \",\"\")&\"Risk for comparison\"","v":"Risk for comparison"},null,null,null,null,null,null,{"$f":"IF(TRIM(input_year)<>\"\",input_year&\": \",\"\")&\"Risk for comparison\"","v":"Risk for comparison"},null,null,null,null,null,null,{"$f":"IF(TRIM(input_year)<>\"\",input_year&\": \",\"\")&\"Risk for comparison\"","v":"Risk for comparison"},null,null,null,null,null,null,{"$f":"IF(TRIM(input_year)<>\"\",input_year&\": \",\"\")&\"Risk difference\"","v":"Risk difference"},null,null,null,null,null,null,{"$f":"IF(TRIM(input_year)<>\"\",input_year&\": \",\"\")&\"Risk difference\"","v":"Risk difference"},null,null,null,null,null,null,{"$f":"IF(TRIM(input_year)<>\"\",input_year&\": \",\"\")&\"Risk difference\"","v":"Risk difference"},null,null,null,null,null,null,{"$f":"IF(TRIM(input_year)<>\"\",input_year&\": \",\"\")&\"Risk difference\"","v":"Risk difference"},null,null,null,null,null,null,{"$f":"IF(TRIM(input_year)<>\"\",input_year&\": \",\"\")&\"Risk difference\"","v":"Risk difference"},null,null,null,null,null,null,{"$f":"IF(TRIM(input_year)<>\"\",input_year&\": \",\"\")&\"Risk difference\"","v":"Risk difference"},null,null,null,null,null,null,{"$f":"IF(TRIM(input_year)<>\"\",input_year&\": \",\"\")&\"Risk difference\"","v":"Risk difference"},null,null,null,null,null,null,{"$f":"IF(TRIM(input_year2)<>\"\",input_year2&\": \",\"\")&\"Risk\"","v":"Risk"},null,null,null,null,null,null,{"$f":"IF(TRIM(input_year2)<>\"\",input_year2&\": \",\"\")&\"Risk\"","v":"Risk"},null,null,null,null,null,null,{"$f":"IF(TRIM(input_year2)<>\"\",input_year2&\": \",\"\")&\"Risk\"","v":"Risk"},null,null,null,null,null,null,{"$f":"IF(TRIM(input_year2)<>\"\",input_year2&\": \",\"\")&\"Risk\"","v":"Risk"},null,null,null,null,null,null,{"$f":"IF(TRIM(input_year2)<>\"\",input_year2&\": \",\"\")&\"Risk\"","v":"Risk"},null,null,null,null,null,null,{"$f":"IF(TRIM(input_year2)<>\"\",input_year2&\": \",\"\")&\"Risk\"","v":"Risk"},null,null,null,null,null,null,{"$f":"IF(TRIM(input_year2)<>\"\",input_year2&\": \",\"\")&\"Risk\"","v":"Risk"},null,null,null,null,null,null,{"$f":"IF(TRIM(input_year2)<>\"\",input_year2&\": \",\"\")&\"Risk for comparison\"","v":"Risk for comparison"},null,null,null,null,null,null,{"$f":"IF(TRIM(input_year2)<>\"\",input_year2&\": \",\"\")&\"Risk for comparison\"","v":"Risk for comparison"},null,null,null,null,null,null,{"$f":"IF(TRIM(input_year2)<>\"\",input_year2&\": \",\"\")&\"Risk for comparison\"","v":"Risk for comparison"},null,null,null,null,null,null,{"$f":"IF(TRIM(input_year2)<>\"\",input_year2&\": \",\"\")&\"Risk for comparison\"","v":"Risk for comparison"},null,null,null,null,null,null,{"$f":"IF(TRIM(input_year2)<>\"\",input_year2&\": \",\"\")&\"Risk for comparison\"","v":"Risk for comparison"},null,null,null,null,null,null,{"$f":"IF(TRIM(input_year2)<>\"\",input_year2&\": \",\"\")&\"Risk for comparison\"","v":"Risk for comparison"},null,null,null,null,null,null,{"$f":"IF(TRIM(input_year2)<>\"\",input_year2&\": \",\"\")&\"Risk for comparison\"","v":"Risk for comparison"},null,null,null,null,null,null,{"$f":"IF(TRIM(input_year2)<>\"\",input_year2&\": \",\"\")&\"Risk difference\"","v":"Risk difference"},null,null,null,null,null,null,{"$f":"IF(TRIM(input_year2)<>\"\",input_year2&\": \",\"\")&\"Risk difference\"","v":"Risk difference"},null,null,null,null,null,null,{"$f":"IF(TRIM(input_year2)<>\"\",input_year2&\": \",\"\")&\"Risk difference\"","v":"Risk difference"},null,null,null,null,null,null,{"$f":"IF(TRIM(input_year2)<>\"\",input_year2&\": \",\"\")&\"Risk difference\"","v":"Risk difference"},null,null,null,null,null,null,{"$f":"IF(TRIM(input_year2)<>\"\",input_year2&\": \",\"\")&\"Risk difference\"","v":"Risk difference"},null,null,null,null,null,null,{"$f":"IF(TRIM(input_year2)<>\"\",input_year2&\": \",\"\")&\"Risk difference\"","v":"Risk difference"},null,null,null,null,null,null,{"$f":"IF(TRIM(input_year2)<>\"\",input_year2&\": \",\"\")&\"Risk difference\"","v":"Risk difference"},null,null,null,null,null,null,{"$f":"IF(TRIM(input_year3)<>\"\",input_year3&\": \",\"\")&\"Risk\"","v":"Risk"},null,null,null,null,null,null,{"$f":"IF(TRIM(input_year3)<>\"\",input_year3&\": \",\"\")&\"Risk\"","v":"Risk"},null,null,null,null,null,null,{"$f":"IF(TRIM(input_year3)<>\"\",input_year3&\": \",\"\")&\"Risk\"","v":"Risk"},null,null,null,null,null,null,{"$f":"IF(TRIM(input_year3)<>\"\",input_year3&\": \",\"\")&\"Risk\"","v":"Risk"},null,null,null,null,null,null,{"$f":"IF(TRIM(input_year3)<>\"\",input_year3&\": \",\"\")&\"Risk\"","v":"Risk"},null,null,null,null,null,null,{"$f":"IF(TRIM(input_year3)<>\"\",input_year3&\": \",\"\")&\"Risk\"","v":"Risk"},null,null,null,null,null,null,{"$f":"IF(TRIM(input_year3)<>\"\",input_year3&\": \",\"\")&\"Risk\"","v":"Risk"},null,null,null,null,null,null,{"$f":"IF(TRIM(input_year3)<>\"\",input_year3&\": \",\"\")&\"Risk for comparison\"","v":"Risk for comparison"},null,null,null,null,null,null,{"$f":"IF(TRIM(input_year3)<>\"\",input_year3&\": \",\"\")&\"Risk for comparison\"","v":"Risk for comparison"},null,null,null,null,null,null,{"$f":"IF(TRIM(input_year3)<>\"\",input_year3&\": \",\"\")&\"Risk for comparison\"","v":"Risk for comparison"},null,null,null,null,null,null,{"$f":"IF(TRIM(input_year3)<>\"\",input_year3&\": \",\"\")&\"Risk for comparison\"","v":"Risk for comparison"},null,null,null,null,null,null,{"$f":"IF(TRIM(input_year3)<>\"\",input_year3&\": \",\"\")&\"Risk for comparison\"","v":"Risk for comparison"},null,null,null,null,null,null,{"$f":"IF(TRIM(input_year3)<>\"\",input_year3&\": \",\"\")&\"Risk for comparison\"","v":"Risk for comparison"},null,null,null,null,null,null,{"$f":"IF(TRIM(input_year3)<>\"\",input_year3&\": \",\"\")&\"Risk for comparison\"","v":"Risk for comparison"},null,null,null,null,null,null,{"$f":"IF(TRIM(input_year3)<>\"\",input_year3&\": \",\"\")&\"Risk difference\"","v":"Risk difference"},null,null,null,null,null,null,{"$f":"IF(TRIM(input_year3)<>\"\",input_year3&\": \",\"\")&\"Risk difference\"","v":"Risk difference"},null,null,null,null,null,null,{"$f":"IF(TRIM(input_year3)<>\"\",input_year3&\": \",\"\")&\"Risk difference\"","v":"Risk difference"},null,null,null,null,null,null,{"$f":"IF(TRIM(input_year3)<>\"\",input_year3&\": \",\"\")&\"Risk difference\"","v":"Risk difference"},null,null,null,null,null,null,{"$f":"IF(TRIM(input_year3)<>\"\",input_year3&\": \",\"\")&\"Risk difference\"","v":"Risk difference"},null,null,null,null,null,null,{"$f":"IF(TRIM(input_year3)<>\"\",input_year3&\": \",\"\")&\"Risk difference\"","v":"Risk difference"},null,null,null,null,null,null,{"$f":"IF(TRIM(input_year3)<>\"\",input_year3&\": \",\"\")&\"Risk difference\"","v":"Risk difference"}]
[null,"All children with disabilities (ages 5 [in K] through 21)",null,null,null,null,null,null,"Autism (ages 5 [in K] through 21)",null,null,null,null,null,null,"Emotional disturbance (ages 5 [in K] through 21)",null,null,null,null,null,null,"Intellectual disability (ages 5 [in K] through 21)",null,null,null,null,null,null,"Other health impairment (ages 5 [in K] through 21)",null,null,null,null,null,null,"Specific learning disability (ages 5 [in K] through 21)",null,null,null,null,null,null,"Speech or language impairment (ages 5 [in K] through 21)",null,null,null,null,null,null,"All children with disabilities (ages 5 [in K] through 21)",null,null,null,null,null,null,"Autism (ages 5 [in K] through 21)",null,null,null,null,null,null,"Emotional disturbance (ages 5 [in K] through 21)",null,null,null,null,null,null," Intellectual disability (ages 5 [in K] through 21)",null,null,null,null,null,null,"Other health impairment (ages 5 [in K] through 21)",null,null,null,null,null,null,"Specific learning disability (ages 5 [in K] through 21)",null,null,null,null,null,null,"Speech or language impairment (ages 5 [in K] through 21)",null,null,null,null,null,null,"All children with disabilities (ages 5 [in K] through 21)",null,null,null,null,null,null,"Autism (ages 5 [in K] through 21)",null,null,null,null,null,null,"Emotional disturbance (ages 5 [in K] through 21)",null,null,null,null,null,null,"Intellectual disability (ages 5 [in K] through 21)",null,null,null,null,null,null,"Other health impairment (ages 5 [in K] through 21)",null,null,null,null,null,null,"Specific learning disability (ages 5 [in K] through 21)",null,null,null,null,null,null,"Speech or language impairment (ages 5 [in K] through 21)",null,null,null,null,null,null,"All children with disabilities (ages 5 [in K] through 21)",null,null,null,null,null,null,"Autism (ages 5 [in K] through 21)",null,null,null,null,null,null,"Emotional disturbance (ages 5 [in K] through 21)",null,null,null,null,null,null,"Intellectual disability (ages 5 [in K] through 21)",null,null,null,null,null,null,"Other health impairment (ages 5 [in K] through 21)",null,null,null,null,null,null,"Specific learning disability (ages 5 [in K] through 21)",null,null,null,null,null,null,"Speech or language impairment (ages 5 [in K] through 21)",null,null,null,null,null,null,"All children with disabilities (ages 5 [in K] through 21)",null,null,null,null,null,null,"Autism (ages 5 [in K] through 21)",null,null,null,null,null,null,"Emotional disturbance (ages 5 [in K] through 21)",null,null,null,null,null,null,"Intellectual disability (ages 5 [in K] through 21)",null,null,null,null,null,null,"Other health impairment (ages 5 [in K] through 21)",null,null,null,null,null,null,"Specific learning disability (ages 5 [in K] through 21)",null,null,null,null,null,null,"Speech or language impairment (ages 5 [in K] through 21)",null,null,null,null,null,null,"All children with disabilities (ages 5 [in K] through 21)",null,null,null,null,null,null,"Autism (ages 5 [in K] through 21)",null,null,null,null,null,null,"Emotional disturbance (ages 5 [in K] through 21)",null,null,null,null,null,null,"Intellectual disability (ages 5 [in K] through 21)",null,null,null,null,null,null,"Other health impairment (ages 5 [in K] through 21)",null,null,null,null,null,null,"Specific learning disability (ages 5 [in K] through 21)",null,null,null,null,null,null,"Speech or language impairment (ages 5 [in K] through 21)",null,null,null,null,null,null,"All children with disabilities (ages 5 [in K] through 21)",null,null,null,null,null,null,"Autism (ages 5 [in K] through 21)",null,null,null,null,null,null,"Emotional disturbance (ages 5 [in K] through 21)",null,null,null,null,null,null,"Intellectual disability (ages 5 [in K] through 21)",null,null,null,null,null,null,"Other health impairment (ages 5 [in K] through 21)",null,null,null,null,null,null,"Specific learning disability (ages 5 [in K] through 21)",null,null,null,null,null,null,"Speech or language impairment (ages 5 [in K] through 21)",null,null,null,null,null,null,"All children with disabilities (ages 5 [in K] through 21)",null,null,null,null,null,null,"Autism (ages 5 [in K] through 21)",null,null,null,null,null,null,"Emotional disturbance (ages 5 [in K] through 21)",null,null,null,null,null,null,"Intellectual disability (ages 5 [in K] through 21)",null,null,null,null,null,null,"Other health impairment (ages 5 [in K] through 21)",null,null,null,null,null,null,"Specific learning disability (ages 5 [in K] through 21)",null,null,null,null,null,null,"Speech or language impairment (ages 5 [in K] through 21)",null,null,null,null,null,null,"All children with disabilities (ages 5 [in K] through 21)",null,null,null,null,null,null,"Autism (ages 5 [in K] through 21)",null,null,null,null,null,null,"Emotional disturbance (ages 5 [in K] through 21)",null,null,null,null,null,null,"Intellectual disability (ages 5 [in K] through 21)",null,null,null,null,null,null,"Other health impairment (ages 5 [in K] through 21)",null,null,null,null,null,null,"Specific learning disability (ages 5 [in K] through 21)",null,null,null,null,null,null,"Speech or language impairment (ages 5 [in K] through 21)"]
[null,"Race/ethnicity",null,null,null,null,null,null,"Race/ethnicity",null,null,null,null,null,null,"Race/ethnicity",null,null,null,null,null,null,"Race/ethnicity",null,null,null,null,null,null,"Race/ethnicity",null,null,null,null,null,null,"Race/ethnicity",null,null,null,null,null,null,"Race/ethnicity",null,null,null,null,null,null,"Race/ethnicity",null,null,null,null,null,null,"Race/ethnicity",null,null,null,null,null,null,"Race/ethnicity",null,null,null,null,null,null,"Race/ethnicity",null,null,null,null,null,null,"Race/ethnicity",null,null,null,null,null,null,"Race/ethnicity",null,null,null,null,null,null,"Race/ethnicity",null,null,null,null,null,null,"Race/ethnicity",null,null,null,null,null,null,"Race/ethnicity",null,null,null,null,null,null,"Race/ethnicity",null,null,null,null,null,null,"Race/ethnicity",null,null,null,null,null,null,"Race/ethnicity",null,null,null,null,null,null,"Race/ethnicity",null,null,null,null,null,null,"Race/ethnicity",null,null,null,null,null,null,"Race/ethnicity",null,null,null,null,null,null,"Race/ethnicity",null,null,null,null,null,null,"Race/ethnicity",null,null,null,null,null,null,"Race/ethnicity",null,null,null,null,null,null,"Race/ethnicity",null,null,null,null,null,null,"Race/ethnicity",null,null,null,null,null,null,"Race/ethnicity",null,null,null,null,null,null,"Race/ethnicity",null,null,null,null,null,null,"Race/ethnicity",null,null,null,null,null,null,"Race/ethnicity",null,null,null,null,null,null,"Race/ethnicity",null,null,null,null,null,null,"Race/ethnicity",null,null,null,null,null,null,"Race/ethnicity",null,null,null,null,null,null,"Race/ethnicity",null,null,null,null,null,null,"Race/ethnicity",null,null,null,null,null,null,"Race/ethnicity",null,null,null,null,null,null,"Race/ethnicity",null,null,null,null,null,null,"Race/ethnicity",null,null,null,null,null,null,"Race/ethnicity",null,null,null,null,null,null,"Race/ethnicity",null,null,null,null,null,null,"Race/ethnicity",null,null,null,null,null,null,"Race/ethnicity",null,null,null,null,null,null,"Race/ethnicity",null,null,null,null,null,null,"Race/ethnicity",null,null,null,null,null,null,"Race/ethnicity",null,null,null,null,null,null,"Race/ethnicity",null,null,null,null,null,null,"Race/ethnicity",null,null,null,null,null,null,"Race/ethnicity",null,null,null,null,null,null,"Race/ethnicity",null,null,null,null,null,null,"Race/ethnicity",null,null,null,null,null,null,"Race/ethnicity",null,null,null,null,null,null,"Race/ethnicity",null,null,null,null,null,null,"Race/ethnicity",null,null,null,null,null,null,"Race/ethnicity",null,null,null,null,null,null,"Race/ethnicity",null,null,null,null,null,null,"Race/ethnicity",null,null,null,null,null,null,"Race/ethnicity",null,null,null,null,null,null,"Race/ethnicity",null,null,null,null,null,null,"Race/ethnicity",null,null,null,null,null,null,"Race/ethnicity",null,null,null,null,null,null,"Race/ethnicity",null,null,null,null,null,null,"Race/ethnicity"]
[null,"HI7","AM7","AS7","BL7","PI7","WH7","MU7","HI7","AM7","AS7","BL7","PI7","WH7","MU7","HI7","AM7","AS7","BL7","PI7","WH7","MU7","HI7","AM7","AS7","BL7","PI7","WH7","MU7","HI7","AM7","AS7","BL7","PI7","WH7","MU7","HI7","AM7","AS7","BL7","PI7","WH7","MU7","HI7","AM7","AS7","BL7","PI7","WH7","MU7","HI7","AM7","AS7","BL7","PI7","WH7","MU7","HI7","AM7","AS7","BL7","PI7","WH7","MU7","HI7","AM7","AS7","BL7","PI7","WH7","MU7","HI7","AM7","AS7","BL7","PI7","WH7","MU7","HI7","AM7","AS7","BL7","PI7","WH7","MU7","HI7","AM7","AS7","BL7","PI7","WH7","MU7","HI7","AM7","AS7","BL7","PI7","WH7","MU7","HI7","AM7","AS7","BL7","PI7","WH7","MU7","HI7","AM7","AS7","BL7","PI7","WH7","MU7","HI7","AM7","AS7","BL7","PI7","WH7","MU7","HI7","AM7","AS7","BL7","PI7","WH7","MU7","HI7","AM7","AS7","BL7","PI7","WH7","MU7","HI7","AM7","AS7","BL7","PI7","WH7","MU7","HI7","AM7","AS7","BL7","PI7","WH7","MU7","HI7","AM7","AS7","BL7","PI7","WH7","MU7","HI7","AM7","AS7","BL7","PI7","WH7","MU7","HI7","AM7","AS7","BL7","PI7","WH7","MU7","HI7","AM7","AS7","BL7","PI7","WH7","MU7","HI7","AM7","AS7","BL7","PI7","WH7","MU7","HI7","AM7","AS7","BL7","PI7","WH7","MU7","HI7","AM7","AS7","BL7","PI7","WH7","MU7","HI7","AM7","AS7","BL7","PI7","WH7","MU7","HI7","AM7","AS7","BL7","PI7","WH7","MU7","HI7","AM7","AS7","BL7","PI7","WH7","MU7","HI7","AM7","AS7","BL7","PI7","WH7","MU7","HI7","AM7","AS7","BL7","PI7","WH7","MU7","HI7","AM7","AS7","BL7","PI7","WH7","MU7","HI7","AM7","AS7","BL7","PI7","WH7","MU7","HI7","AM7","AS7","BL7","PI7","WH7","MU7","HI7","AM7","AS7","BL7","PI7","WH7","MU7","HI7","AM7","AS7","BL7","PI7","WH7","MU7","HI7","AM7","AS7","BL7","PI7","WH7","MU7","HI7","AM7","AS7","BL7","PI7","WH7","MU7","HI7","AM7","AS7","BL7","PI7","WH7","MU7","HI7","AM7","AS7","BL7","PI7","WH7","MU7","HI7","AM7","AS7","BL7","PI7","WH7","MU7","HI7","AM7","AS7","BL7","PI7","WH7","MU7","HI7","AM7","AS7","BL7","PI7","WH7","MU7","HI7","AM7","AS7","BL7","PI7","WH7","MU7","HI7","AM7","AS7","BL7","PI7","WH7","MU7","HI7","AM7","AS7","BL7","PI7","WH7","MU7","HI7","AM7","AS7","BL7","PI7","WH7","MU7","HI7","AM7","AS7","BL7","PI7","WH7","MU7","HI7","AM7","AS7","BL7","PI7","WH7","MU7","HI7","AM7","AS7","BL7","PI7","WH7","MU7","HI7","AM7","AS7","BL7","PI7","WH7","MU7","HI7","AM7","AS7","BL7","PI7","WH7","MU7","HI7","AM7","AS7","BL7","PI7","WH7","MU7","HI7","AM7","AS7","BL7","PI7","WH7","MU7","HI7","AM7","AS7","BL7","PI7","WH7","MU7","HI7","AM7","AS7","BL7","PI7","WH7","MU7","HI7","AM7","AS7","BL7","PI7","WH7","MU7","HI7","AM7","AS7","BL7","PI7","WH7","MU7","HI7","AM7","AS7","BL7","PI7","WH7","MU7","HI7","AM7","AS7","BL7","PI7","WH7","MU7","HI7","AM7","AS7","BL7","PI7","WH7","MU7"]

{"sheet":"Risk Difference Summary","index":12,"n_rows":7,"n_cols":50,"rows_kept":7,"cut":false,"hidden":true,"merged":[[3,0,6,0],[5,29,5,35],[0,3,0,7],[4,36,4,42],[4,43,4,49],[3,36,3,42],[3,43,3,49],[5,36,5,42],[5,43,5,49],[3,29,3,35],[4,29,4,35],[5,1,5,7],[5,8,5,14],[5,15,5,21],[5,22,5,28],[3,1,3,7],[3,8,3,14],[3,15,3,21],[3,22,3,28],[4,1,4,7],[4,8,4,14],[4,15,4,21],[4,22,4,28]]}
[null,null,null,"RACE/ETHNICITY CODE DEFINITIONS\na\nHI7 = Hispanic/Latino\nAM7 = American Indian or Alaska Native\nAS7 = Asian\nBL7 = Black or African American\nPI7 = Native Hawaiian or Other Pactific Islander\nWH7 = White\nMU7 = Two or more races"]
[]
[]
["LEA/school",{"$f":"\"Risk difference\"","v":"Risk difference"},null,null,null,null,null,null,{"$f":"\"Risk difference\"","v":"Risk difference"},null,null,null,null,null,null,{"$f":"\"Risk difference\"","v":"Risk difference"},null,null,null,null,null,null,{"$f":"\"Risk difference\"","v":"Risk difference"},null,null,null,null,null,null,{"$f":"\"Risk difference\"","v":"Risk difference"},null,null,null,null,null,null,{"$f":"\"Risk difference\"","v":"Risk difference"},null,null,null,null,null,null,{"$f":"\"Risk difference\"","v":"Risk difference"}]
[null,"All children with disabilities (ages 5 [in K] through 21)",null,null,null,null,null,null,"Autism (ages 5 [in K] through 21)",null,null,null,null,null,null,"Emotional disturbance (ages 5 [in K] through 21)",null,null,null,null,null,null,"Intellectual disability (ages 5 [in K] through 21)",null,null,null,null,null,null,"Other health impairment (ages 5 [in K] through 21)",null,null,null,null,null,null,"Specific learning disability (ages 5 [in K] through 21)",null,null,null,null,null,null,"Speech or language impairment (ages 5 [in K] through 21)"]
[null,"Race/ethnicity",null,null,null,null,null,null,"Race/ethnicity",null,null,null,null,null,null,"Race/ethnicity",null,null,null,null,null,null,"Race/ethnicity",null,null,null,null,null,null,"Race/ethnicity",null,null,null,null,null,null,"Race/ethnicity",null,null,null,null,null,null,"Race/ethnicity"]
[null,"HI7","AM7","AS7","BL7","PI7","WH7","MU7","HI7","AM7","AS7","BL7","PI7","WH7","MU7","HI7","AM7","AS7","BL7","PI7","WH7","MU7","HI7","AM7","AS7","BL7","PI7","WH7","MU7","HI7","AM7","AS7","BL7","PI7","WH7","MU7","HI7","AM7","AS7","BL7","PI7","WH7","MU7","HI7","AM7","AS7","BL7","PI7","WH7","MU7"]

{"sheet":"Alternate Risk Ratio","index":13,"n_rows":7,"n_cols":442,"rows_kept":7,"cut":false,"hidden":true,"merged":[[5,85,5,91],[5,78,5,84],[4,78,4,84],[4,85,4,91],[3,78,3,84],[3,85,3,91],[3,92,3,98],[4,141,4,147],[4,120,4,126],[4,92,4,98],[4,57,4,63],[3,1,3,7],[3,8,3,14],[3,15,3,21],[3,22,3,28],[3,99,3,105],[3,141,3,147],[3,106,3,112],[3,113,3,119],[3,120,3,126],[3,127,3,133],[3,134,3,140],[5,8,5,14],[5,15,5,21],[5,22,5,28],[4,1,4,7],[4,15,4,21],[4,22,4,28],[4,8,4,14],[3,148,3,154],[0,3,0,7],[3,71,3,77],[3,29,3,35],[5,134,5,140],[5,141,5,147],[5,92,5,98],[4,127,4,133],[4,134,4,140],[5,127,5,133],[5,99,5,105],[5,106,5,112],[5,113,5,119],[5,120,5,126],[4,106,4,112],[4,113,4,119],[4,99,4,105],[3,155,3,161],[3,162,3,168],[3,169,3,175],[3,176,3,182],[3,0,6,0],[4,71,4,77],[5,50,5,56],[5,57,5,63],[5,64,5,70],[5,71,5,77],[4,64,4,70],[4,29,4,35],[5,36,5,42],[5,43,5,49],[3,36,3,42],[3,43,3,49],[4,36,4,42],[4,43,4,49],[3,57,3,63],[3,64,3,70],[5,29,5,35],[3,50,3,56],[4,50,4,56],[5,1,5,7],[3,218,3,224],[3,225,3,231],[3,232,3,238],[3,239,3,245],[3,246,3,252],[3,183,3,189],[3,190,3,196],[3,197,3,203],[3,204,3,210],[3,211,3,217],[3,288,3,294],[3,295,3,301],[3,302,3,308],[3,309,3,315],[3,316,3,322],[3,253,3,259],[3,260,3,266],[3,267,3,273],[3,274,3,280],[3,281,3,287],[3,414,3,420],[3,421,3,427],[3,358,3,364],[3,365,3,371],[3,372,3,378],[3,379,3,385],[3,386,3,392],[3,323,3,329],[3,330,3,336],[3,337,3,343],[3,344,3,350],[3,351,3,357],[4,246,4,252],[4,253,4,259],[4,260,4,266],[4,267,4,273],[4,274,4,280],[3,428,3,434],[3,435,3,441],[4,148,4,154],[4,155,4,161],[4,162,4,168],[4,169,4,175],[4,176,4,182],[4,183,4,189],[4,190,4,196],[4,197,4,203],[4,204,4,210],[4,211,4,217],[4,218,4,224],[4,225,4,231],[4,232,4,238],[4,239,4,245],[3,393,3,399],[3,400,3,406],[3,407,3,413],[4,372,4,378],[4,379,4,385],[4,316,4,322],[4,323,4,329],[4,330,4,336],[4,337,4,343],[4,344,4,350],[4,281,4,287],[4,288,4,294],[4,295,4,301],[4,302,4,308],[4,309,4,315],[4,421,4,427],[4,428,4,434],[4,435,4,441],[5,148,5,154],[5,155,5,161],[5,162,5,168],[5,169,5,175],[5,176,5,182],[5,183,5,189],[5,190,5,196],[5,197,5,203],[5,204,5,210],[5,211,5,217],[5,218,5,224],[5,225,5,231],[5,232,5,238],[4,386,4,392],[4,393,4,399],[4,400,4,406],[4,407,4,413],[4,414,4,420],[4,351,4,357],[4,358,4,364],[4,365,4,371],[5,274,5,280],[5,281,5,287],[5,288,5,294],[5,295,5,301],[5,302,5,308],[5,239,5,245],[5,246,5,252],[5,253,5,259],[5,260,5,266],[5,267,5,273],[5,344,5,350],[5,351,5,357],[5,358,5,364],[5,365,5,371],[5,372,5,378],[5,309,5,315],[5,316,5,322],[5,323,5,329],[5,330,5,336],[5,337,5,343],[5,414,5,420],[5,421,5,427],[5,428,5,434],[5,435,5,441],[5,379,5,385],[5,386,5,392],[5,393,5,399],[5,400,5,406],[5,407,5,413]]}
["Hide risk columns?",null,null,"RACE/ETHNICITY CODE DEFINITIONS\na\nHI7 = Hispanic/Latino\nAM7 = American Indian or Alaska Native\nAS7 = Asian\nBL7 = Black or African American\nPI7 = Native Hawaiian or Other Pactific Islander\nWH7 = White\nMU7 = Two or more races",null,null,null,null,null,null,null,null,null,null,null,null,null,null,null,null,null,null,null,null,null,null,null,null,null,null,null,null,null,null,null,null,null,null,null,null,null,null,null,null,null,null,null,null,null,null,null,null,null,null,null,null,null,null,null,null,null,null,null,null,null,null,null,null,null,null,null,null,null,null,null,null,null,null,null,null,null,null,null,null,null,null,null,null,null,null,null,null,null,null,null,null,null,null,null,null,null," "," "," "," "," "]
["No"]
[]
["LEA/school",{"$f":"IF(TRIM(input_year)<>\"\",input_year&\": \",\"\")&\"Risk\"","v":"Risk"},null,null,null,null,null,null,{"$f":"IF(TRIM(input_year)<>\"\",input_year&\": \",\"\")&\"Risk\"","v":"Risk"},null,null,null,null,null,null,{"$f":"IF(TRIM(input_year)<>\"\",input_year&\": \",\"\")&\"Risk\"","v":"Risk"},null,null,null,null,null,null,{"$f":"IF(TRIM(input_year)<>\"\",input_year&\": \",\"\")&\"Risk\"","v":"Risk"},null,null,null,null,null,null,{"$f":"IF(TRIM(input_year)<>\"\",input_year&\": \",\"\")&\"Risk\"","v":"Risk"},null,null,null,null,null,null,{"$f":"IF(TRIM(input_year)<>\"\",input_year&\": \",\"\")&\"Risk\"","v":"Risk"},null,null,null,null,null,null,{"$f":"IF(TRIM(input_year)<>\"\",input_year&\": \",\"\")&\"Risk\"","v":"Risk"},null,null,null,null,null,null,{"$f":"IF(TRIM(input_year)<>\"\",input_year&\": \",\"\")&\"Risk for comparison\"","v":"Risk for comparison"},null,null,null,null,null,null,{"$f":"IF(TRIM(input_year)<>\"\",input_year&\": \",\"\")&\"Risk for comparison\"","v":"Risk for comparison"},null,null,null,null,null,null,{"$f":"IF(TRIM(input_year)<>\"\",input_year&\": \",\"\")&\"Risk for comparison\"","v":"Risk for comparison"},null,null,null,null,null,null,{"$f":"IF(TRIM(input_year)<>\"\",input_year&\": \",\"\")&\"Risk for comparison\"","v":"Risk for comparison"},null,null,null,null,null,null,{"$f":"IF(TRIM(input_year)<>\"\",input_year&\": \",\"\")&\"Risk for comparison\"","v":"Risk for comparison"},null,null,null,null,null,null,{"$f":"IF(TRIM(input_year)<>\"\",input_year&\": \",\"\")&\"Risk for comparison\"","v":"Risk for comparison"},null,null,null,null,null,null,{"$f":"IF(TRIM(input_year)<>\"\",input_year&\": \",\"\")&\"Risk for comparison\"","v":"Risk for comparison"},null,null,null,null,null,null,{"$f":"IF(TRIM(input_year)<>\"\",input_year&\": \",\"\")&\"Alternate risk ratio\"","v":"Alternate risk ratio"},null,null,null,null,null,null,{"$f":"IF(TRIM(input_year)<>\"\",input_year&\": \",\"\")&\"Alternate risk ratio\"","v":"Alternate risk ratio"},null,null,null,null,null,null,{"$f":"IF(TRIM(input_year)<>\"\",input_year&\": \",\"\")&\"Alternate risk ratio\"","v":"Alternate risk ratio"},null,null,null,null,null,null,{"$f":"IF(TRIM(input_year)<>\"\",input_year&\": \",\"\")&\"Alternate risk ratio\"","v":"Alternate risk ratio"},null,null,null,null,null,null,{"$f":"IF(TRIM(input_year)<>\"\",input_year&\": \",\"\")&\"Alternate risk ratio\"","v":"Alternate risk ratio"},null,null,null,null,null,null,{"$f":"IF(TRIM(input_year)<>\"\",input_year&\": \",\"\")&\"Alternate risk ratio\"","v":"Alternate risk ratio"},null,null,null,null,null,null,{"$f":"IF(TRIM(input_year)<>\"\",input_year&\": \",\"\")&\"Alternate risk ratio\"","v":"Alternate risk ratio"},null,null,null,null,null,null,{"$f":"IF(TRIM(input_year2)<>\"\",input_year2&\": \",\"\")&\"Risk\"","v":"Risk"},null,null,null,null,null,null,{"$f":"IF(TRIM(input_year2)<>\"\",input_year2&\": \",\"\")&\"Risk\"","v":"Risk"},null,null,null,null,null,null,{"$f":"IF(TRIM(input_year2)<>\"\",input_year2&\": \",\"\")&\"Risk\"","v":"Risk"},null,null,null,null,null,null,{"$f":"IF(TRIM(input_year2)<>\"\",input_year2&\": \",\"\")&\"Risk\"","v":"Risk"},null,null,null,null,null,null,{"$f":"IF(TRIM(input_year2)<>\"\",input_year2&\": \",\"\")&\"Risk\"","v":"Risk"},null,null,null,null,null,null,{"$f":"IF(TRIM(input_year2)<>\"\",input_year2&\": \",\"\")&\"Risk\"","v":"Risk"},null,null,null,null,null,null,{"$f":"IF(TRIM(input_year2)<>\"\",input_year2&\": \",\"\")&\"Risk\"","v":"Risk"},null,null,null,null,null,null,{"$f":"IF(TRIM(input_year2)<>\"\",input_year2&\": \",\"\")&\"Risk for comparison\"","v":"Risk for comparison"},null,null,null,null,null,null,{"$f":"IF(TRIM(input_year2)<>\"\",input_year2&\": \",\"\")&\"Risk for comparison\"","v":"Risk for comparison"},null,null,null,null,null,null,{"$f":"IF(TRIM(input_year2)<>\"\",input_year2&\": \",\"\")&\"Risk for comparison\"","v":"Risk for comparison"},null,null,null,null,null,null,{"$f":"IF(TRIM(input_year2)<>\"\",input_year2&\": \",\"\")&\"Risk for comparison\"","v":"Risk for comparison"},null,null,null,null,null,null,{"$f":"IF(TRIM(input_year2)<>\"\",input_year2&\": \",\"\")&\"Risk for comparison\"","v":"Risk for comparison"},null,null,null,null,null,null,{"$f":"IF(TRIM(input_year2)<>\"\",input_year2&\": \",\"\")&\"Risk for comparison\"","v":"Risk for comparison"},null,null,null,null,null,null,{"$f":"IF(TRIM(input_year2)<>\"\",input_year2&\": \",\"\")&\"Risk for comparison\"","v":"Risk for comparison"},null,null,null,null,null,null,{"$f":"IF(TRIM(input_year2)<>\"\",input_year2&\": \",\"\")&\"Alternate risk ratio\"","v":"Alternate risk ratio"},null,null,null,null,null,null,{"$f":"IF(TRIM(input_year2)<>\"\",input_year2&\": \",\"\")&\"Alternate risk ratio\"","v":"Alternate risk ratio"},null,null,null,null,null,null,{"$f":"IF(TRIM(input_year2)<>\"\",input_year2&\": \",\"\")&\"Alternate risk ratio\"","v":"Alternate risk ratio"},null,null,null,null,null,null,{"$f":"IF(TRIM(input_year2)<>\"\",input_year2&\": \",\"\")&\"Alternate risk ratio\"","v":"Alternate risk ratio"},null,null,null,null,null,null,{"$f":"IF(TRIM(input_year2)<>\"\",input_year2&\": \",\"\")&\"Alternate risk ratio\"","v":"Alternate risk ratio"},null,null,null,null,null,null,{"$f":"IF(TRIM(input_year2)<>\"\",input_year2&\": \",\"\")&\"Alternate risk ratio\"","v":"Alternate risk ratio"},null,null,null,null,null,null,{"$f":"IF(TRIM(input_year2)<>\"\",input_year2&\": \",\"\")&\"Alternate risk ratio\"","v":"Alternate risk ratio"},null,null,null,null,null,null,{"$f":"IF(TRIM(input_year3)<>\"\",input_year3&\": \",\"\")&\"Risk\"","v":"Risk"},null,null,null,null,null,null,{"$f":"IF(TRIM(input_year3)<>\"\",input_year3&\": \",\"\")&\"Risk\"","v":"Risk"},null,null,null,null,null,null,{"$f":"IF(TRIM(input_year3)<>\"\",input_year3&\": \",\"\")&\"Risk\"","v":"Risk"},null,null,null,null,null,null,{"$f":"IF(TRIM(input_year3)<>\"\",input_year3&\": \",\"\")&\"Risk\"","v":"Risk"},null,null,null,null,null,null,{"$f":"IF(TRIM(input_year3)<>\"\",input_year3&\": \",\"\")&\"Risk\"","v":"Risk"},null,null,null,null,null,null,{"$f":"IF(TRIM(input_year3)<>\"\",input_year3&\": \",\"\")&\"Risk\"","v":"Risk"},null,null,null,null,null,null,{"$f":"IF(TRIM(input_year3)<>\"\",input_year3&\": \",\"\")&\"Risk\"","v":"Risk"},null,null,null,null,null,null,{"$f":"IF(TRIM(input_year3)<>\"\",input_year3&\": \",\"\")&\"Risk for comparison\"","v":"Risk for comparison"},null,null,null,null,null,null,{"$f":"IF(TRIM(input_year3)<>\"\",input_year3&\": \",\"\")&\"Risk for comparison\"","v":"Risk for comparison"},null,null,null,null,null,null,{"$f":"IF(TRIM(input_year3)<>\"\",input_year3&\": \",\"\")&\"Risk for comparison\"","v":"Risk for comparison"},null,null,null,null,null,null,{"$f":"IF(TRIM(input_year3)<>\"\",input_year3&\": \",\"\")&\"Risk for comparison\"","v":"Risk for comparison"},null,null,null,null,null,null,{"$f":"IF(TRIM(input_year3)<>\"\",input_year3&\": \",\"\")&\"Risk for comparison\"","v":"Risk for comparison"},null,null,null,null,null,null,{"$f":"IF(TRIM(input_year3)<>\"\",input_year3&\": \",\"\")&\"Risk for comparison\"","v":"Risk for comparison"},null,null,null,null,null,null,{"$f":"IF(TRIM(input_year3)<>\"\",input_year3&\": \",\"\")&\"Risk for comparison\"","v":"Risk for comparison"},null,null,null,null,null,null,{"$f":"IF(TRIM(input_year3)<>\"\",input_year3&\": \",\"\")&\"Alternate risk ratio\"","v":"Alternate risk ratio"},null,null,null,null,null,null,{"$f":"IF(TRIM(input_year3)<>\"\",input_year3&\": \",\"\")&\"Alternate risk ratio\"","v":"Alternate risk ratio"},null,null,null,null,null,null,{"$f":"IF(TRIM(input_year3)<>\"\",input_year3&\": \",\"\")&\"Alternate risk ratio\"","v":"Alternate risk ratio"},null,null,null,null,null,null,{"$f":"IF(TRIM(input_year3)<>\"\",input_year3&\": \",\"\")&\"Alternate risk ratio\"","v":"Alternate risk ratio"},null,null,null,null,null,null,{"$f":"IF(TRIM(input_year3)<>\"\",input_year3&\": \",\"\")&\"Alternate risk ratio\"","v":"Alternate risk ratio"},null,null,null,null,null,null,{"$f":"IF(TRIM(input_year3)<>\"\",input_year3&\": \",\"\")&\"Alternate risk ratio\"","v":"Alternate risk ratio"},null,null,null,null,null,null,{"$f":"IF(TRIM(input_year3)<>\"\",input_year3&\": \",\"\")&\"Alternate risk ratio\"","v":"Alternate risk ratio"}]
[null,"All children with disabilities (ages 5 [in K] through 21)",null,null,null,null,null,null,"Autism (ages 5 [in K] through 21)",null,null,null,null,null,null,"Emotional disturbance (ages 5 [in K] through 21)",null,null,null,null,null,null,"Intellectual disability (ages 5 [in K] through 21)",null,null,null,null,null,null,"Other health impairment (ages 5 [in K] through 21)",null,null,null,null,null,null,"Specific learning disability (ages 5 [in K] through 21)",null,null,null,null,null,null,"Speech or language impairment (ages 5 [in K] through 21)",null,null,null,null,null,null,"All children with disabilities (ages 5 [in K] through 21)",null,null,null,null,null,null,"Autism (ages 5 [in K] through 21)",null,null,null,null,null,null,"Emotional disturbance (ages 5 [in K] through 21)",null,null,null,null,null,null," Intellectual disability (ages 5 [in K] through 21)",null,null,null,null,null,null,"Other health impairment (ages 5 [in K] through 21)",null,null,null,null,null,null,"Specific learning disability (ages 5 [in K] through 21)",null,null,null,null,null,null,"Speech or language impairment (ages 5 [in K] through 21)",null,null,null,null,null,null,"All children with disabilities (ages 5 [in K] through 21)",null,null,null,null,null,null,"Autism (ages 5 [in K] through 21)",null,null,null,null,null,null,"Emotional disturbance (ages 5 [in K] through 21)",null,null,null,null,null,null,"Intellectual disability (ages 5 [in K] through 21)",null,null,null,null,null,null,"Other health impairment (ages 5 [in K] through 21)",null,null,null,null,null,null,"Specific learning disability (ages 5 [in K] through 21)",null,null,null,null,null,null,"Speech or language impairment (ages 5 [in K] through 21)",null,null,null,null,null,null,"All children with disabilities (ages 5 [in K] through 21)",null,null,null,null,null,null,"Autism (ages 5 [in K] through 21)",null,null,null,null,null,null,"Emotional disturbance (ages 5 [in K] through 21)",null,null,null,null,null,null,"Intellectual disability (ages 5 [in K] through 21)",null,null,null,null,null,null,"Other health impairment (ages 5 [in K] through 21)",null,null,null,null,null,null,"Specific learning disability (ages 5 [in K] through 21)",null,null,null,null,null,null,"Speech or language impairment (ages 5 [in K] through 21)",null,null,null,null,null,null,"All children with disabilities (ages 5 [in K] through 21)",null,null,null,null,null,null,"Autism (ages 5 [in K] through 21)",null,null,null,null,null,null,"Emotional disturbance (ages 5 [in K] through 21)",null,null,null,null,null,null,"Intellectual disability (ages 5 [in K] through 21)",null,null,null,null,null,null,"Other health impairment (ages 5 [in K] through 21)",null,null,null,null,null,null,"Specific learning disability (ages 5 [in K] through 21)",null,null,null,null,null,null,"Speech or language impairment (ages 5 [in K] through 21)",null,null,null,null,null,null,"All children with disabilities (ages 5 [in K] through 21)",null,null,null,null,null,null,"Autism (ages 5 [in K] through 21)",null,null,null,null,null,null,"Emotional disturbance (ages 5 [in K] through 21)",null,null,null,null,null,null,"Intellectual disability (ages 5 [in K] through 21)",null,null,null,null,null,null,"Other health impairment (ages 5 [in K] through 21)",null,null,null,null,null,null,"Specific learning disability (ages 5 [in K] through 21)",null,null,null,null,null,null,"Speech or language impairment (ages 5 [in K] through 21)",null,null,null,null,null,null,"All children with disabilities (ages 5 [in K] through 21)",null,null,null,null,null,null,"Autism (ages 5 [in K] through 21)",null,null,null,null,null,null,"Emotional disturbance (ages 5 [in K] through 21)",null,null,null,null,null,null,"Intellectual disability (ages 5 [in K] through 21)",null,null,null,null,null,null,"Other health impairment (ages 5 [in K] through 21)",null,null,null,null,null,null,"Specific learning disability (ages 5 [in K] through 21)",null,null,null,null,null,null,"Speech or language impairment (ages 5 [in K] through 21)",null,null,null,null,null,null,"All children with disabilities (ages 5 [in K] through 21)",null,null,null,null,null,null,"Autism (ages 5 [in K] through 21)",null,null,null,null,null,null,"Emotional disturbance (ages 5 [in K] through 21)",null,null,null,null,null,null,"Intellectual disability (ages 5 [in K] through 21)",null,null,null,null,null,null,"Other health impairment (ages 5 [in K] through 21)",null,null,null,null,null,null,"Specific learning disability (ages 5 [in K] through 21)",null,null,null,null,null,null,"Speech or language impairment (ages 5 [in K] through 21)",null,null,null,null,null,null,"All children with disabilities (ages 5 [in K] through 21)",null,null,null,null,null,null,"Autism (ages 5 [in K] through 21)",null,null,null,null,null,null,"Emotional disturbance (ages 5 [in K] through 21)",null,null,null,null,null,null,"Intellectual disability (ages 5 [in K] through 21)",null,null,null,null,null,null,"Other health impairment (ages 5 [in K] through 21)",null,null,null,null,null,null,"Specific learning disability (ages 5 [in K] through 21)",null,null,null,null,null,null,"Speech or language impairment (ages 5 [in K] through 21)"]
[null,"Race/ethnicity",null,null,null,null,null,null,"Race/ethnicity",null,null,null,null,null,null,"Race/ethnicity",null,null,null,null,null,null,"Race/ethnicity",null,null,null,null,null,null,"Race/ethnicity",null,null,null,null,null,null,"Race/ethnicity",null,null,null,null,null,null,"Race/ethnicity",null,null,null,null,null,null,"Race/ethnicity",null,null,null,null,null,null,"Race/ethnicity",null,null,null,null,null,null,"Race/ethnicity",null,null,null,null,null,null,"Race/ethnicity",null,null,null,null,null,null,"Race/ethnicity",null,null,null,null,null,null,"Race/ethnicity",null,null,null,null,null,null,"Race/ethnicity",null,null,null,null,null,null,"Race/ethnicity",null,null,null,null,null,null,"Race/ethnicity",null,null,null,null,null,null,"Race/ethnicity",null,null,null,null,null,null,"Race/ethnicity",null,null,null,null,null,null,"Race/ethnicity",null,null,null,null,null,null,"Race/ethnicity",null,null,null,null,null,null,"Race/ethnicity",null,null,null,null,null,null,"Race/ethnicity",null,null,null,null,null,null,"Race/ethnicity",null,null,null,null,null,null,"Race/ethnicity",null,null,null,null,null,null,"Race/ethnicity",null,null,null,null,null,null,"Race/ethnicity",null,null,null,null,null,null,"Race/ethnicity",null,null,null,null,null,null,"Race/ethnicity",null,null,null,null,null,null,"Race/ethnicity",null,null,null,null,null,null,"Race/ethnicity",null,null,null,null,null,null,"Race/ethnicity",null,null,null,null,null,null,"Race/ethnicity",null,null,null,null,null,null,"Race/ethnicity",null,null,null,null,null,null,"Race/ethnicity",null,null,null,null,null,null,"Race/ethnicity",null,null,null,null,null,null,"Race/ethnicity",null,null,null,null,null,null,"Race/ethnicity",null,null,null,null,null,null,"Race/ethnicity",null,null,null,null,null,null,"Race/ethnicity",null,null,null,null,null,null,"Race/ethnicity",null,null,null,null,null,null,"Race/ethnicity",null,null,null,null,null,null,"Race/ethnicity",null,null,null,null,null,null,"Race/ethnicity",null,null,null,null,null,null,"Race/ethnicity",null,null,null,null,null,null,"Race/ethnicity",null,null,null,null,null,null,"Race/ethnicity",null,null,null,null,null,null,"Race/ethnicity",null,null,null,null,null,null,"Race/ethnicity",null,null,null,null,null,null,"Race/ethnicity",null,null,null,null,null,null,"Race/ethnicity",null,null,null,null,null,null,"Race/ethnicity",null,null,null,null,null,null,"Race/ethnicity",null,null,null,null,null,null,"Race/ethnicity",null,null,null,null,null,null,"Race/ethnicity",null,null,null,null,null,null,"Race/ethnicity",null,null,null,null,null,null,"Race/ethnicity",null,null,null,null,null,null,"Race/ethnicity",null,null,null,null,null,null,"Race/ethnicity",null,null,null,null,null,null,"Race/ethnicity",null,null,null,null,null,null,"Race/ethnicity",null,null,null,null,null,null,"Race/ethnicity",null,null,null,null,null,null,"Race/ethnicity",null,null,null,null,null,null,"Race/ethnicity"]
[null,"HI7","AM7","AS7","BL7","PI7","WH7","MU7","HI7","AM7","AS7","BL7","PI7","WH7","MU7","HI7","AM7","AS7","BL7","PI7","WH7","MU7","HI7","AM7","AS7","BL7","PI7","WH7","MU7","HI7","AM7","AS7","BL7","PI7","WH7","MU7","HI7","AM7","AS7","BL7","PI7","WH7","MU7","HI7","AM7","AS7","BL7","PI7","WH7","MU7","HI7","AM7","AS7","BL7","PI7","WH7","MU7","HI7","AM7","AS7","BL7","PI7","WH7","MU7","HI7","AM7","AS7","BL7","PI7","WH7","MU7","HI7","AM7","AS7","BL7","PI7","WH7","MU7","HI7","AM7","AS7","BL7","PI7","WH7","MU7","HI7","AM7","AS7","BL7","PI7","WH7","MU7","HI7","AM7","AS7","BL7","PI7","WH7","MU7","HI7","AM7","AS7","BL7","PI7","WH7","MU7","HI7","AM7","AS7","BL7","PI7","WH7","MU7","HI7","AM7","AS7","BL7","PI7","WH7","MU7","HI7","AM7","AS7","BL7","PI7","WH7","MU7","HI7","AM7","AS7","BL7","PI7","WH7","MU7","HI7","AM7","AS7","BL7","PI7","WH7","MU7","HI7","AM7","AS7","BL7","PI7","WH7","MU7","HI7","AM7","AS7","BL7","PI7","WH7","MU7","HI7","AM7","AS7","BL7","PI7","WH7","MU7","HI7","AM7","AS7","BL7","PI7","WH7","MU7","HI7","AM7","AS7","BL7","PI7","WH7","MU7","HI7","AM7","AS7","BL7","PI7","WH7","MU7","HI7","AM7","AS7","BL7","PI7","WH7","MU7","HI7","AM7","AS7","BL7","PI7","WH7","MU7","HI7","AM7","AS7","BL7","PI7","WH7","MU7","HI7","AM7","AS7","BL7","PI7","WH7","MU7","HI7","AM7","AS7","BL7","PI7","WH7","MU7","HI7","AM7","AS7","BL7","PI7","WH7","MU7","HI7","AM7","AS7","BL7","PI7","WH7","MU7","HI7","AM7","AS7","BL7","PI7","WH7","MU7","HI7","AM7","AS7","BL7","PI7","WH7","MU7","HI7","AM7","AS7","BL7","PI7","WH7","MU7","HI7","AM7","AS7","BL7","PI7","WH7","MU7","HI7","AM7","AS7","BL7","PI7","WH7","MU7","HI7","AM7","AS7","BL7","PI7","WH7","MU7","HI7","AM7","AS7","BL7","PI7","WH7","MU7","HI7","AM7","AS7","BL7","PI7","WH7","MU7","HI7","AM7","AS7","BL7","PI7","WH7","MU7","HI7","AM7","AS7","BL7","PI7","WH7","MU7","HI7","AM7","AS7","BL7","PI7","WH7","MU7","HI7","AM7","AS7","BL7","PI7","WH7","MU7","HI7","AM7","AS7","BL7","PI7","WH7","MU7","HI7","AM7","AS7","BL7","PI7","WH7","MU7","HI7","AM7","AS7","BL7","PI7","WH7","MU7","HI7","AM7","AS7","BL7","PI7","WH7","MU7","HI7","AM7","AS7","BL7","PI7","WH7","MU7","HI7","AM7","AS7","BL7","PI7","WH7","MU7","HI7","AM7","AS7","BL7","PI7","WH7","MU7","HI7","AM7","AS7","BL7","PI7","WH7","MU7","HI7","AM7","AS7","BL7","PI7","WH7","MU7","HI7","AM7","AS7","BL7","PI7","WH7","MU7","HI7","AM7","AS7","BL7","PI7","WH7","MU7","HI7","AM7","AS7","BL7","PI7","WH7","MU7","HI7","AM7","AS7","BL7","PI7","WH7","MU7","HI7","AM7","AS7","BL7","PI7","WH7","MU7","HI7","AM7","AS7","BL7","PI7","WH7","MU7","HI7","AM7","AS7","BL7","PI7","WH7","MU7","HI7","AM7","AS7","BL7","PI7","WH7","MU7","HI7","AM7","AS7","BL7","PI7","WH7","MU7"]

{"sheet":"Alternate Risk Ratio Summary","index":14,"n_rows":7,"n_cols":50,"rows_kept":7,"cut":false,"hidden":true,"merged":[[3,0,6,0],[5,29,5,35],[0,3,0,7],[4,36,4,42],[4,43,4,49],[3,36,3,42],[3,43,3,49],[5,36,5,42],[5,43,5,49],[3,29,3,35],[4,29,4,35],[5,1,5,7],[5,8,5,14],[5,15,5,21],[5,22,5,28],[3,1,3,7],[3,8,3,14],[3,15,3,21],[3,22,3,28],[4,1,4,7],[4,8,4,14],[4,15,4,21],[4,22,4,28]]}
[null,null,null,"RACE/ETHNICITY CODE DEFINITIONS\na\nHI7 = Hispanic/Latino\nAM7 = American Indian or Alaska Native\nAS7 = Asian\nBL7 = Black or African American\nPI7 = Native Hawaiian or Other Pactific Islander\nWH7 = White\nMU7 = Two or more races"]
[]
[]
["LEA/school",{"$f":"\"Alternate risk ratio\"","v":"Alternate risk ratio"},null,null,null,null,null,null,{"$f":"\"Alternate risk ratio\"","v":"Alternate risk ratio"},null,null,null,null,null,null,{"$f":"\"Alternate risk ratio\"","v":"Alternate risk ratio"},null,null,null,null,null,null,{"$f":"\"Alternate risk ratio\"","v":"Alternate risk ratio"},null,null,null,null,null,null,{"$f":"\"Alternate risk ratio\"","v":"Alternate risk ratio"},null,null,null,null,null,null,{"$f":"\"Alternate risk ratio\"","v":"Alternate risk ratio"},null,null,null,null,null,null,{"$f":"\"Alternate risk ratio\"","v":"Alternate risk ratio"}]
[null,"All children with disabilities (ages 5 [in K] through 21)",null,null,null,null,null,null,"Autism (ages 5 [in K] through 21)",null,null,null,null,null,null,"Emotional disturbance (ages 5 [in K] through 21)",null,null,null,null,null,null,"Intellectual disability (ages 5 [in K] through 21)",null,null,null,null,null,null,"Other health impairment (ages 5 [in K] through 21)",null,null,null,null,null,null,"Specific learning disability (ages 5 [in K] through 21)",null,null,null,null,null,null,"Speech or language impairment (ages 5 [in K] through 21)"]
[null,"Race/ethnicity",null,null,null,null,null,null,"Race/ethnicity",null,null,null,null,null,null,"Race/ethnicity",null,null,null,null,null,null,"Race/ethnicity",null,null,null,null,null,null,"Race/ethnicity",null,null,null,null,null,null,"Race/ethnicity",null,null,null,null,null,null,"Race/ethnicity"]
[null,"HI7","AM7","AS7","BL7","PI7","WH7","MU7","HI7","AM7","AS7","BL7","PI7","WH7","MU7","HI7","AM7","AS7","BL7","PI7","WH7","MU7","HI7","AM7","AS7","BL7","PI7","WH7","MU7","HI7","AM7","AS7","BL7","PI7","WH7","MU7","HI7","AM7","AS7","BL7","PI7","WH7","MU7","HI7","AM7","AS7","BL7","PI7","WH7","MU7"]

{"sheet":"Error Review","index":15,"n_rows":3,"n_cols":193,"rows_kept":3,"cut":false,"hidden":true,"merged":[[1,22,1,28],[0,1,0,7],[1,1,1,7],[0,15,0,21],[0,8,0,14],[1,8,1,14],[1,15,1,21],[0,22,0,28],[1,29,1,35],[1,36,1,42],[1,43,1,49],[1,57,1,64],[0,29,0,35],[0,36,0,42],[0,43,0,49],[0,50,0,56],[1,50,1,56],[0,65,0,71],[0,72,0,78],[0,79,0,85],[0,86,0,92],[0,93,0,99],[0,171,0,177],[0,100,0,106],[0,107,0,113],[0,114,0,120],[0,129,0,135],[0,136,0,142],[1,143,1,149],[1,150,1,156],[1,157,1,163],[1,164,1,170],[0,143,0,149],[0,150,0,156],[0,157,0,163],[0,164,0,170],[0,0,2,0],[1,171,1,177],[1,178,1,184],[1,185,1,192],[0,178,0,184],[1,65,1,71],[1,72,1,78],[1,79,1,85],[1,86,1,92],[1,93,1,99],[1,100,1,106],[1,107,1,113],[1,114,1,120],[1,121,1,128],[1,129,1,135],[1,136,1,142]]}
["LEA/school",{"$f":"IF(TRIM(input_year)<>\"\",input_year&\": \",\"\")&\"IDEA Data Group - All children with disabilities \n(ages 5 [in K] through 21)\"","v":"IDEA Data Group - All children with disabilities \n(ages 5 [in K] through 21)"},null,null,null,null,null,null,{"$f":"IF(TRIM(input_year)<>\"\",input_year&\": \",\"\")&\"IDEA Data Group - Autism \n(ages 5 [in K] through 21)\"","v":"IDEA Data Group - Autism \n(ages 5 [in K] through 21)"},null,null,null,null,null,null,{"$f":"IF(TRIM(input_year)<>\"\",input_year&\": \",\"\")&\"IDEA Data Group - Emotional disturbance \n(ages 5 [in K] through 21)\"","v":"IDEA Data Group - Emotional disturbance \n(ages 5 [in K] through 21)"},null,null,null,null,null,null,{"$f":"IF(TRIM(input_year)<>\"\",input_year&\": \",\"\")&\"IDEA Data Group - Intellectual disability \n(ages 5 [in K] through 21)\"","v":"IDEA Data Group - Intellectual disability \n(ages 5 [in K] through 21)"},null,null,null,null,null,null,{"$f":"IF(TRIM(input_year)<>\"\",input_year&\": \",\"\")&\"IDEA Data Group - Other health impairment \n(ages 5 [in K] through 21)\"","v":"IDEA Data Group - Other health impairment \n(ages 5 [in K] through 21)"},null,null,null,null,null,null,{"$f":"IF(TRIM(input_year)<>\"\",input_year&\": \",\"\")&\"IDEA Data Group - Specific learning disability \n(ages 5 [in K] through 21)\"","v":"IDEA Data Group - Specific learning disability \n(ages 5 [in K] through 21)"},null,null,null,null,null,null,{"$f":"IF(TRIM(input_year)<>\"\",input_year&\": \",\"\")&\"IDEA Data Group - Speech or language impairment \n(ages 5 [in K] through 21)\"","v":"IDEA Data Group - Speech or language impairment \n(ages 5 [in K] through 21)"},null,null,null,null,null,null,{"$f":"IF(TRIM(input_year)<>\"\",input_year&\": \",\"\")&\"Comparison Data - Total student enrollment \n(ages 5 [in K] through 21)\"","v":"Comparison Data - Total student enrollment \n(ages 5 [in K] through 21)"},null,null,null,null,null,null,null,null,null,null,null,null,null,null,{"$f":"IF(TRIM(input_year2)<>\"\",input_year2&\": \",\"\")&\"IDEA Data Group - All children with disabilities \n(ages 5 [in K] through 21)\"","v":"IDEA Data Group - All children with disabilities \n(ages 5 [in K] through 21)"},null,null,null,null,null,null,{"$f":"IF(TRIM(input_year2)<>\"\",input_year2&\": \",\"\")&\"IDEA Data Group - Autism \n(ages 5 [in K] through 21)\"","v":"IDEA Data Group - Autism \n(ages 5 [in K] through 21)"},null,null,null,null,null,null,{"$f":"IF(TRIM(input_year2)<>\"\",input_year2&\": \",\"\")&\"IDEA Data Group - Emotional disturbance \n(ages 5 [in K] through 21)\"","v":"IDEA Data Group - Emotional disturbance \n(ages 5 [in K] through 21)"},null,null,null,null,null,null,{"$f":"IF(TRIM(input_year2)<>\"\",input_year2&\": \",\"\")&\"IDEA Data Group - Intellectual disability \n(ages 5 [in K] through 21)\"","v":"IDEA Data Group - Intellectual disability \n(ages 5 [in K] through 21)"},null,null,null,null,null,null,{"$f":"IF(TRIM(input_year2)<>\"\",input_year2&\": \",\"\")&\"IDEA Data Group - Other health impairment \n(ages 5 [in K] through 21)\"","v":"IDEA Data Group - Other health impairment \n(ages 5 [in K] through 21)"},null,null,null,null,null,null,{"$f":"IF(TRIM(input_year2)<>\"\",input_year2&\": \",\"\")&\"IDEA Data Group - Specific learning disability \n(ages 5 [in K] through 21)\"","v":"IDEA Data Group - Specific learning disability \n(ages 5 [in K] through 21)"},null,null,null,null,null,null,{"$f":"IF(TRIM(input_year2)<>\"\",input_year2&\": \",\"\")&\"IDEA Data Group - Speech or language impairment \n(ages 5 [in K] through 21)\"","v":"IDEA Data Group - Speech or language impairment \n(ages 5 [in K] through 21)"},null,null,null,null,null,null,{"$f":"IF(TRIM(input_year2)<>\"\",input_year2&\": \",\"\")&\"Comparison Data: Total student enrollment \n(ages 5 [in K] through 21)\"","v":"Comparison Data: Total student enrollment \n(ages 5 [in K] through 21)"},null,null,null,null,null,null,null,null,null,null,null,null,null,null,{"$f":"IF(TRIM(input_year3)<>\"\",input_year3&\": \",\"\")&\"IDEA Data Group - All children with disabilities \n(ages 5 [in K] through 21)\"","v":"IDEA Data Group - All children with disabilities \n(ages 5 [in K] through 21)"},null,null,null,null,null,null,{"$f":"IF(TRIM(input_year3)<>\"\",input_year3&\": \",\"\")&\"IDEA Data Group - Autism \n(ages 5 [in K] through 21)\"","v":"IDEA Data Group - Autism \n(ages 5 [in K] through 21)"},null,null,null,null,null,null,{"$f":"IF(TRIM(input_year3)<>\"\",input_year3&\": \",\"\")&\"IDEA Data Group - Emotional disturbance \n(ages 5 [in K] through 21)\"","v":"IDEA Data Group - Emotional disturbance \n(ages 5 [in K] through 21)"},null,null,null,null,null,null,{"$f":"IF(TRIM(input_year3)<>\"\",input_year3&\": \",\"\")&\"IDEA Data Group - Intellectual disability \n(ages 5 [in K] through 21)\"","v":"IDEA Data Group - Intellectual disability \n(ages 5 [in K] through 21)"},null,null,null,null,null,null,{"$f":"IF(TRIM(input_year3)<>\"\",input_year3&\": \",\"\")&\"IDEA Data Group - Other health impairment \n(ages 5 [in K] through 21)\"","v":"IDEA Data Group - Other health impairment \n(ages 5 [in K] through 21)"},null,null,null,null,null,null,{"$f":"IF(TRIM(input_year3)<>\"\",input_year3&\": \",\"\")&\"IDEA Data Group - Specific learning disability \n(ages 5 [in K] through 21)\"","v":"IDEA Data Group - Specific learning disability \n(ages 5 [in K] through 21)"},null,null,null,null,null,null,{"$f":"IF(TRIM(input_year3)<>\"\",input_year3&\": \",\"\")&\"IDEA Data Group - Speech or language impairment \n(ages 5 [in K] through 21)\"","v":"IDEA Data Group - Speech or language impairment \n(ages 5 [in K] through 21)"},null,null,null,null,null,null,{"$f":"IF(TRIM(input_year3)<>\"\",input_year3&\": \",\"\")&\"Comparison Data: Total student enrollment \n(ages 5 [in K] through 21)\"","v":"Comparison Data: Total student enrollment \n(ages 5 [in K] through 21)"}]
[null,"Race/ethnicity",null,null,null,null,null,null,"Race/ethnicity",null,null,null,null,null,null,"Race/ethnicity",null,null,null,null,null,null,"Race/ethnicity",null,null,null,null,null,null,"Race/ethnicity",null,null,null,null,null,null,"Race/ethnicity",null,null,null,null,null,null,"Race/ethnicity",null,null,null,null,null,null,"Race/ethnicity",null,null,null,null,null,null,{"$f":"IF(TRIM(input_year)<>\"\",input_year&\": \",\"\")&\"Sum of race/ethnicity (ages 5 [in K] through 21)\"","v":"Sum of race/ethnicity (ages 5 [in K] through 21)"},null,null,null,null,null,null,null,"Race/ethnicity",null,null,null,null,null,null,"Race/ethnicity",null,null,null,null,null,null,"Race/ethnicity",null,null,null,null,null,null,"Race/ethnicity",null,null,null,null,null,null,"Race/ethnicity",null,null,null,null,null,null,"Race/ethnicity",null,null,null,null,null,null,"Race/ethnicity",null,null,null,null,null,null,"Race/ethnicity",null,null,null,null,null,null,{"$f":"IF(TRIM(input_year2)<>\"\",input_year2&\": \",\"\")&\"Sum of race/ethnicity (ages 5 [in K] through 21)\"","v":"Sum of race/ethnicity (ages 5 [in K] through 21)"},null,null,null,null,null,null,null,"Race/ethnicity",null,null,null,null,null,null,"Race/ethnicity",null,null,null,null,null,null,"Race/ethnicity",null,null,null,null,null,null,"Race/ethnicity",null,null,null,null,null,null,"Race/ethnicity",null,null,null,null,null,null,"Race/ethnicity",null,null,null,null,null,null,"Race/ethnicity",null,null,null,null,null,null,"Race/ethnicity",null,null,null,null,null,null,{"$f":"IF(TRIM(input_year3)<>\"\",input_year3&\": \",\"\")&\"Sum of race/ethnicity (ages 5 [in K] through 21)\"","v":"Sum of race/ethnicity (ages 5 [in K] through 21)"}]
[null,"HI7","AM7","AS7","BL7","PI7","WH7","MU7","HI7","AM7","AS7","BL7","PI7","WH7","MU7","HI7","AM7","AS7","BL7","PI7","WH7","MU7","HI7","AM7","AS7","BL7","PI7","WH7","MU7","HI7","AM7","AS7","BL7","PI7","WH7","MU7","HI7","AM7","AS7","BL7","PI7","WH7","MU7","HI7","AM7","AS7","BL7","PI7","WH7","MU7","HI7","AM7","AS7","BL7","PI7","WH7","MU7",{"$f":"\"Total: All children\"","v":"Total: All children"},{"$f":"\"Total:Autism\"","v":"Total:Autism"},{"$f":"\"Total: Emotional disturbance\"","v":"Total: Emotional disturbance"},{"$f":"\"Total: Intellectual disability\"","v":"Total: Intellectual disability"},{"$f":"\"Total: Other health impairment\"","v":"Total: Other health impairment"},{"$f":"\"Total: Specific learning disability\"","v":"Total: Specific learning disability"},{"$f":"\"Total: Speech or language impairment\"","v":"Total: Speech or language impairment"},{"$f":"\"Total: Enrollment\"","v":"Total: Enrollment"},"HI7","AM7","AS7","BL7","PI7","WH7","MU7","HI7","AM7","AS7","BL7","PI7","WH7","MU7","HI7","AM7","AS7","BL7","PI7","WH7","MU7","HI7","AM7","AS7","BL7","PI7","WH7","MU7","HI7","AM7","AS7","BL7","PI7","WH7","MU7","HI7","AM7","AS7","BL7","PI7","WH7","MU7","HI7","AM7","AS7","BL7","PI7","WH7","MU7","HI7","AM7","AS7","BL7","PI7","WH7","MU7",{"$f":"\"Total: All children\"","v":"Total: All children"},{"$f":"\"Total:Autism\"","v":"Total:Autism"},{"$f":"\"Total: Emotional disturbance\"","v":"Total: Emotional disturbance"},{"$f":"\"Total: Intellectual disability\"","v":"Total: Intellectual disability"},{"$f":"\"Total: Other health impairment\"","v":"Total: Other health impairment"},{"$f":"\"Total: Specific learning disability\"","v":"Total: Specific learning disability"},{"$f":"\"Total:Speech or language impairment\"","v":"Total:Speech or language impairment"},{"$f":"\"Total: Enrollment\"","v":"Total: Enrollment"},"HI7","AM7","AS7","BL7","PI7","WH7","MU7","HI7","AM7","AS7","BL7","PI7","WH7","MU7","HI7","AM7","AS7","BL7","PI7","WH7","MU7","HI7","AM7","AS7","BL7","PI7","WH7","MU7","HI7","AM7","AS7","BL7","PI7","WH7","MU7","HI7","AM7","AS7","BL7","PI7","WH7","MU7","HI7","AM7","AS7","BL7","PI7","WH7","MU7","HI7","AM7","AS7","BL7","PI7","WH7","MU7",{"$f":"\"Total: All children\"","v":"Total: All children"},{"$f":"\"Total:Autism\"","v":"Total:Autism"},{"$f":"\"Total: Emotional disturbance\"","v":"Total: Emotional disturbance"},{"$f":"\"Total: Intellectual disability\"","v":"Total: Intellectual disability"},{"$f":"\"Total: Other health impairment\"","v":"Total: Other health impairment"},{"$f":"\"Total: Specific learning disability\"","v":"Total: Specific learning disability"},{"$f":"\"Total: Speech or language impairment\"","v":"Total: Speech or language impairment"},{"$f":"\"Total: Enrollment\"","v":"Total: Enrollment"}]

{"sheet":"dummy","index":16,"n_rows":145,"n_cols":463,"rows_kept":145,"cut":false,"hidden":true,"merged":[[132,0,135,0],[122,0,125,0],[112,0,115,0],[102,0,105,0],[92,0,95,0],[82,0,85,0],[72,0,75,0],[62,0,65,0],[72,442,72,448],[13,169,13,175],[13,176,13,182],[13,183,13,189],[133,134,133,140],[133,141,133,147],[132,113,132,119],[133,1,133,7],[133,8,133,14],[133,15,133,21],[133,22,133,28],[134,15,134,21],[134,22,134,28],[134,29,134,35],[134,36,134,42],[133,43,133,49],[132,1,132,7],[132,8,132,14],[132,15,132,21],[132,22,132,28],[132,29,132,35],[132,36,132,42],[132,43,132,49],[132,50,132,56],[72,449,72,450],[73,442,73,448],[73,449,73,450],[74,442,74,448],[74,449,74,450],[13,309,13,315],[13,316,13,322],[13,323,13,329],[13,449,13,455],[13,190,13,196],[13,197,13,203],[13,204,13,210],[13,211,13,217],[13,218,13,224],[13,225,13,231],[13,232,13,238],[13,239,13,245],[13,246,13,252],[13,253,13,259],[13,260,13,266],[63,421,63,427],[63,428,63,434],[63,435,63,441],[62,309,62,315],[62,316,62,322],[62,323,62,329],[62,330,62,336],[62,337,62,343],[62,393,62,399],[62,400,62,406],[62,407,62,413],[62,414,62,420],[12,449,12,455],[12,456,12,462],[13,1,13,7],[13,8,13,14],[13,15,13,21],[13,22,13,28],[13,29,13,35],[13,36,13,42],[13,43,13,49],[13,50,13,56],[13,57,13,63],[13,64,13,70],[13,71,13,77],[13,78,13,84],[13,85,13,91],[13,92,13,98],[13,99,13,105],[13,106,13,112],[13,113,13,119],[13,120,13,126],[13,127,13,133],[13,134,13,140],[13,141,13,147],[13,148,13,154],[13,155,13,161],[13,162,13,168],[13,456,13,462],[13,330,13,336],[13,337,13,343],[13,267,13,273],[13,274,13,280],[13,281,13,287],[12,435,12,441],[12,442,12,448],[13,407,13,413],[13,414,13,420],[13,421,13,427],[13,428,13,434],[13,435,13,441],[13,442,13,448],[12,407,12,413],[12,414,12,420],[12,421,12,427],[12,309,12,315],[12,316,12,322],[12,323,12,329],[12,330,12,336],[12,337,12,343],[12,344,12,350],[12,302,12,308],[12,393,12,399],[12,400,12,406],[13,288,13,294],[13,295,13,301],[13,302,13,308],[13,344,13,350],[13,351,13,357],[13,358,13,364],[13,365,13,371],[13,372,13,378],[13,379,13,385],[13,386,13,392],[13,393,13,399],[13,400,13,406],[12,428,12,434],[12,386,12,392],[11,428,11,434],[11,435,11,441],[11,442,11,448],[11,449,11,455],[11,456,11,462],[12,1,12,7],[12,8,12,14],[12,15,12,21],[12,22,12,28],[12,29,12,35],[12,36,12,42],[12,43,12,49],[12,50,12,56],[12,57,12,63],[12,64,12,70],[12,71,12,77],[12,78,12,84],[12,85,12,91],[12,92,12,98],[12,99,12,105],[12,106,12,112],[12,113,12,119],[12,120,12,126],[12,127,12,133],[12,134,12,140],[12,141,12,147],[12,190,12,196],[12,197,12,203],[12,204,12,210],[12,211,12,217],[12,218,12,224],[12,148,12,154],[12,155,12,161],[12,162,12,168],[12,169,12,175],[12,176,12,182],[12,183,12,189],[11,309,11,315],[11,316,11,322],[11,323,11,329],[11,330,11,336],[11,337,11,343],[11,344,11,350],[11,351,11,357],[11,358,11,364],[11,365,11,371],[11,372,11,378],[11,379,11,385],[12,351,12,357],[12,358,12,364],[12,365,12,371],[12,372,12,378],[12,379,12,385],[12,225,12,231],[12,232,12,238],[12,239,12,245],[12,246,12,252],[12,253,12,259],[12,260,12,266],[12,267,12,273],[12,274,12,280],[12,281,12,287],[12,288,12,294],[12,295,12,301],[11,386,11,392],[11,393,11,399],[11,400,11,406],[11,407,11,413],[11,414,11,420],[11,421,11,427],[11,190,11,196],[11,197,11,203],[11,204,11,210],[11,211,11,217],[11,218,11,224],[11,225,11,231],[11,232,11,238],[11,239,11,245],[11,246,11,252],[11,253,11,259],[11,260,11,266],[11,267,11,273],[11,274,11,280],[11,281,11,287],[11,288,11,294],[11,295,11,301],[11,302,11,308],[143,358,143,364],[143,365,143,371],[143,372,143,378],[143,379,143,385],[143,120,143,126],[143,127,143,133],[143,134,143,140],[143,141,143,147],[143,148,143,154],[143,155,143,161],[143,162,143,168],[143,169,143,175],[143,176,143,182],[142,302,142,308],[142,309,142,315],[142,316,142,322],[142,323,142,329],[142,330,142,336],[142,337,142,343],[143,309,143,315],[143,316,143,322],[143,323,143,329],[143,330,143,336],[143,337,143,343],[143,344,143,350],[143,351,143,357],[143,253,143,259],[143,260,143,266],[143,267,143,273],[143,274,143,280],[143,281,143,287],[143,288,143,294],[11,1,11,7],[11,8,11,14],[11,15,11,21],[11,22,11,28],[11,29,11,35],[11,36,11,42],[11,43,11,49],[11,50,11,56],[11,57,11,63],[11,64,11,70],[11,71,11,77],[11,78,11,84],[11,85,11,91],[11,92,11,98],[11,99,11,105],[11,106,11,112],[11,113,11,119],[11,134,11,140],[11,141,11,147],[11,148,11,154],[11,155,11,161],[11,162,11,168],[11,169,11,175],[143,190,143,196],[143,197,143,203],[143,204,143,210],[143,211,143,217],[143,218,143,224],[143,225,143,231],[143,232,143,238],[143,239,143,245],[143,246,143,252],[141,246,141,252],[132,120,132,126],[132,127,132,133],[132,134,132,140],[132,141,132,147],[123,120,123,126],[123,127,123,133],[123,134,123,140],[123,141,123,147],[124,120,124,126],[124,127,124,133],[124,134,124,140],[124,141,124,147],[83,190,83,196],[83,197,83,203],[11,176,11,182],[11,183,11,189],[143,295,143,301],[143,302,143,308],[142,372,142,378],[142,379,142,385],[142,386,142,392],[142,393,142,399],[142,400,142,406],[143,1,143,7],[143,8,143,14],[143,15,143,21],[143,22,143,28],[143,29,143,35],[143,36,143,42],[143,43,143,49],[143,50,143,56],[143,57,143,63],[143,64,143,70],[143,71,143,77],[143,78,143,84],[143,85,143,91],[143,92,143,98],[143,99,143,105],[143,106,143,112],[143,113,143,119],[142,183,142,189],[142,190,142,196],[142,197,142,203],[142,204,142,210],[142,211,142,217],[142,218,142,224],[143,386,143,392],[143,393,143,399],[143,400,143,406],[143,183,143,189],[142,225,142,231],[142,232,142,238],[142,239,142,245],[142,246,142,252],[142,253,142,259],[142,260,142,266],[142,267,142,273],[142,274,142,280],[142,281,142,287],[142,288,142,294],[142,295,142,301],[141,365,141,371],[141,372,141,378],[141,379,141,385],[141,386,141,392],[141,393,141,399],[141,400,141,406],[141,302,141,308],[141,309,141,315],[141,316,141,322],[141,323,141,329],[141,330,141,336],[141,337,141,343],[141,344,141,350],[141,351,141,357],[141,358,141,364],[141,232,141,238],[141,239,141,245],[142,344,142,350],[142,351,142,357],[142,358,142,364],[142,365,142,371],[142,1,142,7],[142,8,142,14],[142,15,142,21],[142,22,142,28],[142,29,142,35],[142,36,142,42],[142,43,142,49],[142,50,142,56],[142,57,142,63],[142,64,142,70],[142,71,142,77],[142,78,142,84],[142,85,142,91],[142,92,142,98],[142,99,142,105],[142,106,142,112],[142,113,142,119],[142,120,142,126],[142,127,142,133],[142,134,142,140],[142,141,142,147],[142,148,142,154],[142,155,142,161],[142,162,142,168],[142,169,142,175],[142,176,142,182],[141,281,141,287],[141,288,141,294],[141,295,141,301],[141,127,141,133],[141,134,141,140],[141,141,141,147],[141,148,141,154],[141,155,141,161],[141,162,141,168],[141,169,141,175],[141,176,141,182],[141,183,141,189],[141,190,141,196],[141,197,141,203],[141,204,141,210],[141,211,141,217],[141,218,141,224],[141,225,141,231],[141,253,141,259],[141,260,141,266],[141,267,141,273],[141,274,141,280],[141,1,141,7],[141,8,141,14],[141,15,141,21],[141,22,141,28],[141,29,141,35],[141,36,141,42],[141,43,141,49],[141,50,141,56],[141,57,141,63],[141,64,141,70],[141,71,141,77],[141,78,141,84],[141,85,141,91],[141,92,141,98],[141,99,141,105],[134,134,134,140],[134,141,134,147],[132,57,132,63],[132,64,132,70],[132,71,132,77],[132,78,132,84],[132,85,132,91],[132,92,132,98],[132,99,132,105],[132,106,132,112],[133,29,133,35],[133,36,133,42],[134,1,134,7],[134,8,134,14],[134,43,134,49],[134,50,134,56],[134,57,134,63],[134,64,134,70],[133,71,133,77],[134,78,134,84],[134,85,134,91],[134,92,134,98],[124,36,124,42],[124,43,124,49],[124,50,124,56],[124,57,124,63],[124,64,124,70],[124,71,124,77],[124,78,124,84],[124,85,124,91],[141,106,141,112],[141,113,141,119],[133,85,133,91],[133,92,133,98],[133,99,133,105],[134,106,134,112],[134,113,134,119],[134,120,134,126],[134,127,134,133],[133,106,133,112],[133,113,133,119],[133,120,133,126],[133,127,133,133],[141,120,141,126],[124,92,124,98],[124,99,124,105],[124,106,124,112],[124,113,124,119],[134,99,134,105],[133,78,133,84],[134,71,134,77],[133,50,133,56],[133,57,133,63],[133,64,133,70],[123,1,123,7],[123,8,123,14],[123,15,123,21],[123,22,123,28],[123,29,123,35],[123,36,123,42],[123,43,123,49],[123,50,123,56],[123,57,123,63],[123,64,123,70],[123,71,123,77],[123,78,123,84],[123,85,123,91],[123,92,123,98],[123,99,123,105],[123,106,123,112],[123,113,123,119],[124,1,124,7],[124,8,124,14],[124,15,124,21],[124,22,124,28],[124,29,124,35],[114,113,114,119],[114,120,114,126],[114,127,114,133],[114,134,114,140],[114,141,114,147],[122,1,122,7],[122,8,122,14],[122,15,122,21],[122,22,122,28],[122,29,122,35],[122,36,122,42],[122,43,122,49],[122,50,122,56],[122,57,122,63],[122,64,122,70],[122,71,122,77],[122,78,122,84],[122,85,122,91],[122,92,122,98],[122,99,122,105],[122,106,122,112],[122,113,122,119],[122,127,122,133],[122,134,122,140],[122,141,122,147],[114,1,114,7],[114,8,114,14],[114,15,114,21],[114,22,114,28],[114,29,114,35],[114,36,114,42],[114,43,114,49],[112,113,112,119],[112,120,112,126],[112,127,112,133],[112,134,112,140],[112,141,112,147],[113,1,113,7],[113,8,113,14],[113,15,113,21],[113,22,113,28],[113,29,113,35],[113,36,113,42],[113,43,113,49],[113,50,113,56],[113,57,113,63],[113,64,113,70],[113,71,113,77],[113,78,113,84],[113,85,113,91],[113,92,113,98],[113,99,113,105],[113,106,113,112],[113,113,113,119],[113,120,113,126],[113,127,113,133],[113,134,113,140],[113,141,113,147],[112,1,112,7],[112,8,112,14],[112,15,112,21],[112,22,112,28],[112,29,112,35],[112,36,112,42],[114,50,114,56],[114,57,114,63],[114,64,114,70],[114,71,114,77],[114,78,114,84],[114,85,114,91],[114,92,114,98],[114,99,114,105],[114,106,114,112],[122,120,122,126],[84,393,84,399],[84,400,84,406],[94,253,94,259],[94,148,94,154],[94,155,94,161],[94,162,94,168],[94,169,94,175],[94,176,94,182],[94,183,94,189],[94,190,94,196],[94,197,94,203],[92,176,92,182],[93,176,93,182],[93,183,93,189],[93,190,93,196],[93,162,93,168],[93,169,93,175],[112,92,112,98],[112,99,112,105],[112,106,112,112],[84,211,84,217],[84,218,84,224],[84,225,84,231],[84,232,84,238],[84,239,84,245],[84,246,84,252],[84,253,84,259],[84,183,84,189],[84,190,84,196],[84,197,84,203],[84,204,84,210],[92,57,92,63],[92,64,92,70],[92,71,92,77],[92,78,92,84],[92,85,92,91],[92,92,92,98],[93,155,93,161],[94,246,94,252],[93,225,93,231],[93,232,93,238],[93,239,93,245],[93,218,93,224],[93,204,93,210],[92,183,92,189],[92,190,92,196],[92,197,92,203],[92,204,92,210],[103,141,103,147],[84,428,84,434],[84,435,84,441],[84,330,84,336],[84,337,84,343],[84,344,84,350],[84,351,84,357],[84,358,84,364],[84,365,84,371],[84,372,84,378],[84,379,84,385],[84,386,84,392],[84,260,84,266],[84,267,84,273],[84,274,84,280],[84,281,84,287],[84,288,84,294],[84,295,84,301],[84,302,84,308],[84,309,84,315],[84,316,84,322],[84,323,84,329],[84,407,84,413],[84,414,84,420],[84,421,84,427],[83,428,83,434],[83,435,83,441],[84,1,84,7],[84,8,84,14],[84,15,84,21],[84,22,84,28],[84,29,84,35],[84,36,84,42],[84,43,84,49],[84,50,84,56],[84,57,84,63],[84,64,84,70],[84,71,84,77],[84,78,84,84],[84,85,84,91],[84,92,84,98],[84,99,84,105],[84,106,84,112],[84,113,84,119],[84,120,84,126],[84,127,84,133],[84,134,84,140],[84,141,84,147],[84,148,84,154],[84,155,84,161],[84,162,84,168],[84,169,84,175],[84,176,84,182],[83,309,83,315],[83,316,83,322],[83,169,83,175],[83,176,83,182],[83,330,83,336],[83,358,83,364],[83,365,83,371],[83,372,83,378],[83,379,83,385],[83,386,83,392],[83,393,83,399],[83,400,83,406],[83,407,83,413],[83,414,83,420],[83,204,83,210],[83,211,83,217],[83,218,83,224],[83,225,83,231],[83,232,83,238],[83,239,83,245],[83,246,83,252],[83,253,83,259],[83,260,83,266],[83,267,83,273],[83,274,83,280],[83,281,83,287],[83,288,83,294],[83,295,83,301],[83,337,83,343],[83,344,83,350],[83,351,83,357],[82,120,82,126],[82,127,82,133],[82,134,82,140],[82,141,82,147],[82,197,82,203],[82,204,82,210],[74,1,74,7],[74,8,74,14],[83,1,83,7],[83,8,83,14],[83,15,83,21],[83,22,83,28],[83,29,83,35],[83,36,83,42],[83,43,83,49],[83,50,83,56],[83,57,83,63],[83,64,83,70],[83,71,83,77],[83,78,83,84],[83,85,83,91],[83,92,83,98],[83,99,83,105],[83,106,83,112],[83,113,83,119],[83,120,83,126],[83,127,83,133],[83,134,83,140],[83,141,83,147],[83,148,83,154],[83,155,83,161],[83,162,83,168],[64,407,64,413],[64,414,64,420],[64,358,64,364],[64,365,64,371],[64,372,64,378],[64,379,64,385],[64,386,64,392],[64,351,64,357],[64,169,64,175],[64,176,64,182],[64,183,64,189],[64,190,64,196],[72,288,72,294],[72,183,72,189],[72,190,72,196],[82,1,82,7],[82,8,82,14],[82,15,82,21],[82,22,82,28],[82,29,82,35],[82,36,82,42],[82,43,82,49],[82,50,82,56],[82,57,82,63],[82,64,82,70],[82,71,82,77],[82,78,82,84],[82,85,82,91],[82,92,82,98],[82,99,82,105],[82,106,82,112],[82,148,82,154],[82,435,82,441],[62,169,62,175],[62,176,62,182],[62,183,62,189],[62,190,62,196],[63,169,63,175],[63,176,63,182],[63,183,63,189],[62,281,62,287],[62,358,62,364],[62,365,62,371],[62,372,62,378],[62,379,62,385],[62,386,62,392],[63,358,63,364],[63,365,63,371],[63,372,63,378],[63,379,63,385],[63,386,63,392],[62,344,62,350],[62,351,62,357],[63,344,63,350],[63,351,63,357],[62,204,62,210],[62,211,62,217],[62,218,62,224],[62,225,62,231],[62,232,62,238],[62,239,62,245],[63,197,63,203],[63,204,63,210],[63,211,63,217],[31,129,31,135],[31,136,31,142],[31,143,31,149],[31,150,31,156],[31,157,31,163],[31,164,31,170],[31,171,31,177],[31,178,31,184],[32,129,32,135],[32,136,32,142],[32,143,32,149],[32,150,32,156],[32,157,32,163],[32,164,32,170],[32,171,32,177],[32,178,32,184],[32,185,32,192],[48,1,48,7],[48,8,48,14],[31,50,31,56],[32,36,32,42],[31,22,31,28],[32,22,32,28],[31,29,31,35],[32,29,32,35],[31,43,31,49],[32,43,32,49],[19,0,19,15],[20,0,20,15],[40,0,40,21],[42,1,42,7],[42,8,42,14],[42,15,42,21],[42,22,42,28],[42,29,42,35],[37,0,37,21],[38,0,38,21],[39,0,39,21],[48,22,48,28],[48,29,48,35],[48,36,48,42],[48,43,48,49],[32,1,32,7],[32,8,32,14],[24,11,24,15],[24,16,24,20],[24,21,24,25],[31,1,31,7],[31,8,31,14],[31,36,31,42],[21,0,21,15],[22,0,22,15],[24,1,24,5],[24,6,24,10],[32,57,32,64],[32,50,32,56],[0,0,0,5],[1,0,1,5],[4,0,4,5],[5,0,5,5],[31,15,31,21],[32,15,32,21],[32,121,32,128],[31,65,31,71],[31,72,31,78],[31,79,31,85],[31,86,31,92],[31,93,31,99],[31,100,31,106],[31,107,31,113],[31,114,31,120],[32,65,32,71],[32,72,32,78],[32,79,32,85],[32,86,32,92],[32,93,32,99],[32,100,32,106],[32,107,32,113],[32,114,32,120],[11,120,11,126],[11,127,11,133],[62,1,62,7],[62,8,62,14],[62,15,62,21],[62,22,62,28],[62,29,62,35],[62,36,62,42],[62,43,62,49],[62,99,62,105],[62,50,62,56],[63,50,63,56],[64,50,64,56],[62,57,62,63],[63,57,63,63],[64,57,64,63],[62,64,62,70],[63,64,63,70],[64,64,64,70],[62,92,62,98],[63,92,63,98],[64,92,64,98],[62,71,62,77],[63,71,63,77],[64,71,64,77],[62,78,62,84],[63,78,63,84],[64,78,64,84],[62,85,62,91],[63,85,63,91],[64,85,64,91],[63,1,63,7],[63,8,63,14],[74,127,74,133],[74,134,74,140],[74,141,74,147],[74,57,74,63],[62,106,62,112],[62,113,62,119],[62,120,62,126],[62,127,62,133],[62,134,62,140],[62,141,62,147],[62,148,62,154],[62,155,62,161],[62,162,62,168],[63,15,63,21],[63,22,63,28],[63,29,63,35],[63,36,63,42],[63,43,63,49],[63,99,63,105],[63,106,63,112],[63,113,63,119],[63,120,63,126],[63,127,63,133],[63,134,63,140],[63,141,63,147],[63,148,63,154],[63,155,63,161],[63,162,63,168],[74,99,74,105],[74,106,74,112],[74,113,74,119],[74,15,74,21],[74,22,74,28],[74,29,74,35],[74,36,74,42],[74,43,74,49],[74,50,74,56],[64,106,64,112],[64,113,64,119],[64,120,64,126],[72,57,72,63],[72,64,72,70],[72,71,72,77],[72,78,72,84],[72,85,72,91],[72,92,72,98],[72,99,72,105],[73,71,73,77],[73,78,73,84],[73,85,73,91],[73,92,73,98],[73,99,73,105],[73,106,73,112],[73,113,73,119],[73,22,73,28],[73,29,73,35],[73,36,73,42],[73,43,73,49],[73,50,73,56],[73,57,73,63],[73,64,73,70],[74,120,74,126],[64,127,64,133],[64,134,64,140],[64,141,64,147],[64,148,64,154],[64,155,64,161],[64,162,64,168],[72,106,72,112],[72,113,72,119],[64,1,64,7],[64,8,64,14],[64,15,64,21],[64,22,64,28],[64,29,64,35],[64,36,64,42],[64,43,64,49],[64,99,64,105],[72,120,72,126],[72,127,72,133],[72,134,72,140],[72,141,72,147],[72,1,72,7]],"merged_total":1520,"flags":["merged_cut"]}
[]
[]
[]
[]
[]
[]
[]
[]
[]
[]
[]
["LEA/school",{"$f":"IF(TRIM(input_year)<>\"\",input_year&\": \",\"\")&\"Composition\"","v":"Composition"},null,null,null,null,null,null,{"$f":"IF(TRIM(input_year)<>\"\",input_year&\": \",\"\")&\"Composition\"","v":"Composition"},null,null,null,null,null,null,{"$f":"IF(TRIM(input_year)<>\"\",input_year&\": \",\"\")&\"Composition\"","v":"Composition"},null,null,null,null,null,null,{"$f":"IF(TRIM(input_year)<>\"\",input_year&\": \",\"\")&\"Composition\"","v":"Composition"},null,null,null,null,null,null,{"$f":"IF(TRIM(input_year)<>\"\",input_year&\": \",\"\")&\"Composition\"","v":"Composition"},null,null,null,null,null,null,{"$f":"IF(TRIM(input_year)<>\"\",input_year&\": \",\"\")&\"Composition\"","v":"Composition"},null,null,null,null,null,null,{"$f":"IF(TRIM(input_year)<>\"\",input_year&\": \",\"\")&\"Composition\"","v":"Composition"},null,null,null,null,null,null,{"$f":"IF(TRIM(input_year)<>\"\",input_year&\": \",\"\")&\"Comparison composition\"","v":"Comparison composition"},null,null,null,null,null,null,{"$f":"IF(TRIM(input_year)<>\"\",input_year&\": \",\"\")&\"Difference in composition\"","v":"Difference in composition"},null,null,null,null,null,null,{"$f":"IF(TRIM(input_year)<>\"\",input_year&\": \",\"\")&\"Difference in composition\"","v":"Difference in composition"},null,null,null,null,null,null,{"$f":"IF(TRIM(input_year)<>\"\",input_year&\": \",\"\")&\"Difference in composition\"","v":"Difference in composition"},null,null,null,null,null,null,{"$f":"IF(TRIM(input_year)<>\"\",input_year&\": \",\"\")&\"Difference in composition\"","v":"Difference in composition"},null,null,null,null,null,null,{"$f":"IF(TRIM(input_year)<>\"\",input_year&\": \",\"\")&\"Difference in composition\"","v":"Difference in composition"},null,null,null,null,null,null,{"$f":"IF(TRIM(input_year)<>\"\",input_year&\": \",\"\")&\"Difference in composition\"","v":"Difference in composition"},null,null,null,null,null,null,{"$f":"IF(TRIM(input_year)<>\"\",input_year&\": \",\"\")&\"Difference in composition\"","v":"Difference in composition"},null,null,null,null,null,null,{"$f":"IF(TRIM(input_year)<>\"\",input_year&\": \",\"\")&\"Relative difference in composition\"","v":"Relative difference in composition"},null,null,null,null,null,null,{"$f":"IF(TRIM(input_year)<>\"\",input_year&\": \",\"\")&\"Relative difference in composition\"","v":"Relative difference in composition"},null,null,null,null,null,null,{"$f":"IF(TRIM(input_year)<>\"\",input_year&\": \",\"\")&\"Relative difference in composition\"","v":"Relative difference in composition"},null,null,null,null,null,null,{"$f":"IF(TRIM(input_year)<>\"\",input_year&\": \",\"\")&\"Relative difference in composition\"","v":"Relative difference in composition"},null,null,null,null,null,null,{"$f":"IF(TRIM(input_year)<>\"\",input_year&\": \",\"\")&\"Relative difference in composition\"","v":"Relative difference in composition"},null,null,null,null,null,null,{"$f":"IF(TRIM(input_year)<>\"\",input_year&\": \",\"\")&\"Relative difference in composition\"","v":"Relative difference in composition"},null,null,null,null,null,null,{"$f":"IF(TRIM(input_year)<>\"\",input_year&\": \",\"\")&\"Relative difference in composition\"","v":"Relative difference in composition"},null,null,null,null,null,null,{"$f":"IF(TRIM(input_year2)<>\"\",input_year2&\": \",\"\")&\"Composition\"","v":"Composition"},null,null,null,null,null,null,{"$f":"IF(TRIM(input_year2)<>\"\",input_year2&\": \",\"\")&\"Composition\"","v":"Composition"},null,null,null,null,null,null,{"$f":"IF(TRIM(input_year2)<>\"\",input_year2&\": \",\"\")&\"Composition\"","v":"Composition"},null,null,null,null,null,null,{"$f":"IF(TRIM(input_year2)<>\"\",input_year2&\": \",\"\")&\"Composition\"","v":"Composition"},null,null,null,null,null,null,{"$f":"IF(TRIM(input_year2)<>\"\",input_year2&\": \",\"\")&\"Composition\"","v":"Composition"},null,null,null,null,null,null,{"$f":"IF(TRIM(input_year2)<>\"\",input_year2&\": \",\"\")&\"Composition\"","v":"Composition"},null,null,null,null,null,null,{"$f":"IF(TRIM(input_year2)<>\"\",input_year2&\": \",\"\")&\"Composition\"","v":"Composition"},null,null,null,null,null,null,{"$f":"IF(TRIM(input_year2)<>\"\",input_year2&\": \",\"\")&\"Comparison composition\"","v":"Comparison composition"},null,null,null,null,null,null,{"$f":"IF(TRIM(input_year2)<>\"\",input_year2&\": \",\"\")&\"Difference in composition\"","v":"Difference in composition"},null,null,null,null,null,null,{"$f":"IF(TRIM(input_year2)<>\"\",input_year2&\": \",\"\")&\"Difference in composition\"","v":"Difference in composition"},null,null,null,null,null,null,{"$f":"IF(TRIM(input_year2)<>\"\",input_year2&\": \",\"\")&\"Difference in composition\"","v":"Difference in composition"},null,null,null,null,null,null,{"$f":"IF(TRIM(input_year2)<>\"\",input_year2&\": \",\"\")&\"Difference in composition\"","v":"Difference in composition"},null,null,null,null,null,null,{"$f":"IF(TRIM(input_year2)<>\"\",input_year2&\": \",\"\")&\"Difference in composition\"","v":"Difference in composition"},null,null,null,null,null,null,{"$f":"IF(TRIM(input_year2)<>\"\",input_year2&\": \",\"\")&\"Difference in composition\"","v":"Difference in composition"},null,null,null,null,null,null,{"$f":"IF(TRIM(input_year2)<>\"\",input_year2&\": \",\"\")&\"Difference in composition\"","v":"Difference in composition"},null,null,null,null,null,null,{"$f":"IF(TRIM(input_year2)<>\"\",input_year2&\": \",\"\")&\"Relative difference in composition\"","v":"Relative difference in composition"},null,null,null,null,null,null,{"$f":"IF(TRIM(input_year2)<>\"\",input_year2&\": \",\"\")&\"Relative difference in composition\"","v":"Relative difference in composition"},null,null,null,null,null,null,{"$f":"IF(TRIM(input_year2)<>\"\",input_year2&\": \",\"\")&\"Relative difference in composition\"","v":"Relative difference in composition"},null,null,null,null,null,null,{"$f":"IF(TRIM(input_year2)<>\"\",input_year2&\": \",\"\")&\"Relative difference in composition\"","v":"Relative difference in composition"},null,null,null,null,null,null,{"$f":"IF(TRIM(input_year2)<>\"\",input_year2&\": \",\"\")&\"Relative difference in composition\"","v":"Relative difference in composition"},null,null,null,null,null,null,{"$f":"IF(TRIM(input_year2)<>\"\",input_year2&\": \",\"\")&\"Relative difference in composition\"","v":"Relative difference in composition"},null,null,null,null,null,null,{"$f":"IF(TRIM(input_year2)<>\"\",input_year2&\": \",\"\")&\"Relative difference in composition\"","v":"Relative difference in composition"},null,null,null,null,null,null,{"$f":"IF(TRIM(input_year3)<>\"\",input_year3&\": \",\"\")&\"Composition\"","v":"Composition"},null,null,null,null,null,null,{"$f":"IF(TRIM(input_year3)<>\"\",input_year3&\": \",\"\")&\"Composition\"","v":"Composition"},null,null,null,null,null,null,{"$f":"IF(TRIM(input_year3)<>\"\",input_year3&\": \",\"\")&\"Composition\"","v":"Composition"},null,null,null,null,null,null,{"$f":"IF(TRIM(input_year3)<>\"\",input_year3&\": \",\"\")&\"Composition\"","v":"Composition"},null,null,null,null,null,null,{"$f":"IF(TRIM(input_year3)<>\"\",input_year3&\": \",\"\")&\"Composition\"","v":"Composition"},null,null,null,null,null,null,{"$f":"IF(TRIM(input_year3)<>\"\",input_year3&\": \",\"\")&\"Composition\"","v":"Composition"},null,null,null,null,null,null,{"$f":"IF(TRIM(input_year3)<>\"\",input_year3&\": \",\"\")&\"Composition\"","v":"Composition"},null,null,null,null,null,null,{"$f":"IF(TRIM(input_year3)<>\"\",input_year3&\": \",\"\")&\"Comparison composition\"","v":"Comparison composition"},null,null,null,null,null,null,{"$f":"IF(TRIM(input_year3)<>\"\",input_year3&\": \",\"\")&\"Difference in composition\"","v":"Difference in composition"},null,null,null,null,null,null,{"$f":"IF(TRIM(input_year3)<>\"\",input_year3&\": \",\"\")&\"Difference in composition\"","v":"Difference in composition"},null,null,null,null,null,null,{"$f":"IF(TRIM(input_year3)<>\"\",input_year3&\": \",\"\")&\"Difference in composition\"","v":"Difference in composition"},null,null,null,null,null,null,{"$f":"IF(TRIM(input_year3)<>\"\",input_year3&\": \",\"\")&\"Difference in composition\"","v":"Difference in composition"},null,null,null,null,null,null,{"$f":"IF(TRIM(input_year3)<>\"\",input_year3&\": \",\"\")&\"Difference in composition\"","v":"Difference in composition"},null,null,null,null,null,null,{"$f":"IF(TRIM(input_year3)<>\"\",input_year3&\": \",\"\")&\"Difference in composition\"","v":"Difference in composition"},null,null,null,null,null,null,{"$f":"IF(TRIM(input_year3)<>\"\",input_year3&\": \",\"\")&\"Difference in composition\"","v":"Difference in composition"},null,null,null,null,null,null,{"$f":"IF(TRIM(input_year3)<>\"\",input_year3&\": \",\"\")&\"Relative difference in composition\"","v":"Relative difference in composition"},null,null,null,null,null,null,{"$f":"IF(TRIM(input_year3)<>\"\",input_year3&\": \",\"\")&\"Relative difference in composition\"","v":"Relative difference in composition"},null,null,null,null,null,null,{"$f":"IF(TRIM(input_year3)<>\"\",input_year3&\": \",\"\")&\"Relative difference in composition\"","v":"Relative difference in composition"},null,null,null,null,null,null,{"$f":"IF(TRIM(input_year3)<>\"\",input_year3&\": \",\"\")&\"Relative difference in composition\"","v":"Relative difference in composition"},null,null,null,null,null,null,{"$f":"IF(TRIM(input_year3)<>\"\",input_year3&\": \",\"\")&\"Relative difference in composition\"","v":"Relative difference in composition"},null,null,null,null,null,null,{"$f":"IF(TRIM(input_year3)<>\"\",input_year3&\": \",\"\")&\"Relative difference in composition\"","v":"Relative difference in composition"},null,null,null,null,null,null,{"$f":"IF(TRIM(input_year3)<>\"\",input_year3&\": \",\"\")&\"Relative difference in composition\"","v":"Relative difference in composition"}]
[null,"All children with disabilities (ages 5 [in K] through 21)",null,null,null,null,null,null,"Autism (ages 5 [in K] through 21)",null,null,null,null,null,null,"Emotional disturbance (ages 5 [in K] through 21)",null,null,null,null,null,null,"Intellectual disability (ages 5 [in K] through 21)",null,null,null,null,null,null,"Other health impairment (ages 5 [in K] through 21)",null,null,null,null,null,null,"Specific learning disability (ages 5 [in K] through 21)",null,null,null,null,null,null,"Speech or language impairment (ages 5 [in K] through 21)",null,null,null,null,null,null,"Total student enrollment (ages 5 [in K] through 21)",null,null,null,null,null,null,"All children with disabilities (ages 5 [in K] through 21)",null,null,null,null,null,null,"Autism (ages 5 [in K] through 21)",null,null,null,null,null,null,"Emotional disturbance (ages 5 [in K] through 21)",null,null,null,null,null,null,"Intellectual disability (ages 5 [in K] through 21)",null,null,null,null,null,null,"Other health impairment (ages 5 [in K] through 21)",null,null,null,null,null,null,"Specific learning disability (ages 5 [in K] through 21)",null,null,null,null,null,null,"Speech or language impairment (ages 5 [in K] through 21)",null,null,null,null,null,null,"All children with disabilities (ages 5 [in K] through 21)",null,null,null,null,null,null,"Autism (ages 5 [in K] through 21)",null,null,null,null,null,null,"Emotional disturbance (ages 5 [in K] through 21)",null,null,null,null,null,null,"Intellectual disability (ages 5 [in K] through 21)",null,null,null,null,null,null,"Other health impairment (ages 5 [in K] through 21)",null,null,null,null,null,null,"Specific learning disability (ages 5 [in K] through 21)",null,null,null,null,null,null,"Speech or language impairment (ages 5 [in K] through 21)",null,null,null,null,null,null,"All children with disabilities (ages 5 [in K] through 21)",null,null,null,null,null,null,"Autism (ages 5 [in K] through 21)",null,null,null,null,null,null,"Emotional disturbance (ages 5 [in K] through 21)",null,null,null,null,null,null,"Intellectual disability (ages 5 [in K] through 21)",null,null,null,null,null,null,"Other health impairment (ages 5 [in K] through 21)",null,null,null,null,null,null,"Specific learning disability (ages 5 [in K] through 21)",null,null,null,null,null,null,"Speech or language impairment (ages 5 [in K] through 21)",null,null,null,null,null,null,"Total student enrollment (ages 5 [in K] through 21)",null,null,null,null,null,null,"All children with disabilities (ages 5 [in K] through 21)",null,null,null,null,null,null,"Autism (ages 5 [in K] through 21)",null,null,null,null,null,null,"Emotional disturbance (ages 5 [in K] through 21)",null,null,null,null,null,null,"Intellectual disability (ages 5 [in K] through 21)",null,null,null,null,null,null,"Other health impairment (ages 5 [in K] through 21)",null,null,null,null,null,null,"Specific learning disability (ages 5 [in K] through 21)",null,null,null,null,null,null,"Speech or language impairment (ages 5 [in K] through 21)",null,null,null,null,null,null,"All children with disabilities (ages 5 [in K] through 21)",null,null,null,null,null,null,"Autism (ages 5 [in K] through 21)",null,null,null,null,null,null,"Emotional disturbance (ages 5 [in K] through 21)",null,null,null,null,null,null,"Intellectual disability (ages 5 [in K] through 21)",null,null,null,null,null,null,"Other health impairment (ages 5 [in K] through 21)",null,null,null,null,null,null,"Specific learning disability (ages 5 [in K] through 21)",null,null,null,null,null,null,"Speech or language impairment (ages 5 [in K] through 21)",null,null,null,null,null,null,"All children with disabilities (ages 5 [in K] through 21)",null,null,null,null,null,null,"Autism (ages 5 [in K] through 21)",null,null,null,null,null,null,"Emotional disturbance (ages 5 [in K] through 21)",null,null,null,null,null,null,"Intellectual disability (ages 5 [in K] through 21)",null,null,null,null,null,null,"Other health impairment (ages 5 [in K] through 21)",null,null,null,null,null,null,"Specific learning disability (ages 5 [in K] through 21)",null,null,null,null,null,null,"Speech or language impairment (ages 5 [in K] through 21)",null,null,null,null,null,null,"Total student enrollment (ages 5 [in K] through 21)",null,null,null,null,null,null,"All children with disabilities (ages 5 [in K] through 21)",null,null,null,null,null,null,"Autism (ages 5 [in K] through 21)",null,null,null,null,null,null,"Emotional disturbance (ages 5 [in K] through 21)",null,null,null,null,null,null,"Intellectual disability (ages 5 [in K] through 21)",null,null,null,null,null,null,"Other health impairment (ages 5 [in K] through 21)",null,null,null,null,null,null,"Specific learning disability (ages 5 [in K] through 21)",null,null,null,null,null,null,"Speech or language impairment (ages 5 [in K] through 21)",null,null,null,null,null,null,"All children with disabilities (ages 5 [in K] through 21)",null,null,null,null,null,null,"Autism (ages 5 [in K] through 21)",null,null,null,null,null,null,"Emotional disturbance (ages 5 [in K] through 21)",null,null,null,null,null,null,"Intellectual disability (ages 5 [in K] through 21)",null,null,null,null,null,null,"Other health impairment (ages 5 [in K] through 21)",null,null,null,null,null,null,"Specific learning disability (ages 5 [in K] through 21)",null,null,null,null,null,null,"Speech or language impairment (ages 5 [in K] through 21)"]
[null,"Race/ethnicity",null,null,null,null,null,null,"Race/ethnicity",null,null,null,null,null,null,"Race/ethnicity",null,null,null,null,null,null,"Race/ethnicity",null,null,null,null,null,null,"Race/ethnicity",null,null,null,null,null,null,"Race/ethnicity",null,null,null,null,null,null,"Race/ethnicity",null,null,null,null,null,null,"Race/ethnicity",null,null,null,null,null,null,"Race/ethnicity",null,null,null,null,null,null,"Race/ethnicity",null,null,null,null,null,null,"Race/ethnicity",null,null,null,null,null,null,"Race/ethnicity",null,null,null,null,null,null,"Race/ethnicity",null,null,null,null,null,null,"Race/ethnicity",null,null,null,null,null,null,"Race/ethnicity",null,null,null,null,null,null,"Race/ethnicity",null,null,null,null,null,null,"Race/ethnicity",null,null,null,null,null,null,"Race/ethnicity",null,null,null,null,null,null,"Race/ethnicity",null,null,null,null,null,null,"Race/ethnicity",null,null,null,null,null,null,"Race/ethnicity",null,null,null,null,null,null,"Race/ethnicity",null,null,null,null,null,null,"Race/ethnicity",null,null,null,null,null,null,"Race/ethnicity",null,null,null,null,null,null,"Race/ethnicity",null,null,null,null,null,null,"Race/ethnicity",null,null,null,null,null,null,"Race/ethnicity",null,null,null,null,null,null,"Race/ethnicity",null,null,null,null,null,null,"Race/ethnicity",null,null,null,null,null,null,"Race/ethnicity",null,null,null,null,null,null,"Race/ethnicity",null,null,null,null,null,null,"Race/ethnicity",null,null,null,null,null,null,"Race/ethnicity",null,null,null,null,null,null,"Race/ethnicity",null,null,null,null,null,null,"Race/ethnicity",null,null,null,null,null,null,"Race/ethnicity",null,null,null,null,null,null,"Race/ethnicity",null,null,null,null,null,null,"Race/ethnicity",null,null,null,null,null,null,"Race/ethnicity",null,null,null,null,null,null,"Race/ethnicity",null,null,null,null,null,null,"Race/ethnicity",null,null,null,null,null,null,"Race/ethnicity",null,null,null,null,null,null,"Race/ethnicity",null,null,null,null,null,null,"Race/ethnicity",null,null,null,null,null,null,"Race/ethnicity",null,null,null,null,null,null,"Race/ethnicity",null,null,null,null,null,null,"Race/ethnicity",null,null,null,null,null,null,"Race/ethnicity",null,null,null,null,null,null,"Race/ethnicity",null,null,null,null,null,null,"Race/ethnicity",null,null,null,null,null,null,"Race/ethnicity",null,null,null,null,null,null,"Race/ethnicity",null,null,null,null,null,null,"Race/ethnicity",null,null,null,null,null,null,"Race/ethnicity",null,null,null,null,null,null,"Race/ethnicity",null,null,null,null,null,null,"Race/ethnicity",null,null,null,null,null,null,"Race/ethnicity",null,null,null,null,null,null,"Race/ethnicity",null,null,null,null,null,null,"Race/ethnicity",null,null,null,null,null,null,"Race/ethnicity",null,null,null,null,null,null,"Race/ethnicity",null,null,null,null,null,null,"Race/ethnicity",null,null,null,null,null,null,"Race/ethnicity",null,null,null,null,null,null,"Race/ethnicity",null,null,null,null,null,null,"Race/ethnicity",null,null,null,null,null,null,"Race/ethnicity"]
[null,"HI7","AM7","AS7","BL7","PI7","WH7","MU7","HI7","AM7","AS7","BL7","PI7","WH7","MU7","HI7","AM7","AS7","BL7","PI7","WH7","MU7","HI7","AM7","AS7","BL7","PI7","WH7","MU7","HI7","AM7","AS7","BL7","PI7","WH7","MU7","HI7","AM7","AS7","BL7","PI7","WH7","MU7","HI7","AM7","AS7","BL7","PI7","WH7","MU7","HI7","AM7","AS7","BL7","PI7","WH7","MU7","HI7","AM7","AS7","BL7","PI7","WH7","MU7","HI7","AM7","AS7","BL7","PI7","WH7","MU7","HI7","AM7","AS7","BL7","PI7","WH7","MU7","HI7","AM7","AS7","BL7","PI7","WH7","MU7","HI7","AM7","AS7","BL7","PI7","WH7","MU7","HI7","AM7","AS7","BL7","PI7","WH7","MU7","HI7","AM7","AS7","BL7","PI7","WH7","MU7","HI7","AM7","AS7","BL7","PI7","WH7","MU7","HI7","AM7","AS7","BL7","PI7","WH7","MU7","HI7","AM7","AS7","BL7","PI7","WH7","MU7","HI7","AM7","AS7","BL7","PI7","WH7","MU7","HI7","AM7","AS7","BL7","PI7","WH7","MU7","HI7","AM7","AS7","BL7","PI7","WH7","MU7","HI7","AM7","AS7","BL7","PI7","WH7","MU7","HI7","AM7","AS7","BL7","PI7","WH7","MU7","HI7","AM7","AS7","BL7","PI7","WH7","MU7","HI7","AM7","AS7","BL7","PI7","WH7","MU7","HI7","AM7","AS7","BL7","PI7","WH7","MU7","HI7","AM7","AS7","BL7","PI7","WH7","MU7","HI7","AM7","AS7","BL7","PI7","WH7","MU7","HI7","AM7","AS7","BL7","PI7","WH7","MU7","HI7","AM7","AS7","BL7","PI7","WH7","MU7","HI7","AM7","AS7","BL7","PI7","WH7","MU7","HI7","AM7","AS7","BL7","PI7","WH7","MU7","HI7","AM7","AS7","BL7","PI7","WH7","MU7","HI7","AM7","AS7","BL7","PI7","WH7","MU7","HI7","AM7","AS7","BL7","PI7","WH7","MU7","HI7","AM7","AS7","BL7","PI7","WH7","MU7","HI7","AM7","AS7","BL7","PI7","WH7","MU7","HI7","AM7","AS7","BL7","PI7","WH7","MU7","HI7","AM7","AS7","BL7","PI7","WH7","MU7","HI7","AM7","AS7","BL7","PI7","WH7","MU7","HI7","AM7","AS7","BL7","PI7","WH7","MU7","HI7","AM7","AS7","BL7","PI7","WH7","MU7","HI7","AM7","AS7","BL7","PI7","WH7","MU7","HI7","AM7","AS7","BL7","PI7","WH7","MU7","HI7","AM7","AS7","BL7","PI7","WH7","MU7","HI7","AM7","AS7","BL7","PI7","WH7","MU7","HI7","AM7","AS7","BL7","PI7","WH7","MU7","HI7","AM7","AS7","BL7","PI7","WH7","MU7","HI7","AM7","AS7","BL7","PI7","WH7","MU7","HI7","AM7","AS7","BL7","PI7","WH7","MU7","HI7","AM7","AS7","BL7","PI7","WH7","MU7","HI7","AM7","AS7","BL7","PI7","WH7","MU7","HI7","AM7","AS7","BL7","PI7","WH7","MU7","HI7","AM7","AS7","BL7","PI7","WH7","MU7","HI7","AM7","AS7","BL7","PI7","WH7","MU7","HI7","AM7","AS7","BL7","PI7","WH7","MU7","HI7","AM7","AS7","BL7","PI7","WH7","MU7","HI7","AM7","AS7","BL7","PI7","WH7","MU7","HI7","AM7","AS7","BL7","PI7","WH7","MU7","HI7","AM7","AS7","BL7","PI7","WH7","MU7","HI7","AM7","AS7","BL7","PI7","WH7","MU7","HI7","AM7","AS7","BL7","PI7","WH7","MU7","HI7","AM7","AS7","BL7","PI7","WH7","MU7","HI7","AM7","AS7","BL7","PI7","WH7","MU7","HI7","AM7","AS7","BL7","PI7","WH7","MU7","HI7","AM7","AS7","BL7","PI7","WH7","MU7"]
[]
[]
[]
[]
["Risk"]
[{"$f":"Composition!A21","v":0}]
[{"$f":"Composition!A22","v":0}]
["0 Districts"]
[]
[null,"Risk",null,null,null,null,"Risk ratio",null,null,null,null,"Weighted risk ratio ratio",null,null,null,null,"Alternate risk ratio",null,null,null,null,"Risk difference"]
["ID","American Indian or Alaska Native","Asian or Other Pacific Islander","Black (not Hispanic)","Hispanic","White (not Hispanic)","American Indian or Alaska Native","Asian or Other Pacific Islander","Black (not Hispanic)","Hispanic","White (not Hispanic)","American Indian or Alaska Native","Asian or Other Pacific Islander","Black (not Hispanic)","Hispanic","White (not Hispanic)","American Indian or Alaska Native","Asian or Other Pacific Islander","Black (not Hispanic)","Hispanic","White (not Hispanic)","American Indian or Alaska Native","Asian or Other Pacific Islander","Black (not Hispanic)","Hispanic","White (not Hispanic)"]
[]
[]
[]
[]
[]
["LEA/school",{"$f":"IF(TRIM(input_year)<>\"\",input_year&\": \",\"\")&\"IDEA Data Group - All children with disabilities \n(ages 5 [in K] through 21)\"","v":"IDEA Data Group - All children with disabilities \n(ages 5 [in K] through 21)"},null,null,null,null,null,null,{"$f":"IF(TRIM(input_year)<>\"\",input_year&\": \",\"\")&\"IDEA Data Group - Autism \n(ages 5 [in K] through 21)\"","v":"IDEA Data Group - Autism \n(ages 5 [in K] through 21)"},null,null,null,null,null,null,{"$f":"IF(TRIM(input_year)<>\"\",input_year&\": \",\"\")&\"IDEA Data Group - Emotional disturbance \n(ages 5 [in K] through 21)\"","v":"IDEA Data Group - Emotional disturbance \n(ages 5 [in K] through 21)"},null,null,null,null,null,null,{"$f":"IF(TRIM(input_year)<>\"\",input_year&\": \",\"\")&\"IDEA Data Group - Intellectual disability \n(ages 5 [in K] through 21)\"","v":"IDEA Data Group - Intellectual disability \n(ages 5 [in K] through 21)"},null,null,null,null,null,null,{"$f":"IF(TRIM(input_year)<>\"\",input_year&\": \",\"\")&\"IDEA Data Group - Other health impairment \n(ages 5 [in K] through 21)\"","v":"IDEA Data Group - Other health impairment \n(ages 5 [in K] through 21)"},null,null,null,null,null,null,{"$f":"IF(TRIM(input_year)<>\"\",input_year&\": \",\"\")&\"IDEA Data Group - Specific learning disability \n(ages 5 [in K] through 21)\"","v":"IDEA Data Group - Specific learning disability \n(ages 5 [in K] through 21)"},null,null,null,null,null,null,{"$f":"IF(TRIM(input_year)<>\"\",input_year&\": \",\"\")&\"IDEA Data Group - Speech or language impairment \n(ages 5 [in K] through 21)\"","v":"IDEA Data Group - Speech or language impairment \n(ages 5 [in K] through 21)"},null,null,null,null,null,null,{"$f":"IF(TRIM(input_year)<>\"\",input_year&\": \",\"\")&\"Comparison Data - Total student enrollment \n(ages 5 [in K] through 21)\"","v":"Comparison Data - Total student enrollment \n(ages 5 [in K] through 21)"},null,null,null,null,null,null,null,null,null,null,null,null,null,null,{"$f":"IF(TRIM(input_year2)<>\"\",input_year2&\": \",\"\")&\"IDEA Data Group - All children with disabilities \n(ages 5 [in K] through 21)\"","v":"IDEA Data Group - All children with disabilities \n(ages 5 [in K] through 21)"},null,null,null,null,null,null,{"$f":"IF(TRIM(input_year2)<>\"\",input_year2&\": \",\"\")&\"IDEA Data Group - Autism \n(ages 5 [in K] through 21)\"","v":"IDEA Data Group - Autism \n(ages 5 [in K] through 21)"},null,null,null,null,null,null,{"$f":"IF(TRIM(input_year2)<>\"\",input_year2&\": \",\"\")&\"IDEA Data Group - Emotional disturbance \n(ages 5 [in K] through 21)\"","v":"IDEA Data Group - Emotional disturbance \n(ages 5 [in K] through 21)"},null,null,null,null,null,null,{"$f":"IF(TRIM(input_year2)<>\"\",input_year2&\": \",\"\")&\"IDEA Data Group - Intellectual disability \n(ages 5 [in K] through 21)\"","v":"IDEA Data Group - Intellectual disability \n(ages 5 [in K] through 21)"},null,null,null,null,null,null,{"$f":"IF(TRIM(input_year2)<>\"\",input_year2&\": \",\"\")&\"IDEA Data Group - Other health impairment \n(ages 5 [in K] through 21)\"","v":"IDEA Data Group - Other health impairment \n(ages 5 [in K] through 21)"},null,null,null,null,null,null,{"$f":"IF(TRIM(input_year2)<>\"\",input_year2&\": \",\"\")&\"IDEA Data Group - Specific learning disability \n(ages 5 [in K] through 21)\"","v":"IDEA Data Group - Specific learning disability \n(ages 5 [in K] through 21)"},null,null,null,null,null,null,{"$f":"IF(TRIM(input_year2)<>\"\",input_year2&\": \",\"\")&\"IDEA Data Group - Speech or language impairment \n(ages 5 [in K] through 21)\"","v":"IDEA Data Group - Speech or language impairment \n(ages 5 [in K] through 21)"},null,null,null,null,null,null,{"$f":"IF(TRIM(input_year2)<>\"\",input_year2&\": \",\"\")&\"Comparison Data: Total student enrollment \n(ages 5 [in K] through 21)\"","v":"Comparison Data: Total student enrollment \n(ages 5 [in K] through 21)"},null,null,null,null,null,null,null,null,null,null,null,null,null,null,{"$f":"IF(TRIM(input_year3)<>\"\",input_year3&\": \",\"\")&\"IDEA Data Group - All children with disabilities \n(ages 5 [in K] through 21)\"","v":"IDEA Data Group - All children with disabilities \n(ages 5 [in K] through 21)"},null,null,null,null,null,null,{"$f":"IF(TRIM(input_year3)<>\"\",input_year3&\": \",\"\")&\"IDEA Data Group - Autism \n(ages 5 [in K] through 21)\"","v":"IDEA Data Group - Autism \n(ages 5 [in K] through 21)"},null,null,null,null,null,null,{"$f":"IF(TRIM(input_year3)<>\"\",input_year3&\": \",\"\")&\"IDEA Data Group - Emotional disturbance \n(ages 5 [in K] through 21)\"","v":"IDEA Data Group - Emotional disturbance \n(ages 5 [in K] through 21)"},null,null,null,null,null,null,{"$f":"IF(TRIM(input_year3)<>\"\",input_year3&\": \",\"\")&\"IDEA Data Group - Intellectual disability \n(ages 5 [in K] through 21)\"","v":"IDEA Data Group - Intellectual disability \n(ages 5 [in K] through 21)"},null,null,null,null,null,null,{"$f":"IF(TRIM(input_year3)<>\"\",input_year3&\": \",\"\")&\"IDEA Data Group - Other health impairment \n(ages 5 [in K] through 21)\"","v":"IDEA Data Group - Other health impairment \n(ages 5 [in K] through 21)"},null,null,null,null,null,null,{"$f":"IF(TRIM(input_year3)<>\"\",input_year3&\": \",\"\")&\"IDEA Data Group - Specific learning disability \n(ages 5 [in K] through 21)\"","v":"IDEA Data Group - Specific learning disability \n(ages 5 [in K] through 21)"},null,null,null,null,null,null,{"$f":"IF(TRIM(input_year3)<>\"\",input_year3&\": \",\"\")&\"IDEA Data Group - Speech or language impairment \n(ages 5 [in K] through 21)\"","v":"IDEA Data Group - Speech or language impairment \n(ages 5 [in K] through 21)"},null,null,null,null,null,null,{"$f":"IF(TRIM(input_year3)<>\"\",input_year3&\": \",\"\")&\"Comparison Data: Total student enrollment \n(ages 5 [in K] through 21)\"","v":"Comparison Data: Total student enrollment \n(ages 5 [in K] through 21)"}]
[null,"Race/ethnicity",null,null,null,null,null,null,"Race/ethnicity",null,null,null,null,null,null,"Race/ethnicity",null,null,null,null,null,null,"Race/ethnicity",null,null,null,null,null,null,"Race/ethnicity",null,null,null,null,null,null,"Race/ethnicity",null,null,null,null,null,null,"Race/ethnicity",null,null,null,null,null,null,"Race/ethnicity",null,null,null,null,null,null,{"$f":"IF(TRIM(input_year)<>\"\",input_year&\": \",\"\")&\"Sum of race/ethnicity (ages 5 [in K] through 21)\"","v":"Sum of race/ethnicity (ages 5 [in K] through 21)"},null,null,null,null,null,null,null,"Race/ethnicity",null,null,null,null,null,null,"Race/ethnicity",null,null,null,null,null,null,"Race/ethnicity",null,null,null,null,null,null,"Race/ethnicity",null,null,null,null,null,null,"Race/ethnicity",null,null,null,null,null,null,"Race/ethnicity",null,null,null,null,null,null,"Race/ethnicity",null,null,null,null,null,null,"Race/ethnicity",null,null,null,null,null,null,{"$f":"IF(TRIM(input_year2)<>\"\",input_year2&\": \",\"\")&\"Sum of race/ethnicity (ages 5 [in K] through 21)\"","v":"Sum of race/ethnicity (ages 5 [in K] through 21)"},null,null,null,null,null,null,null,"Race/ethnicity",null,null,null,null,null,null,"Race/ethnicity",null,null,null,null,null,null,"Race/ethnicity",null,null,null,null,null,null,"Race/ethnicity",null,null,null,null,null,null,"Race/ethnicity",null,null,null,null,null,null,"Race/ethnicity",null,null,null,null,null,null,"Race/ethnicity",null,null,null,null,null,null,"Race/ethnicity",null,null,null,null,null,null,{"$f":"IF(TRIM(input_year3)<>\"\",input_year3&\": \",\"\")&\"Sum of race/ethnicity (ages 5 [in K] through 21)\"","v":"Sum of race/ethnicity (ages 5 [in K] through 21)"}]
[null,"HI7","AM7","AS7","BL7","PI7","WH7","MU7","HI7","AM7","AS7","BL7","PI7","WH7","MU7","HI7","AM7","AS7","BL7","PI7","WH7","MU7","HI7","AM7","AS7","BL7","PI7","WH7","MU7","HI7","AM7","AS7","BL7","PI7","WH7","MU7","HI7","AM7","AS7","BL7","PI7","WH7","MU7","HI7","AM7","AS7","BL7","PI7","WH7","MU7","HI7","AM7","AS7","BL7","PI7","WH7","MU7",{"$f":"\"Total: All children\"","v":"Total: All children"},{"$f":"\"Total:Autism\"","v":"Total:Autism"},{"$f":"\"Total: Emotional disturbance\"","v":"Total: Emotional disturbance"},{"$f":"\"Total: Intellectual disability\"","v":"Total: Intellectual disability"},{"$f":"\"Total: Other health impairment\"","v":"Total: Other health impairment"},{"$f":"\"Total: Specific learning disability\"","v":"Total: Specific learning disability"},{"$f":"\"Total: Speech or language impairment\"","v":"Total: Speech or language impairment"},{"$f":"\"Total: Enrollment\"","v":"Total: Enrollment"},"HI7","AM7","AS7","BL7","PI7","WH7","MU7","HI7","AM7","AS7","BL7","PI7","WH7","MU7","HI7","AM7","AS7","BL7","PI7","WH7","MU7","HI7","AM7","AS7","BL7","PI7","WH7","MU7","HI7","AM7","AS7","BL7","PI7","WH7","MU7","HI7","AM7","AS7","BL7","PI7","WH7","MU7","HI7","AM7","AS7","BL7","PI7","WH7","MU7","HI7","AM7","AS7","BL7","PI7","WH7","MU7",{"$f":"\"Total: All children\"","v":"Total: All children"},{"$f":"\"Total:Autism\"","v":"Total:Autism"},{"$f":"\"Total: Emotional disturbance\"","v":"Total: Emotional disturbance"},{"$f":"\"Total: Intellectual disability\"","v":"Total: Intellectual disability"},{"$f":"\"Total: Other health impairment\"","v":"Total: Other health impairment"},{"$f":"\"Total: Specific learning disability\"","v":"Total: Specific learning disability"},{"$f":"\"Total:Speech or language impairment\"","v":"Total:Speech or language impairment"},{"$f":"\"Total: Enrollment\"","v":"Total: Enrollment"},"HI7","AM7","AS7","BL7","PI7","WH7","MU7","HI7","AM7","AS7","BL7","PI7","WH7","MU7","HI7","AM7","AS7","BL7","PI7","WH7","MU7","HI7","AM7","AS7","BL7","PI7","WH7","MU7","HI7","AM7","AS7","BL7","PI7","WH7","MU7","HI7","AM7","AS7","BL7","PI7","WH7","MU7","HI7","AM7","AS7","BL7","PI7","WH7","MU7","HI7","AM7","AS7","BL7","PI7","WH7","MU7",{"$f":"\"Total: All children\"","v":"Total: All children"},{"$f":"\"Total:Autism\"","v":"Total:Autism"},{"$f":"\"Total: Emotional disturbance\"","v":"Total: Emotional disturbance"},{"$f":"\"Total: Intellectual disability\"","v":"Total: Intellectual disability"},{"$f":"\"Total: Other health impairment\"","v":"Total: Other health impairment"},{"$f":"\"Total: Specific learning disability\"","v":"Total: Specific learning disability"},{"$f":"\"Total: Speech or language impairment\"","v":"Total: Speech or language impairment"},{"$f":"\"Total: Enrollment\"","v":"Total: Enrollment"}]
[]
[]
[]
["Total Removals Per Child (TRPC) Ratios"]
[{"$f":"Composition!A39","v":0}]
[{"$f":"Composition!A40","v":0}]
["8 Districts"]
[]
[null,"Total Removals Per Child (TRPC)",null,null,null,null,null,null,"TRPC Ratio",null,null,null,null,null,null,"Weighted TRPC Ratio",null,null,null,null,null,null,"Alternate TRPC Ratio",null,null,null,null,null,null,"TRPC Difference"]
["ID","Hispanic / Latino","American Indian or Alaska Native","Asian","Black or African American","Native Hawaiian or Other Pacific Islander","White","Two or More Races","Hispanic / Latino","American Indian or Alaska Native","Asian","Black or African American","Native Hawaiian or Other Pacific Islander","White","Two or More Races","Hispanic / Latino","American Indian or Alaska Native","Asian","Black or African American","Native Hawaiian or Other Pacific Islander","White","Two or More Races","Hispanic / Latino","American Indian or Alaska Native","Asian","Black or African American","Native Hawaiian or Other Pacific Islander","White","Two or More Races","Hispanic / Latino","American Indian or Alaska Native","Asian","Black or African American","Native Hawaiian or Other Pacific Islander","White","Two or More Races"]
[]
[]
[]
[]
["LEA/school",{"$f":"IF(TRIM(input_year)<>\"\",input_year&\": \",\"\")&\"IDEA Data Group - All children with disabilities \n(ages 5 [in K] through 21)\"","v":"IDEA Data Group - All children with disabilities \n(ages 5 [in K] through 21)"},null,null,null,null,null,null,{"$f":"IF(TRIM(input_year)<>\"\",input_year&\": \",\"\")&\"IDEA Data Group - Autism \n(ages 5 [in K] through 21)\"","v":"IDEA Data Group - Autism \n(ages 5 [in K] through 21)"},null,null,null,null,null,null,{"$f":"IF(TRIM(input_year)<>\"\",input_year&\": \",\"\")&\"IDEA Data Group - Emotional disturbance \n(ages 5 [in K] through 21)\"","v":"IDEA Data Group - Emotional disturbance \n(ages 5 [in K] through 21)"},null,null,null,null,null,null,{"$f":"IF(TRIM(input_year)<>\"\",input_year&\": \",\"\")&\"IDEA Data Group - Intellectual disability \n(ages 5 [in K] through 21)\"","v":"IDEA Data Group - Intellectual disability \n(ages 5 [in K] through 21)"},null,null,null,null,null,null,{"$f":"IF(TRIM(input_year)<>\"\",input_year&\": \",\"\")&\"IDEA Data Group - Other health impairment \n(ages 5 [in K] through 21)\"","v":"IDEA Data Group - Other health impairment \n(ages 5 [in K] through 21)"},null,null,null,null,null,null,{"$f":"IF(TRIM(input_year)<>\"\",input_year&\": \",\"\")&\"IDEA Data Group - Specific learning disability \n(ages 5 [in K] through 21)\"","v":"IDEA Data Group - Specific learning disability \n(ages 5 [in K] through 21)"},null,null,null,null,null,null,{"$f":"IF(TRIM(input_year)<>\"\",input_year&\": \",\"\")&\"IDEA Data Group - Speech or language impairment \n(ages 5 [in K] through 21)\"","v":"IDEA Data Group - Speech or language impairment \n(ages 5 [in K] through 21)"},null,null,null,null,null,null,{"$f":"IF(TRIM(input_year2)<>\"\",input_year2&\": \",\"\")&\"IDEA Data Group - All children with disabilities \n(ages 5 [in K] through 21)\"","v":"IDEA Data Group - All children with disabilities \n(ages 5 [in K] through 21)"},null,null,null,null,null,null,{"$f":"IF(TRIM(input_year2)<>\"\",input_year2&\": \",\"\")&\"IDEA Data Group - Autism \n(ages 5 [in K] through 21)\"","v":"IDEA Data Group - Autism \n(ages 5 [in K] through 21)"},null,null,null,null,null,null,{"$f":"IF(TRIM(input_year2)<>\"\",input_year2&\": \",\"\")&\"IDEA Data Group - Emotional disturbance \n(ages 5 [in K] through 21)\"","v":"IDEA Data Group - Emotional disturbance \n(ages 5 [in K] through 21)"},null,null,null,null,null,null,{"$f":"IF(TRIM(input_year2)<>\"\",input_year2&\": \",\"\")&\"IDEA Data Group - Intellectual disability \n(ages 5 [in K] through 21)\"","v":"IDEA Data Group - Intellectual disability \n(ages 5 [in K] through 21)"},null,null,null,null,null,null,{"$f":"IF(TRIM(input_year2)<>\"\",input_year2&\": \",\"\")&\"IDEA Data Group - Other health impairment \n(ages 5 [in K] through 21)\"","v":"IDEA Data Group - Other health impairment \n(ages 5 [in K] through 21)"},null,null,null,null,null,null,{"$f":"IF(TRIM(input_year2)<>\"\",input_year2&\": \",\"\")&\"IDEA Data Group - Specific learning disability \n(ages 5 [in K] through 21)\"","v":"IDEA Data Group - Specific learning disability \n(ages 5 [in K] through 21)"},null,null,null,null,null,null,{"$f":"IF(TRIM(input_year2)<>\"\",input_year2&\": \",\"\")&\"IDEA Data Group - Speech or language impairment \n(ages 5 [in K] through 21)\"","v":"IDEA Data Group - Speech or language impairment \n(ages 5 [in K] through 21)"},null,null,null,null,null,null,{"$f":"IF(TRIM(input_year3)<>\"\",input_year3&\": \",\"\")&\"IDEA Data Group - All children with disabilities \n(ages 5 [in K] through 21)\"","v":"IDEA Data Group - All children with disabilities \n(ages 5 [in K] through 21)"},null,null,null,null,null,null,{"$f":"IF(TRIM(input_year3)<>\"\",input_year3&\": \",\"\")&\"IDEA Data Group - Autism \n(ages 5 [in K] through 21)\"","v":"IDEA Data Group - Autism \n(ages 5 [in K] through 21)"},null,null,null,null,null,null,{"$f":"IF(TRIM(input_year3)<>\"\",input_year3&\": \",\"\")&\"IDEA Data Group - Emotional disturbance \n(ages 5 [in K] through 21)\"","v":"IDEA Data Group - Emotional disturbance \n(ages 5 [in K] through 21)"},null,null,null,null,null,null,{"$f":"IF(TRIM(input_year3)<>\"\",input_year3&\": \",\"\")&\"IDEA Data Group - Intellectual disability \n(ages 5 [in K] through 21)\"","v":"IDEA Data Group - Intellectual disability \n(ages 5 [in K] through 21)"},null,null,null,null,null,null,{"$f":"IF(TRIM(input_year3)<>\"\",input_year3&\": \",\"\")&\"IDEA Data Group - Other health impairment \n(ages 5 [in K] through 21)\"","v":"IDEA Data Group - Other health impairment \n(ages 5 [in K] through 21)"},null,null,null,null,null,null,{"$f":"IF(TRIM(input_year3)<>\"\",input_year3&\": \",\"\")&\"IDEA Data Group - Specific learning disability \n(ages 5 [in K] through 21)\"","v":"IDEA Data Group - Specific learning disability \n(ages 5 [in K] through 21)"},null,null,null,null,null,null,{"$f":"IF(TRIM(input_year3)<>\"\",input_year3&\": \",\"\")&\"IDEA Data Group - Speech or language impairment \n(ages 5 [in K] through 21)\"","v":"IDEA Data Group - Speech or language impairment \n(ages 5 [in K] through 21)"}]
[null,"Race/ethnicity",null,null,null,null,null,null,"Race/ethnicity",null,null,null,null,null,null,"Race/ethnicity",null,null,null,null,null,null,"Race/ethnicity",null,null,null,null,null,null,"Race/ethnicity",null,null,null,null,null,null,"Race/ethnicity",null,null,null,null,null,null,"Race/ethnicity",null,null,null,null,null,null,"Race/ethnicity",null,null,null,null,null,null,"Race/ethnicity",null,null,null,null,null,null,"Race/ethnicity",null,null,null,null,null,null,"Race/ethnicity",null,null,null,null,null,null,"Race/ethnicity",null,null,null,null,null,null,"Race/ethnicity",null,null,null,null,null,null,"Race/ethnicity",null,null,null,null,null,null,"Race/ethnicity",null,null,null,null,null,null,"Race/ethnicity",null,null,null,null,null,null,"Race/ethnicity",null,null,null,null,null,null,"Race/ethnicity",null,null,null,null,null,null,"Race/ethnicity",null,null,null,null,null,null,"Race/ethnicity",null,null,null,null,null,null,"Race/ethnicity"]
["LEA/School","HI7","AM7","AS7","BL7","PI7","WH7","MU7","HI7","AM7","AS7","BL7","PI7","WH7","MU7","HI7","AM7","AS7","BL7","PI7","WH7","MU7","HI7","AM7","AS7","BL7","PI7","WH7","MU7","HI7","AM7","AS7","BL7","PI7","WH7","MU7","HI7","AM7","AS7","BL7","PI7","WH7","MU7","HI7","AM7","AS7","BL7","PI7","WH7","MU7","HI7","AM7","AS7","BL7","PI7","WH7","MU7","HI7","AM7","AS7","BL7","PI7","WH7","MU7","HI7","AM7","AS7","BL7","PI7","WH7","MU7","HI7","AM7","AS7","BL7","PI7","WH7","MU7","HI7","AM7","AS7","BL7","PI7","WH7","MU7","HI7","AM7","AS7","BL7","PI7","WH7","MU7","HI7","AM7","AS7","BL7","PI7","WH7","MU7","HI7","AM7","AS7","BL7","PI7","WH7","MU7","HI7","AM7","AS7","BL7","PI7","WH7","MU7","HI7","AM7","AS7","BL7","PI7","WH7","MU7","HI7","AM7","AS7","BL7","PI7","WH7","MU7","HI7","AM7","AS7","BL7","PI7","WH7","MU7","HI7","AM7","AS7","BL7","PI7","WH7","MU7","HI7","AM7","AS7","BL7","PI7","WH7","MU7"]
[]
[]
[]
["LEA/school",{"$f":"IF(TRIM(input_year)<>\"\",input_year&\": \",\"\")&\"Comparison Data - Total student enrollment \n(ages 5 [in K] through 21)\"","v":"Comparison Data - Total student enrollment \n(ages 5 [in K] through 21)"},null,null,null,null,null,null,{"$f":"IF(TRIM(input_year2)<>\"\",input_year2&\": \",\"\")&\"Comparison Data - Total student enrollment \n(ages 5 [in K] through 21)\"","v":"Comparison Data - Total student enrollment \n(ages 5 [in K] through 21)"},null,null,null,null,null,null,{"$f":"IF(TRIM(input_year3)<>\"\",input_year3&\": \",\"\")&\"Comparison Data - Total student enrollment \n(ages 5 [in K] through 21)\"","v":"Comparison Data - Total student enrollment \n(ages 5 [in K] through 21)"}]
[null,"Race/ethnicity",null,null,null,null,null,null,"Race/ethnicity",null,null,null,null,null,null,"Race/ethnicity"]
["LEA/School","HI7","AM7","AS7","BL7","PI7","WH7","MU7","HI7","AM7","AS7","BL7","PI7","WH7","MU7","HI7","AM7","AS7","BL7","PI7","WH7","MU7"]
[]
[]
[]
[]
[]
["LEA/school",{"$f":"IF(TRIM(input_year)<>\"\",input_year&\": \",\"\")&\"Risk\"","v":"Risk"},null,null,null,null,null,null,{"$f":"IF(TRIM(input_year)<>\"\",input_year&\": \",\"\")&\"Risk\"","v":"Risk"},null,null,null,null,null,null,{"$f":"IF(TRIM(input_year)<>\"\",input_year&\": \",\"\")&\"Risk\"","v":"Risk"},null,null,null,null,null,null,{"$f":"IF(TRIM(input_year)<>\"\",input_year&\": \",\"\")&\"Risk\"","v":"Risk"},null,null,null,null,null,null,{"$f":"IF(TRIM(input_year)<>\"\",input_year&\": \",\"\")&\"Risk\"","v":"Risk"},null,null,null,null,null,null,{"$f":"IF(TRIM(input_year)<>\"\",input_year&\": \",\"\")&\"Risk\"","v":"Risk"},null,null,null,null,null,null,{"$f":"IF(TRIM(input_year)<>\"\",input_year&\": \",\"\")&\"Risk\"","v":"Risk"},null,null,null,null,null,null,{"$f":"IF(TRIM(input_year)<>\"\",input_year&\": \",\"\")&\"Risk for comparison\"","v":"Risk for comparison"},null,null,null,null,null,null,{"$f":"IF(TRIM(input_year)<>\"\",input_year&\": \",\"\")&\"Risk for comparison\"","v":"Risk for comparison"},null,null,null,null,null,null,{"$f":"IF(TRIM(input_year)<>\"\",input_year&\": \",\"\")&\"Risk for comparison\"","v":"Risk for comparison"},null,null,null,null,null,null,{"$f":"IF(TRIM(input_year)<>\"\",input_year&\": \",\"\")&\"Risk for comparison\"","v":"Risk for comparison"},null,null,null,null,null,null,{"$f":"IF(TRIM(input_year)<>\"\",input_year&\": \",\"\")&\"Risk for comparison\"","v":"Risk for comparison"},null,null,null,null,null,null,{"$f":"IF(TRIM(input_year)<>\"\",input_year&\": \",\"\")&\"Risk for comparison\"","v":"Risk for comparison"},null,null,null,null,null,null,{"$f":"IF(TRIM(input_year)<>\"\",input_year&\": \",\"\")&\"Risk for comparison\"","v":"Risk for comparison"},null,null,null,null,null,null,{"$f":"IF(TRIM(input_year)<>\"\",input_year&\": \",\"\")&\"Risk ratio\"","v":"Risk ratio"},null,null,null,null,null,null,{"$f":"IF(TRIM(input_year)<>\"\",input_year&\": \",\"\")&\"Risk ratio\"","v":"Risk ratio"},null,null,null,null,null,null,{"$f":"IF(TRIM(input_year)<>\"\",input_year&\": \",\"\")&\"Risk ratio\"","v":"Risk ratio"},null,null,null,null,null,null,{"$f":"IF(TRIM(input_year)<>\"\",input_year&\": \",\"\")&\"Risk ratio\"","v":"Risk ratio"},null,null,null,null,null,null,{"$f":"IF(TRIM(input_year)<>\"\",input_year&\": \",\"\")&\"Risk ratio\"","v":"Risk ratio"},null,null,null,null,null,null,{"$f":"IF(TRIM(input_year)<>\"\",input_year&\": \",\"\")&\"Risk ratio\"","v":"Risk ratio"},null,null,null,null,null,null,{"$f":"IF(TRIM(input_year)<>\"\",input_year&\": \",\"\")&\"Risk ratio\"","v":"Risk ratio"},null,null,null,null,null,null,{"$f":"IF(TRIM(input_year2)<>\"\",input_year2&\": \",\"\")&\"Risk\"","v":"Risk"},null,null,null,null,null,null,{"$f":"IF(TRIM(input_year2)<>\"\",input_year2&\": \",\"\")&\"Risk\"","v":"Risk"},null,null,null,null,null,null,{"$f":"IF(TRIM(input_year2)<>\"\",input_year2&\": \",\"\")&\"Risk\"","v":"Risk"},null,null,null,null,null,null,{"$f":"IF(TRIM(input_year2)<>\"\",input_year2&\": \",\"\")&\"Risk\"","v":"Risk"},null,null,null,null,null,null,{"$f":"IF(TRIM(input_year2)<>\"\",input_year2&\": \",\"\")&\"Risk\"","v":"Risk"},null,null,null,null,null,null,{"$f":"IF(TRIM(input_year2)<>\"\",input_year2&\": \",\"\")&\"Risk\"","v":"Risk"},null,null,null,null,null,null,{"$f":"IF(TRIM(input_year2)<>\"\",input_year2&\": \",\"\")&\"Risk\"","v":"Risk"},null,null,null,null,null,null,{"$f":"IF(TRIM(input_year2)<>\"\",input_year2&\": \",\"\")&\"Risk for comparison\"","v":"Risk for comparison"},null,null,null,null,null,null,{"$f":"IF(TRIM(input_year2)<>\"\",input_year2&\": \",\"\")&\"Risk for comparison\"","v":"Risk for comparison"},null,null,null,null,null,null,{"$f":"IF(TRIM(input_year2)<>\"\",input_year2&\": \",\"\")&\"Risk for comparison\"","v":"Risk for comparison"},null,null,null,null,null,null,{"$f":"IF(TRIM(input_year2)<>\"\",input_year2&\": \",\"\")&\"Risk for comparison\"","v":"Risk for comparison"},null,null,null,null,null,null,{"$f":"IF(TRIM(input_year2)<>\"\",input_year2&\": \",\"\")&\"Risk for comparison\"","v":"Risk for comparison"},null,null,null,null,null,null,{"$f":"IF(TRIM(input_year2)<>\"\",input_year2&\": \",\"\")&\"Risk for comparison\"","v":"Risk for comparison"},null,null,null,null,null,null,{"$f":"IF(TRIM(input_year2)<>\"\",input_year2&\": \",\"\")&\"Risk for comparison\"","v":"Risk for comparison"},null,null,null,null,null,null,{"$f":"IF(TRIM(input_year2)<>\"\",input_year2&\": \",\"\")&\"Risk ratio\"","v":"Risk ratio"},null,null,null,null,null,null,{"$f":"IF(TRIM(input_year2)<>\"\",input_year2&\": \",\"\")&\"Risk ratio\"","v":"Risk ratio"},null,null,null,null,null,null,{"$f":"IF(TRIM(input_year2)<>\"\",input_year2&\": \",\"\")&\"Risk ratio\"","v":"Risk ratio"},null,null,null,null,null,null,{"$f":"IF(TRIM(input_year2)<>\"\",input_year2&\": \",\"\")&\"Risk ratio\"","v":"Risk ratio"},null,null,null,null,null,null,{"$f":"IF(TRIM(input_year2)<>\"\",input_year2&\": \",\"\")&\"Risk ratio\"","v":"Risk ratio"},null,null,null,null,null,null,{"$f":"IF(TRIM(input_year2)<>\"\",input_year2&\": \",\"\")&\"Risk ratio\"","v":"Risk ratio"},null,null,null,null,null,null,{"$f":"IF(TRIM(input_year2)<>\"\",input_year2&\": \",\"\")&\"Risk ratio\"","v":"Risk ratio"},null,null,null,null,null,null,{"$f":"IF(TRIM(input_year3)<>\"\",input_year3&\": \",\"\")&\"Risk\"","v":"Risk"},null,null,null,null,null,null,{"$f":"IF(TRIM(input_year3)<>\"\",input_year3&\": \",\"\")&\"Risk\"","v":"Risk"},null,null,null,null,null,null,{"$f":"IF(TRIM(input_year3)<>\"\",input_year3&\": \",\"\")&\"Risk\"","v":"Risk"},null,null,null,null,null,null,{"$f":"IF(TRIM(input_year3)<>\"\",input_year3&\": \",\"\")&\"Risk\"","v":"Risk"},null,null,null,null,null,null,{"$f":"IF(TRIM(input_year3)<>\"\",input_year3&\": \",\"\")&\"Risk\"","v":"Risk"},null,null,null,null,null,null,{"$f":"IF(TRIM(input_year3)<>\"\",input_year3&\": \",\"\")&\"Risk\"","v":"Risk"},null,null,null,null,null,null,{"$f":"IF(TRIM(input_year3)<>\"\",input_year3&\": \",\"\")&\"Risk\"","v":"Risk"},null,null,null,null,null,null,{"$f":"IF(TRIM(input_year3)<>\"\",input_year3&\": \",\"\")&\"Risk for comparison\"","v":"Risk for comparison"},null,null,null,null,null,null,{"$f":"IF(TRIM(input_year3)<>\"\",input_year3&\": \",\"\")&\"Risk for comparison\"","v":"Risk for comparison"},null,null,null,null,null,null,{"$f":"IF(TRIM(input_year3)<>\"\",input_year3&\": \",\"\")&\"Risk for comparison\"","v":"Risk for comparison"},null,null,null,null,null,null,{"$f":"IF(TRIM(input_year3)<>\"\",input_year3&\": \",\"\")&\"Risk for comparison\"","v":"Risk for comparison"},null,null,null,null,null,null,{"$f":"IF(TRIM(input_year3)<>\"\",input_year3&\": \",\"\")&\"Risk for comparison\"","v":"Risk for comparison"},null,null,null,null,null,null,{"$f":"IF(TRIM(input_year3)<>\"\",input_year3&\": \",\"\")&\"Risk for comparison\"","v":"Risk for comparison"},null,null,null,null,null,null,{"$f":"IF(TRIM(input_year3)<>\"\",input_year3&\": \",\"\")&\"Risk for comparison\"","v":"Risk for comparison"},null,null,null,null,null,null,{"$f":"IF(TRIM(input_year3)<>\"\",input_year3&\": \",\"\")&\"Risk ratio\"","v":"Risk ratio"},null,null,null,null,null,null,{"$f":"IF(TRIM(input_year3)<>\"\",input_year3&\": \",\"\")&\"Risk ratio\"","v":"Risk ratio"},null,null,null,null,null,null,{"$f":"IF(TRIM(input_year3)<>\"\",input_year3&\": \",\"\")&\"Risk ratio\"","v":"Risk ratio"},null,null,null,null,null,null,{"$f":"IF(TRIM(input_year3)<>\"\",input_year3&\": \",\"\")&\"Risk ratio\"","v":"Risk ratio"},null,null,null,null,null,null,{"$f":"IF(TRIM(input_year3)<>\"\",input_year3&\": \",\"\")&\"Risk ratio\"","v":"Risk ratio"},null,null,null,null,null,null,{"$f":"IF(TRIM(input_year3)<>\"\",input_year3&\": \",\"\")&\"Risk ratio\"","v":"Risk ratio"},null,null,null,null,null,null,{"$f":"IF(TRIM(input_year3)<>\"\",input_year3&\": \",\"\")&\"Risk ratio\"","v":"Risk ratio"}]
[null,"All children with disabilities (ages 5 [in K] through 21)",null,null,null,null,null,null,"Autism (ages 5 [in K] through 21)",null,null,null,null,null,null,"Emotional disturbance (ages 5 [in K] through 21)",null,null,null,null,null,null,"Intellectual disability (ages 5 [in K] through 21)",null,null,null,null,null,null,"Other health impairment (ages 5 [in K] through 21)",null,null,null,null,null,null,"Specific learning disability (ages 5 [in K] through 21)",null,null,null,null,null,null,"Speech or language impairment (ages 5 [in K] through 21)",null,null,null,null,null,null,"All children with disabilities (ages 5 [in K] through 21)",null,null,null,null,null,null,"Autism (ages 5 [in K] through 21)",null,null,null,null,null,null,"Emotional disturbance (ages 5 [in K] through 21)",null,null,null,null,null,null," Intellectual disability (ages 5 [in K] through 21)",null,null,null,null,null,null,"Other health impairment (ages 5 [in K] through 21)",null,null,null,null,null,null,"Specific learning disability (ages 5 [in K] through 21)",null,null,null,null,null,null,"Speech or language impairment (ages 5 [in K] through 21)",null,null,null,null,null,null,"All children with disabilities (ages 5 [in K] through 21)",null,null,null,null,null,null,"Autism (ages 5 [in K] through 21)",null,null,null,null,null,null,"Emotional disturbance (ages 5 [in K] through 21)",null,null,null,null,null,null,"Intellectual disability (ages 5 [in K] through 21)",null,null,null,null,null,null,"Other health impairment (ages 5 [in K] through 21)",null,null,null,null,null,null,"Specific learning disability (ages 5 [in K] through 21)",null,null,null,null,null,null,"Speech or language impairment (ages 5 [in K] through 21)",null,null,null,null,null,null,"All children with disabilities (ages 5 [in K] through 21)",null,null,null,null,null,null,"Autism (ages 5 [in K] through 21)",null,null,null,null,null,null,"Emotional disturbance (ages 5 [in K] through 21)",null,null,null,null,null,null,"Intellectual disability (ages 5 [in K] through 21)",null,null,null,null,null,null,"Other health impairment (ages 5 [in K] through 21)",null,null,null,null,null,null,"Specific learning disability (ages 5 [in K] through 21)",null,null,null,null,null,null,"Speech or language impairment (ages 5 [in K] through 21)",null,null,null,null,null,null,"All children with disabilities (ages 5 [in K] through 21)",null,null,null,null,null,null,"Autism (ages 5 [in K] through 21)",null,null,null,null,null,null,"Emotional disturbance (ages 5 [in K] through 21)",null,null,null,null,null,null,"Intellectual disability (ages 5 [in K] through 21)",null,null,null,null,null,null,"Other health impairment (ages 5 [in K] through 21)",null,null,null,null,null,null,"Specific learning disability (ages 5 [in K] through 21)",null,null,null,null,null,null,"Speech or language impairment (ages 5 [in K] through 21)",null,null,null,null,null,null,"All children with disabilities (ages 5 [in K] through 21)",null,null,null,null,null,null,"Autism (ages 5 [in K] through 21)",null,null,null,null,null,null,"Emotional disturbance (ages 5 [in K] through 21)",null,null,null,null,null,null,"Intellectual disability (ages 5 [in K] through 21)",null,null,null,null,null,null,"Other health impairment (ages 5 [in K] through 21)",null,null,null,null,null,null,"Specific learning disability (ages 5 [in K] through 21)",null,null,null,null,null,null,"Speech or language impairment (ages 5 [in K] through 21)",null,null,null,null,null,null,"All children with disabilities (ages 5 [in K] through 21)",null,null,null,null,null,null,"Autism (ages 5 [in K] through 21)",null,null,null,null,null,null,"Emotional disturbance (ages 5 [in K] through 21)",null,null,null,null,null,null,"Intellectual disability (ages 5 [in K] through 21)",null,null,null,null,null,null,"Other health impairment (ages 5 [in K] through 21)",null,null,null,null,null,null,"Specific learning disability (ages 5 [in K] through 21)",null,null,null,null,null,null,"Speech or language impairment (ages 5 [in K] through 21)",null,null,null,null,null,null,"All children with disabilities (ages 5 [in K] through 21)",null,null,null,null,null,null,"Autism (ages 5 [in K] through 21)",null,null,null,null,null,null,"Emotional disturbance (ages 5 [in K] through 21)",null,null,null,null,null,null,"Intellectual disability (ages 5 [in K] through 21)",null,null,null,null,null,null,"Other health impairment (ages 5 [in K] through 21)",null,null,null,null,null,null,"Specific learning disability (ages 5 [in K] through 21)",null,null,null,null,null,null,"Speech or language impairment (ages 5 [in K] through 21)",null,null,null,null,null,null,"All children with disabilities (ages 5 [in K] through 21)",null,null,null,null,null,null,"Autism (ages 5 [in K] through 21)",null,null,null,null,null,null,"Emotional disturbance (ages 5 [in K] through 21)",null,null,null,null,null,null,"Intellectual disability (ages 5 [in K] through 21)",null,null,null,null,null,null,"Other health impairment (ages 5 [in K] through 21)",null,null,null,null,null,null,"Specific learning disability (ages 5 [in K] through 21)",null,null,null,null,null,null,"Speech or language impairment (ages 5 [in K] through 21)"]
[null,"Race/ethnicity",null,null,null,null,null,null,"Race/ethnicity",null,null,null,null,null,null,"Race/ethnicity",null,null,null,null,null,null,"Race/ethnicity",null,null,null,null,null,null,"Race/ethnicity",null,null,null,null,null,null,"Race/ethnicity",null,null,null,null,null,null,"Race/ethnicity",null,null,null,null,null,null,"Race/ethnicity",null,null,null,null,null,null,"Race/ethnicity",null,null,null,null,null,null,"Race/ethnicity",null,null,null,null,null,null,"Race/ethnicity",null,null,null,null,null,null,"Race/ethnicity",null,null,null,null,null,null,"Race/ethnicity",null,null,null,null,null,null,"Race/ethnicity",null,null,null,null,null,null,"Race/ethnicity",null,null,null,null,null,null,"Race/ethnicity",null,null,null,null,null,null,"Race/ethnicity",null,null,null,null,null,null,"Race/ethnicity",null,null,null,null,null,null,"Race/ethnicity",null,null,null,null,null,null,"Race/ethnicity",null,null,null,null,null,null,"Race/ethnicity",null,null,null,null,null,null,"Race/ethnicity",null,null,null,null,null,null,"Race/ethnicity",null,null,null,null,null,null,"Race/ethnicity",null,null,null,null,null,null,"Race/ethnicity",null,null,null,null,null,null,"Race/ethnicity",null,null,null,null,null,null,"Race/ethnicity",null,null,null,null,null,null,"Race/ethnicity",null,null,null,null,null,null,"Race/ethnicity",null,null,null,null,null,null,"Race/ethnicity",null,null,null,null,null,null,"Race/ethnicity",null,null,null,null,null,null,"Race/ethnicity",null,null,null,null,null,null,"Race/ethnicity",null,null,null,null,null,null,"Race/ethnicity",null,null,null,null,null,null,"Race/ethnicity",null,null,null,null,null,null,"Race/ethnicity",null,null,null,null,null,null,"Race/ethnicity",null,null,null,null,null,null,"Race/ethnicity",null,null,null,null,null,null,"Race/ethnicity",null,null,null,null,null,null,"Race/ethnicity",null,null,null,null,null,null,"Race/ethnicity",null,null,null,null,null,null,"Race/ethnicity",null,null,null,null,null,null,"Race/ethnicity",null,null,null,null,null,null,"Race/ethnicity",null,null,null,null,null,null,"Race/ethnicity",null,null,null,null,null,null,"Race/ethnicity",null,null,null,null,null,null,"Race/ethnicity",null,null,null,null,null,null,"Race/ethnicity",null,null,null,null,null,null,"Race/ethnicity",null,null,null,null,null,null,"Race/ethnicity",null,null,null,null,null,null,"Race/ethnicity",null,null,null,null,null,null,"Race/ethnicity",null,null,null,null,null,null,"Race/ethnicity",null,null,null,null,null,null,"Race/ethnicity",null,null,null,null,null,null,"Race/ethnicity",null,null,null,null,null,null,"Race/ethnicity",null,null,null,null,null,null,"Race/ethnicity",null,null,null,null,null,null,"Race/ethnicity",null,null,null,null,null,null,"Race/ethnicity",null,null,null,null,null,null,"Race/ethnicity",null,null,null,null,null,null,"Race/ethnicity",null,null,null,null,null,null,"Race/ethnicity",null,null,null,null,null,null,"Race/ethnicity"]
[null,"HI7","AM7","AS7","BL7","PI7","WH7","MU7","HI7","AM7","AS7","BL7","PI7","WH7","MU7","HI7","AM7","AS7","BL7","PI7","WH7","MU7","HI7","AM7","AS7","BL7","PI7","WH7","MU7","HI7","AM7","AS7","BL7","PI7","WH7","MU7","HI7","AM7","AS7","BL7","PI7","WH7","MU7","HI7","AM7","AS7","BL7","PI7","WH7","MU7","HI7","AM7","AS7","BL7","PI7","WH7","MU7","HI7","AM7","AS7","BL7","PI7","WH7","MU7","HI7","AM7","AS7","BL7","PI7","WH7","MU7","HI7","AM7","AS7","BL7","PI7","WH7","MU7","HI7","AM7","AS7","BL7","PI7","WH7","MU7","HI7","AM7","AS7","BL7","PI7","WH7","MU7","HI7","AM7","AS7","BL7","PI7","WH7","MU7","HI7","AM7","AS7","BL7","PI7","WH7","MU7","HI7","AM7","AS7","BL7","PI7","WH7","MU7","HI7","AM7","AS7","BL7","PI7","WH7","MU7","HI7","AM7","AS7","BL7","PI7","WH7","MU7","HI7","AM7","AS7","BL7","PI7","WH7","MU7","HI7","AM7","AS7","BL7","PI7","WH7","MU7","HI7","AM7","AS7","BL7","PI7","WH7","MU7","HI7","AM7","AS7","BL7","PI7","WH7","MU7","HI7","AM7","AS7","BL7","PI7","WH7","MU7","HI7","AM7","AS7","BL7","PI7","WH7","MU7","HI7","AM7","AS7","BL7","PI7","WH7","MU7","HI7","AM7","AS7","BL7","PI7","WH7","MU7","HI7","AM7","AS7","BL7","PI7","WH7","MU7","HI7","AM7","AS7","BL7","PI7","WH7","MU7","HI7","AM7","AS7","BL7","PI7","WH7","MU7","HI7","AM7","AS7","BL7","PI7","WH7","MU7","HI7","AM7","AS7","BL7","PI7","WH7","MU7","HI7","AM7","AS7","BL7","PI7","WH7","MU7","HI7","AM7","AS7","BL7","PI7","WH7","MU7","HI7","AM7","AS7","BL7","PI7","WH7","MU7","HI7","AM7","AS7","BL7","PI7","WH7","MU7","HI7","AM7","AS7","BL7","PI7","WH7","MU7","HI7","AM7","AS7","BL7","PI7","WH7","MU7","HI7","AM7","AS7","BL7","PI7","WH7","MU7","HI7","AM7","AS7","BL7","PI7","WH7","MU7","HI7","AM7","AS7","BL7","PI7","WH7","MU7","HI7","AM7","AS7","BL7","PI7","WH7","MU7","HI7","AM7","AS7","BL7","PI7","WH7","MU7","HI7","AM7","AS7","BL7","PI7","WH7","MU7","HI7","AM7","AS7","BL7","PI7","WH7","MU7","HI7","AM7","AS7","BL7","PI7","WH7","MU7","HI7","AM7","AS7","BL7","PI7","WH7","MU7","HI7","AM7","AS7","BL7","PI7","WH7","MU7","HI7","AM7","AS7","BL7","PI7","WH7","MU7","HI7","AM7","AS7","BL7","PI7","WH7","MU7","HI7","AM7","AS7","BL7","PI7","WH7","MU7","HI7","AM7","AS7","BL7","PI7","WH7","MU7","HI7","AM7","AS7","BL7","PI7","WH7","MU7","HI7","AM7","AS7","BL7","PI7","WH7","MU7","HI7","AM7","AS7","BL7","PI7","WH7","MU7","HI7","AM7","AS7","BL7","PI7","WH7","MU7","HI7","AM7","AS7","BL7","PI7","WH7","MU7","HI7","AM7","AS7","BL7","PI7","WH7","MU7","HI7","AM7","AS7","BL7","PI7","WH7","MU7","HI7","AM7","AS7","BL7","PI7","WH7","MU7","HI7","AM7","AS7","BL7","PI7","WH7","MU7","HI7","AM7","AS7","BL7","PI7","WH7","MU7","HI7","AM7","AS7","BL7","PI7","WH7","MU7","HI7","AM7","AS7","BL7","PI7","WH7","MU7"]
[]
[]
[]
[]
[]
[]
["LEA/school",{"$f":"IF(TRIM(input_year)<>\"\",input_year&\": \",\"\")&\"Risk\"","v":"Risk"},null,null,null,null,null,null,{"$f":"IF(TRIM(input_year)<>\"\",input_year&\": \",\"\")&\"Risk\"","v":"Risk"},null,null,null,null,null,null,{"$f":"IF(TRIM(input_year)<>\"\",input_year&\": \",\"\")&\"Risk\"","v":"Risk"},null,null,null,null,null,null,{"$f":"IF(TRIM(input_year)<>\"\",input_year&\": \",\"\")&\"Risk\"","v":"Risk"},null,null,null,null,null,null,{"$f":"IF(TRIM(input_year)<>\"\",input_year&\": \",\"\")&\"Risk\"","v":"Risk"},null,null,null,null,null,null,{"$f":"IF(TRIM(input_year)<>\"\",input_year&\": \",\"\")&\"Risk\"","v":"Risk"},null,null,null,null,null,null,{"$f":"IF(TRIM(input_year)<>\"\",input_year&\": \",\"\")&\"Risk\"","v":"Risk"},null,null,null,null,null,null,{"$f":"IF(TRIM(input_year)<>\"\",input_year&\": \",\"\")&\"Risk for comparison\"","v":"Risk for comparison"},null,null,null,null,null,null,{"$f":"IF(TRIM(input_year)<>\"\",input_year&\": \",\"\")&\"Risk for comparison\"","v":"Risk for comparison"},null,null,null,null,null,null,{"$f":"IF(TRIM(input_year)<>\"\",input_year&\": \",\"\")&\"Risk for comparison\"","v":"Risk for comparison"},null,null,null,null,null,null,{"$f":"IF(TRIM(input_year)<>\"\",input_year&\": \",\"\")&\"Risk for comparison\"","v":"Risk for comparison"},null,null,null,null,null,null,{"$f":"IF(TRIM(input_year)<>\"\",input_year&\": \",\"\")&\"Risk for comparison\"","v":"Risk for comparison"},null,null,null,null,null,null,{"$f":"IF(TRIM(input_year)<>\"\",input_year&\": \",\"\")&\"Risk for comparison\"","v":"Risk for comparison"},null,null,null,null,null,null,{"$f":"IF(TRIM(input_year)<>\"\",input_year&\": \",\"\")&\"Risk for comparison\"","v":"Risk for comparison"},null,null,null,null,null,null,{"$f":"IF(TRIM(input_year)<>\"\",input_year&\": \",\"\")&\"Risk difference\"","v":"Risk difference"},null,null,null,null,null,null,{"$f":"IF(TRIM(input_year)<>\"\",input_year&\": \",\"\")&\"Risk difference\"","v":"Risk difference"},null,null,null,null,null,null,{"$f":"IF(TRIM(input_year)<>\"\",input_year&\": \",\"\")&\"Risk difference\"","v":"Risk difference"},null,null,null,null,null,null,{"$f":"IF(TRIM(input_year)<>\"\",input_year&\": \",\"\")&\"Risk difference\"","v":"Risk difference"},null,null,null,null,null,null,{"$f":"IF(TRIM(input_year)<>\"\",input_year&\": \",\"\")&\"Risk difference\"","v":"Risk difference"},null,null,null,null,null,null,{"$f":"IF(TRIM(input_year)<>\"\",input_year&\": \",\"\")&\"Risk difference\"","v":"Risk difference"},null,null,null,null,null,null,{"$f":"IF(TRIM(input_year)<>\"\",input_year&\": \",\"\")&\"Risk difference\"","v":"Risk difference"},null,null,null,null,null,null,{"$f":"IF(TRIM(input_year2)<>\"\",input_year2&\": \",\"\")&\"Risk\"","v":"Risk"},null,null,null,null,null,null,{"$f":"IF(TRIM(input_year2)<>\"\",input_year2&\": \",\"\")&\"Risk\"","v":"Risk"},null,null,null,null,null,null,{"$f":"IF(TRIM(input_year2)<>\"\",input_year2&\": \",\"\")&\"Risk\"","v":"Risk"},null,null,null,null,null,null,{"$f":"IF(TRIM(input_year2)<>\"\",input_year2&\": \",\"\")&\"Risk\"","v":"Risk"},null,null,null,null,null,null,{"$f":"IF(TRIM(input_year2)<>\"\",input_year2&\": \",\"\")&\"Risk\"","v":"Risk"},null,null,null,null,null,null,{"$f":"IF(TRIM(input_year2)<>\"\",input_year2&\": \",\"\")&\"Risk\"","v":"Risk"},null,null,null,null,null,null,{"$f":"IF(TRIM(input_year2)<>\"\",input_year2&\": \",\"\")&\"Risk\"","v":"Risk"},null,null,null,null,null,null,{"$f":"IF(TRIM(input_year2)<>\"\",input_year2&\": \",\"\")&\"Risk for comparison\"","v":"Risk for comparison"},null,null,null,null,null,null,{"$f":"IF(TRIM(input_year2)<>\"\",input_year2&\": \",\"\")&\"Risk for comparison\"","v":"Risk for comparison"},null,null,null,null,null,null,{"$f":"IF(TRIM(input_year2)<>\"\",input_year2&\": \",\"\")&\"Risk for comparison\"","v":"Risk for comparison"},null,null,null,null,null,null,{"$f":"IF(TRIM(input_year2)<>\"\",input_year2&\": \",\"\")&\"Risk for comparison\"","v":"Risk for comparison"},null,null,null,null,null,null,{"$f":"IF(TRIM(input_year2)<>\"\",input_year2&\": \",\"\")&\"Risk for comparison\"","v":"Risk for comparison"},null,null,null,null,null,null,{"$f":"IF(TRIM(input_year2)<>\"\",input_year2&\": \",\"\")&\"Risk for comparison\"","v":"Risk for comparison"},null,null,null,null,null,null,{"$f":"IF(TRIM(input_year2)<>\"\",input_year2&\": \",\"\")&\"Risk for comparison\"","v":"Risk for comparison"},null,null,null,null,null,null,{"$f":"IF(TRIM(input_year2)<>\"\",input_year2&\": \",\"\")&\"Risk difference\"","v":"Risk difference"},null,null,null,null,null,null,{"$f":"IF(TRIM(input_year2)<>\"\",input_year2&\": \",\"\")&\"Risk difference\"","v":"Risk difference"},null,null,null,null,null,null,{"$f":"IF(TRIM(input_year2)<>\"\",input_year2&\": \",\"\")&\"Risk difference\"","v":"Risk difference"},null,null,null,null,null,null,{"$f":"IF(TRIM(input_year2)<>\"\",input_year2&\": \",\"\")&\"Risk difference\"","v":"Risk difference"},null,null,null,null,null,null,{"$f":"IF(TRIM(input_year2)<>\"\",input_year2&\": \",\"\")&\"Risk difference\"","v":"Risk difference"},null,null,null,null,null,null,{"$f":"IF(TRIM(input_year2)<>\"\",input_year2&\": \",\"\")&\"Risk difference\"","v":"Risk difference"},null,null,null,null,null,null,{"$f":"IF(TRIM(input_year2)<>\"\",input_year2&\": \",\"\")&\"Risk difference\"","v":"Risk difference"},null,null,null,null,null,null,{"$f":"IF(TRIM(input_year3)<>\"\",input_year3&\": \",\"\")&\"Risk\"","v":"Risk"},null,null,null,null,null,null,{"$f":"IF(TRIM(input_year3)<>\"\",input_year3&\": \",\"\")&\"Risk\"","v":"Risk"},null,null,null,null,null,null,{"$f":"IF(TRIM(input_year3)<>\"\",input_year3&\": \",\"\")&\"Risk\"","v":"Risk"},null,null,null,null,null,null,{"$f":"IF(TRIM(input_year3)<>\"\",input_year3&\": \",\"\")&\"Risk\"","v":"Risk"},null,null,null,null,null,null,{"$f":"IF(TRIM(input_year3)<>\"\",input_year3&\": \",\"\")&\"Risk\"","v":"Risk"},null,null,null,null,null,null,{"$f":"IF(TRIM(input_year3)<>\"\",input_year3&\": \",\"\")&\"Risk\"","v":"Risk"},null,null,null,null,null,null,{"$f":"IF(TRIM(input_year3)<>\"\",input_year3&\": \",\"\")&\"Risk\"","v":"Risk"},null,null,null,null,null,null,{"$f":"IF(TRIM(input_year3)<>\"\",input_year3&\": \",\"\")&\"Risk for comparison\"","v":"Risk for comparison"},null,null,null,null,null,null,{"$f":"IF(TRIM(input_year3)<>\"\",input_year3&\": \",\"\")&\"Risk for comparison\"","v":"Risk for comparison"},null,null,null,null,null,null,{"$f":"IF(TRIM(input_year3)<>\"\",input_year3&\": \",\"\")&\"Risk for comparison\"","v":"Risk for comparison"},null,null,null,null,null,null,{"$f":"IF(TRIM(input_year3)<>\"\",input_year3&\": \",\"\")&\"Risk for comparison\"","v":"Risk for comparison"},null,null,null,null,null,null,{"$f":"IF(TRIM(input_year3)<>\"\",input_year3&\": \",\"\")&\"Risk for comparison\"","v":"Risk for comparison"},null,null,null,null,null,null,{"$f":"IF(TRIM(input_year3)<>\"\",input_year3&\": \",\"\")&\"Risk for comparison\"","v":"Risk for comparison"},null,null,null,null,null,null,{"$f":"IF(TRIM(input_year3)<>\"\",input_year3&\": \",\"\")&\"Risk for comparison\"","v":"Risk for comparison"},null,null,null,null,null,null,{"$f":"IF(TRIM(input_year3)<>\"\",input_year3&\": \",\"\")&\"Risk difference\"","v":"Risk difference"},null,null,null,null,null,null,{"$f":"IF(TRIM(input_year3)<>\"\",input_year3&\": \",\"\")&\"Risk difference\"","v":"Risk difference"},null,null,null,null,null,null,{"$f":"IF(TRIM(input_year3)<>\"\",input_year3&\": \",\"\")&\"Risk difference\"","v":"Risk difference"},null,null,null,null,null,null,{"$f":"IF(TRIM(input_year3)<>\"\",input_year3&\": \",\"\")&\"Risk difference\"","v":"Risk difference"},null,null,null,null,null,null,{"$f":"IF(TRIM(input_year3)<>\"\",input_year3&\": \",\"\")&\"Risk difference\"","v":"Risk difference"},null,null,null,null,null,null,{"$f":"IF(TRIM(input_year3)<>\"\",input_year3&\": \",\"\")&\"Risk difference\"","v":"Risk difference"},null,null,null,null,null,null,{"$f":"IF(TRIM(input_year3)<>\"\",input_year3&\": \",\"\")&\"Risk difference\"","v":"Risk difference"}]
[null,"All children with disabilities (ages 5 [in K] through 21)",null,null,null,null,null,null,"Autism (ages 5 [in K] through 21)",null,null,null,null,null,null,"Emotional disturbance (ages 5 [in K] through 21)",null,null,null,null,null,null,"Intellectual disability (ages 5 [in K] through 21)",null,null,null,null,null,null,"Other health impairment (ages 5 [in K] through 21)",null,null,null,null,null,null,"Specific learning disability (ages 5 [in K] through 21)",null,null,null,null,null,null,"Speech or language impairment (ages 5 [in K] through 21)",null,null,null,null,null,null,"All children with disabilities (ages 5 [in K] through 21)",null,null,null,null,null,null,"Autism (ages 5 [in K] through 21)",null,null,null,null,null,null,"Emotional disturbance (ages 5 [in K] through 21)",null,null,null,null,null,null," Intellectual disability (ages 5 [in K] through 21)",null,null,null,null,null,null,"Other health impairment (ages 5 [in K] through 21)",null,null,null,null,null,null,"Specific learning disability (ages 5 [in K] through 21)",null,null,null,null,null,null,"Speech or language impairment (ages 5 [in K] through 21)",null,null,null,null,null,null,"All children with disabilities (ages 5 [in K] through 21)",null,null,null,null,null,null,"Autism (ages 5 [in K] through 21)",null,null,null,null,null,null,"Emotional disturbance (ages 5 [in K] through 21)",null,null,null,null,null,null,"Intellectual disability (ages 5 [in K] through 21)",null,null,null,null,null,null,"Other health impairment (ages 5 [in K] through 21)",null,null,null,null,null,null,"Specific learning disability (ages 5 [in K] through 21)",null,null,null,null,null,null,"Speech or language impairment (ages 5 [in K] through 21)",null,null,null,null,null,null,"All children with disabilities (ages 5 [in K] through 21)",null,null,null,null,null,null,"Autism (ages 5 [in K] through 21)",null,null,null,null,null,null,"Emotional disturbance (ages 5 [in K] through 21)",null,null,null,null,null,null,"Intellectual disability (ages 5 [in K] through 21)",null,null,null,null,null,null,"Other health impairment (ages 5 [in K] through 21)",null,null,null,null,null,null,"Specific learning disability (ages 5 [in K] through 21)",null,null,null,null,null,null,"Speech or language impairment (ages 5 [in K] through 21)",null,null,null,null,null,null,"All children with disabilities (ages 5 [in K] through 21)",null,null,null,null,null,null,"Autism (ages 5 [in K] through 21)",null,null,null,null,null,null,"Emotional disturbance (ages 5 [in K] through 21)",null,null,null,null,null,null,"Intellectual disability (ages 5 [in K] through 21)",null,null,null,null,null,null,"Other health impairment (ages 5 [in K] through 21)",null,null,null,null,null,null,"Specific learning disability (ages 5 [in K] through 21)",null,null,null,null,null,null,"Speech or language impairment (ages 5 [in K] through 21)",null,null,null,null,null,null,"All children with disabilities (ages 5 [in K] through 21)",null,null,null,null,null,null,"Autism (ages 5 [in K] through 21)",null,null,null,null,null,null,"Emotional disturbance (ages 5 [in K] through 21)",null,null,null,null,null,null,"Intellectual disability (ages 5 [in K] through 21)",null,null,null,null,null,null,"Other health impairment (ages 5 [in K] through 21)",null,null,null,null,null,null,"Specific learning disability (ages 5 [in K] through 21)",null,null,null,null,null,null,"Speech or language impairment (ages 5 [in K] through 21)",null,null,null,null,null,null,"All children with disabilities (ages 5 [in K] through 21)",null,null,null,null,null,null,"Autism (ages 5 [in K] through 21)",null,null,null,null,null,null,"Emotional disturbance (ages 5 [in K] through 21)",null,null,null,null,null,null,"Intellectual disability (ages 5 [in K] through 21)",null,null,null,null,null,null,"Other health impairment (ages 5 [in K] through 21)",null,null,null,null,null,null,"Specific learning disability (ages 5 [in K] through 21)",null,null,null,null,null,null,"Speech or language impairment (ages 5 [in K] through 21)",null,null,null,null,null,null,"All children with disabilities (ages 5 [in K] through 21)",null,null,null,null,null,null,"Autism (ages 5 [in K] through 21)",null,null,null,null,null,null,"Emotional disturbance (ages 5 [in K] through 21)",null,null,null,null,null,null,"Intellectual disability (ages 5 [in K] through 21)",null,null,null,null,null,null,"Other health impairment (ages 5 [in K] through 21)",null,null,null,null,null,null,"Specific learning disability (ages 5 [in K] through 21)",null,null,null,null,null,null,"Speech or language impairment (ages 5 [in K] through 21)",null,null,null,null,null,null,"All children with disabilities (ages 5 [in K] through 21)",null,null,null,null,null,null,"Autism (ages 5 [in K] through 21)",null,null,null,null,null,null,"Emotional disturbance (ages 5 [in K] through 21)",null,null,null,null,null,null,"Intellectual disability (ages 5 [in K] through 21)",null,null,null,null,null,null,"Other health impairment (ages 5 [in K] through 21)",null,null,null,null,null,null,"Specific learning disability (ages 5 [in K] through 21)",null,null,null,null,null,null,"Speech or language impairment (ages 5 [in K] through 21)"]
[null,"Race/ethnicity",null,null,null,null,null,null,"Race/ethnicity",null,null,null,null,null,null,"Race/ethnicity",null,null,null,null,null,null,"Race/ethnicity",null,null,null,null,null,null,"Race/ethnicity",null,null,null,null,null,null,"Race/ethnicity",null,null,null,null,null,null,"Race/ethnicity",null,null,null,null,null,null,"Race/ethnicity",null,null,null,null,null,null,"Race/ethnicity",null,null,null,null,null,null,"Race/ethnicity",null,null,null,null,null,null,"Race/ethnicity",null,null,null,null,null,null,"Race/ethnicity",null,null,null,null,null,null,"Race/ethnicity",null,null,null,null,null,null,"Race/ethnicity",null,null,null,null,null,null,"Race/ethnicity",null,null,null,null,null,null,"Race/ethnicity",null,null,null,null,null,null,"Race/ethnicity",null,null,null,null,null,null,"Race/ethnicity",null,null,null,null,null,null,"Race/ethnicity",null,null,null,null,null,null,"Race/ethnicity",null,null,null,null,null,null,"Race/ethnicity",null,null,null,null,null,null,"Race/ethnicity",null,null,null,null,null,null,"Race/ethnicity",null,null,null,null,null,null,"Race/ethnicity",null,null,null,null,null,null,"Race/ethnicity",null,null,null,null,null,null,"Race/ethnicity",null,null,null,null,null,null,"Race/ethnicity",null,null,null,null,null,null,"Race/ethnicity",null,null,null,null,null,null,"Race/ethnicity",null,null,null,null,null,null,"Race/ethnicity",null,null,null,null,null,null,"Race/ethnicity",null,null,null,null,null,null,"Race/ethnicity",null,null,null,null,null,null,"Race/ethnicity",null,null,null,null,null,null,"Race/ethnicity",null,null,null,null,null,null,"Race/ethnicity",null,null,null,null,null,null,"Race/ethnicity",null,null,null,null,null,null,"Race/ethnicity",null,null,null,null,null,null,"Race/ethnicity",null,null,null,null,null,null,"Race/ethnicity",null,null,null,null,null,null,"Race/ethnicity",null,null,null,null,null,null,"Race/ethnicity",null,null,null,null,null,null,"Race/ethnicity",null,null,null,null,null,null,"Race/ethnicity",null,null,null,null,null,null,"Race/ethnicity",null,null,null,null,null,null,"Race/ethnicity",null,null,null,null,null,null,"Race/ethnicity",null,null,null,null,null,null,"Race/ethnicity",null,null,null,null,null,null,"Race/ethnicity",null,null,null,null,null,null,"Race/ethnicity",null,null,null,null,null,null,"Race/ethnicity",null,null,null,null,null,null,"Race/ethnicity",null,null,null,null,null,null,"Race/ethnicity",null,null,null,null,null,null,"Race/ethnicity",null,null,null,null,null,null,"Race/ethnicity",null,null,null,null,null,null,"Race/ethnicity",null,null,null,null,null,null,"Race/ethnicity",null,null,null,null,null,null,"Race/ethnicity",null,null,null,null,null,null,"Race/ethnicity",null,null,null,null,null,null,"Race/ethnicity",null,null,null,null,null,null,"Race/ethnicity",null,null,null,null,null,null,"Race/ethnicity",null,null,null,null,null,null,"Race/ethnicity",null,null,null,null,null,null,"Race/ethnicity"]
[null,"HI7","AM7","AS7","BL7","PI7","WH7","MU7","HI7","AM7","AS7","BL7","PI7","WH7","MU7","HI7","AM7","AS7","BL7","PI7","WH7","MU7","HI7","AM7","AS7","BL7","PI7","WH7","MU7","HI7","AM7","AS7","BL7","PI7","WH7","MU7","HI7","AM7","AS7","BL7","PI7","WH7","MU7","HI7","AM7","AS7","BL7","PI7","WH7","MU7","HI7","AM7","AS7","BL7","PI7","WH7","MU7","HI7","AM7","AS7","BL7","PI7","WH7","MU7","HI7","AM7","AS7","BL7","PI7","WH7","MU7","HI7","AM7","AS7","BL7","PI7","WH7","MU7","HI7","AM7","AS7","BL7","PI7","WH7","MU7","HI7","AM7","AS7","BL7","PI7","WH7","MU7","HI7","AM7","AS7","BL7","PI7","WH7","MU7","HI7","AM7","AS7","BL7","PI7","WH7","MU7","HI7","AM7","AS7","BL7","PI7","WH7","MU7","HI7","AM7","AS7","BL7","PI7","WH7","MU7","HI7","AM7","AS7","BL7","PI7","WH7","MU7","HI7","AM7","AS7","BL7","PI7","WH7","MU7","HI7","AM7","AS7","BL7","PI7","WH7","MU7","HI7","AM7","AS7","BL7","PI7","WH7","MU7","HI7","AM7","AS7","BL7","PI7","WH7","MU7","HI7","AM7","AS7","BL7","PI7","WH7","MU7","HI7","AM7","AS7","BL7","PI7","WH7","MU7","HI7","AM7","AS7","BL7","PI7","WH7","MU7","HI7","AM7","AS7","BL7","PI7","WH7","MU7","HI7","AM7","AS7","BL7","PI7","WH7","MU7","HI7","AM7","AS7","BL7","PI7","WH7","MU7","HI7","AM7","AS7","BL7","PI7","WH7","MU7","HI7","AM7","AS7","BL7","PI7","WH7","MU7","HI7","AM7","AS7","BL7","PI7","WH7","MU7","HI7","AM7","AS7","BL7","PI7","WH7","MU7","HI7","AM7","AS7","BL7","PI7","WH7","MU7","HI7","AM7","AS7","BL7","PI7","WH7","MU7","HI7","AM7","AS7","BL7","PI7","WH7","MU7","HI7","AM7","AS7","BL7","PI7","WH7","MU7","HI7","AM7","AS7","BL7","PI7","WH7","MU7","HI7","AM7","AS7","BL7","PI7","WH7","MU7","HI7","AM7","AS7","BL7","PI7","WH7","MU7","HI7","AM7","AS7","BL7","PI7","WH7","MU7","HI7","AM7","AS7","BL7","PI7","WH7","MU7","HI7","AM7","AS7","BL7","PI7","WH7","MU7","HI7","AM7","AS7","BL7","PI7","WH7","MU7","HI7","AM7","AS7","BL7","PI7","WH7","MU7","HI7","AM7","AS7","BL7","PI7","WH7","MU7","HI7","AM7","AS7","BL7","PI7","WH7","MU7","HI7","AM7","AS7","BL7","PI7","WH7","MU7","HI7","AM7","AS7","BL7","PI7","WH7","MU7","HI7","AM7","AS7","BL7","PI7","WH7","MU7","HI7","AM7","AS7","BL7","PI7","WH7","MU7","HI7","AM7","AS7","BL7","PI7","WH7","MU7","HI7","AM7","AS7","BL7","PI7","WH7","MU7","HI7","AM7","AS7","BL7","PI7","WH7","MU7","HI7","AM7","AS7","BL7","PI7","WH7","MU7","HI7","AM7","AS7","BL7","PI7","WH7","MU7","HI7","AM7","AS7","BL7","PI7","WH7","MU7","HI7","AM7","AS7","BL7","PI7","WH7","MU7","HI7","AM7","AS7","BL7","PI7","WH7","MU7","HI7","AM7","AS7","BL7","PI7","WH7","MU7","HI7","AM7","AS7","BL7","PI7","WH7","MU7","HI7","AM7","AS7","BL7","PI7","WH7","MU7","HI7","AM7","AS7","BL7","PI7","WH7","MU7","HI7","AM7","AS7","BL7","PI7","WH7","MU7"]
[]
[]
[]
[]
[]
[]
["LEA/school",{"$f":"IF(TRIM(input_year)<>\"\",input_year&\": \",\"\")&\"Risk\"","v":"Risk"},null,null,null,null,null,null,{"$f":"IF(TRIM(input_year)<>\"\",input_year&\": \",\"\")&\"Risk\"","v":"Risk"},null,null,null,null,null,null,{"$f":"IF(TRIM(input_year)<>\"\",input_year&\": \",\"\")&\"Risk\"","v":"Risk"},null,null,null,null,null,null,{"$f":"IF(TRIM(input_year)<>\"\",input_year&\": \",\"\")&\"Risk\"","v":"Risk"},null,null,null,null,null,null,{"$f":"IF(TRIM(input_year)<>\"\",input_year&\": \",\"\")&\"Risk\"","v":"Risk"},null,null,null,null,null,null,{"$f":"IF(TRIM(input_year)<>\"\",input_year&\": \",\"\")&\"Risk\"","v":"Risk"},null,null,null,null,null,null,{"$f":"IF(TRIM(input_year)<>\"\",input_year&\": \",\"\")&\"Risk\"","v":"Risk"},null,null,null,null,null,null,{"$f":"IF(TRIM(input_year)<>\"\",input_year&\": \",\"\")&\"Risk for comparison\"","v":"Risk for comparison"},null,null,null,null,null,null,{"$f":"IF(TRIM(input_year)<>\"\",input_year&\": \",\"\")&\"Risk for comparison\"","v":"Risk for comparison"},null,null,null,null,null,null,{"$f":"IF(TRIM(input_year)<>\"\",input_year&\": \",\"\")&\"Risk for comparison\"","v":"Risk for comparison"},null,null,null,null,null,null,{"$f":"IF(TRIM(input_year)<>\"\",input_year&\": \",\"\")&\"Risk for comparison\"","v":"Risk for comparison"},null,null,null,null,null,null,{"$f":"IF(TRIM(input_year)<>\"\",input_year&\": \",\"\")&\"Risk for comparison\"","v":"Risk for comparison"},null,null,null,null,null,null,{"$f":"IF(TRIM(input_year)<>\"\",input_year&\": \",\"\")&\"Risk for comparison\"","v":"Risk for comparison"},null,null,null,null,null,null,{"$f":"IF(TRIM(input_year)<>\"\",input_year&\": \",\"\")&\"Risk for comparison\"","v":"Risk for comparison"},null,null,null,null,null,null,{"$f":"IF(TRIM(input_year)<>\"\",input_year&\": \",\"\")&\"Alternate risk ratio\"","v":"Alternate risk ratio"},null,null,null,null,null,null,{"$f":"IF(TRIM(input_year)<>\"\",input_year&\": \",\"\")&\"Alternate risk ratio\"","v":"Alternate risk ratio"},null,null,null,null,null,null,{"$f":"IF(TRIM(input_year)<>\"\",input_year&\": \",\"\")&\"Alternate risk ratio\"","v":"Alternate risk ratio"},null,null,null,null,null,null,{"$f":"IF(TRIM(input_year)<>\"\",input_year&\": \",\"\")&\"Alternate risk ratio\"","v":"Alternate risk ratio"},null,null,null,null,null,null,{"$f":"IF(TRIM(input_year)<>\"\",input_year&\": \",\"\")&\"Alternate risk ratio\"","v":"Alternate risk ratio"},null,null,null,null,null,null,{"$f":"IF(TRIM(input_year)<>\"\",input_year&\": \",\"\")&\"Alternate risk ratio\"","v":"Alternate risk ratio"},null,null,null,null,null,null,{"$f":"IF(TRIM(input_year)<>\"\",input_year&\": \",\"\")&\"Alternate risk ratio\"","v":"Alternate risk ratio"},null,null,null,null,null,null,{"$f":"IF(TRIM(input_year2)<>\"\",input_year2&\": \",\"\")&\"Risk\"","v":"Risk"},null,null,null,null,null,null,{"$f":"IF(TRIM(input_year2)<>\"\",input_year2&\": \",\"\")&\"Risk\"","v":"Risk"},null,null,null,null,null,null,{"$f":"IF(TRIM(input_year2)<>\"\",input_year2&\": \",\"\")&\"Risk\"","v":"Risk"},null,null,null,null,null,null,{"$f":"IF(TRIM(input_year2)<>\"\",input_year2&\": \",\"\")&\"Risk\"","v":"Risk"},null,null,null,null,null,null,{"$f":"IF(TRIM(input_year2)<>\"\",input_year2&\": \",\"\")&\"Risk\"","v":"Risk"},null,null,null,null,null,null,{"$f":"IF(TRIM(input_year2)<>\"\",input_year2&\": \",\"\")&\"Risk\"","v":"Risk"},null,null,null,null,null,null,{"$f":"IF(TRIM(input_year2)<>\"\",input_year2&\": \",\"\")&\"Risk\"","v":"Risk"},null,null,null,null,null,null,{"$f":"IF(TRIM(input_year2)<>\"\",input_year2&\": \",\"\")&\"Risk for comparison\"","v":"Risk for comparison"},null,null,null,null,null,null,{"$f":"IF(TRIM(input_year2)<>\"\",input_year2&\": \",\"\")&\"Risk for comparison\"","v":"Risk for comparison"},null,null,null,null,null,null,{"$f":"IF(TRIM(input_year2)<>\"\",input_year2&\": \",\"\")&\"Risk for comparison\"","v":"Risk for comparison"},null,null,null,null,null,null,{"$f":"IF(TRIM(input_year2)<>\"\",input_year2&\": \",\"\")&\"Risk for comparison\"","v":"Risk for comparison"},null,null,null,null,null,null,{"$f":"IF(TRIM(input_year2)<>\"\",input_year2&\": \",\"\")&\"Risk for comparison\"","v":"Risk for comparison"},null,null,null,null,null,null,{"$f":"IF(TRIM(input_year2)<>\"\",input_year2&\": \",\"\")&\"Risk for comparison\"","v":"Risk for comparison"},null,null,null,null,null,null,{"$f":"IF(TRIM(input_year2)<>\"\",input_year2&\": \",\"\")&\"Risk for comparison\"","v":"Risk for comparison"},null,null,null,null,null,null,{"$f":"IF(TRIM(input_year2)<>\"\",input_year2&\": \",\"\")&\"Alternate risk ratio\"","v":"Alternate risk ratio"},null,null,null,null,null,null,{"$f":"IF(TRIM(input_year2)<>\"\",input_year2&\": \",\"\")&\"Alternate risk ratio\"","v":"Alternate risk ratio"},null,null,null,null,null,null,{"$f":"IF(TRIM(input_year2)<>\"\",input_year2&\": \",\"\")&\"Alternate risk ratio\"","v":"Alternate risk ratio"},null,null,null,null,null,null,{"$f":"IF(TRIM(input_year2)<>\"\",input_year2&\": \",\"\")&\"Alternate risk ratio\"","v":"Alternate risk ratio"},null,null,null,null,null,null,{"$f":"IF(TRIM(input_year2)<>\"\",input_year2&\": \",\"\")&\"Alternate risk ratio\"","v":"Alternate risk ratio"},null,null,null,null,null,null,{"$f":"IF(TRIM(input_year2)<>\"\",input_year2&\": \",\"\")&\"Alternate risk ratio\"","v":"Alternate risk ratio"},null,null,null,null,null,null,{"$f":"IF(TRIM(input_year2)<>\"\",input_year2&\": \",\"\")&\"Alternate risk ratio\"","v":"Alternate risk ratio"},null,null,null,null,null,null,{"$f":"IF(TRIM(input_year3)<>\"\",input_year3&\": \",\"\")&\"Risk\"","v":"Risk"},null,null,null,null,null,null,{"$f":"IF(TRIM(input_year3)<>\"\",input_year3&\": \",\"\")&\"Risk\"","v":"Risk"},null,null,null,null,null,null,{"$f":"IF(TRIM(input_year3)<>\"\",input_year3&\": \",\"\")&\"Risk\"","v":"Risk"},null,null,null,null,null,null,{"$f":"IF(TRIM(input_year3)<>\"\",input_year3&\": \",\"\")&\"Risk\"","v":"Risk"},null,null,null,null,null,null,{"$f":"IF(TRIM(input_year3)<>\"\",input_year3&\": \",\"\")&\"Risk\"","v":"Risk"},null,null,null,null,null,null,{"$f":"IF(TRIM(input_year3)<>\"\",input_year3&\": \",\"\")&\"Risk\"","v":"Risk"},null,null,null,null,null,null,{"$f":"IF(TRIM(input_year3)<>\"\",input_year3&\": \",\"\")&\"Risk\"","v":"Risk"},null,null,null,null,null,null,{"$f":"IF(TRIM(input_year3)<>\"\",input_year3&\": \",\"\")&\"Risk for comparison\"","v":"Risk for comparison"},null,null,null,null,null,null,{"$f":"IF(TRIM(input_year3)<>\"\",input_year3&\": \",\"\")&\"Risk for comparison\"","v":"Risk for comparison"},null,null,null,null,null,null,{"$f":"IF(TRIM(input_year3)<>\"\",input_year3&\": \",\"\")&\"Risk for comparison\"","v":"Risk for comparison"},null,null,null,null,null,null,{"$f":"IF(TRIM(input_year3)<>\"\",input_year3&\": \",\"\")&\"Risk for comparison\"","v":"Risk for comparison"},null,null,null,null,null,null,{"$f":"IF(TRIM(input_year3)<>\"\",input_year3&\": \",\"\")&\"Risk for comparison\"","v":"Risk for comparison"},null,null,null,null,null,null,{"$f":"IF(TRIM(input_year3)<>\"\",input_year3&\": \",\"\")&\"Risk for comparison\"","v":"Risk for comparison"},null,null,null,null,null,null,{"$f":"IF(TRIM(input_year3)<>\"\",input_year3&\": \",\"\")&\"Risk for comparison\"","v":"Risk for comparison"},null,null,null,null,null,null,{"$f":"IF(TRIM(input_year3)<>\"\",input_year3&\": \",\"\")&\"Alternate risk ratio\"","v":"Alternate risk ratio"},null,null,null,null,null,null,{"$f":"IF(TRIM(input_year3)<>\"\",input_year3&\": \",\"\")&\"Alternate risk ratio\"","v":"Alternate risk ratio"},null,null,null,null,null,null,{"$f":"IF(TRIM(input_year3)<>\"\",input_year3&\": \",\"\")&\"Alternate risk ratio\"","v":"Alternate risk ratio"},null,null,null,null,null,null,{"$f":"IF(TRIM(input_year3)<>\"\",input_year3&\": \",\"\")&\"Alternate risk ratio\"","v":"Alternate risk ratio"},null,null,null,null,null,null,{"$f":"IF(TRIM(input_year3)<>\"\",input_year3&\": \",\"\")&\"Alternate risk ratio\"","v":"Alternate risk ratio"},null,null,null,null,null,null,{"$f":"IF(TRIM(input_year3)<>\"\",input_year3&\": \",\"\")&\"Alternate risk ratio\"","v":"Alternate risk ratio"},null,null,null,null,null,null,{"$f":"IF(TRIM(input_year3)<>\"\",input_year3&\": \",\"\")&\"Alternate risk ratio\"","v":"Alternate risk ratio"}]
[null,"All children with disabilities (ages 5 [in K] through 21)",null,null,null,null,null,null,"Autism (ages 5 [in K] through 21)",null,null,null,null,null,null,"Emotional disturbance (ages 5 [in K] through 21)",null,null,null,null,null,null,"Intellectual disability (ages 5 [in K] through 21)",null,null,null,null,null,null,"Other health impairment (ages 5 [in K] through 21)",null,null,null,null,null,null,"Specific learning disability (ages 5 [in K] through 21)",null,null,null,null,null,null,"Speech or language impairment (ages 5 [in K] through 21)",null,null,null,null,null,null,"All children with disabilities (ages 5 [in K] through 21)",null,null,null,null,null,null,"Autism (ages 5 [in K] through 21)",null,null,null,null,null,null,"Emotional disturbance (ages 5 [in K] through 21)",null,null,null,null,null,null," Intellectual disability (ages 5 [in K] through 21)",null,null,null,null,null,null,"Other health impairment (ages 5 [in K] through 21)",null,null,null,null,null,null,"Specific learning disability (ages 5 [in K] through 21)",null,null,null,null,null,null,"Speech or language impairment (ages 5 [in K] through 21)",null,null,null,null,null,null,"All children with disabilities (ages 5 [in K] through 21)",null,null,null,null,null,null,"Autism (ages 5 [in K] through 21)",null,null,null,null,null,null,"Emotional disturbance (ages 5 [in K] through 21)",null,null,null,null,null,null,"Intellectual disability (ages 5 [in K] through 21)",null,null,null,null,null,null,"Other health impairment (ages 5 [in K] through 21)",null,null,null,null,null,null,"Specific learning disability (ages 5 [in K] through 21)",null,null,null,null,null,null,"Speech or language impairment (ages 5 [in K] through 21)",null,null,null,null,null,null,"All children with disabilities (ages 5 [in K] through 21)",null,null,null,null,null,null,"Autism (ages 5 [in K] through 21)",null,null,null,null,null,null,"Emotional disturbance (ages 5 [in K] through 21)",null,null,null,null,null,null,"Intellectual disability (ages 5 [in K] through 21)",null,null,null,null,null,null,"Other health impairment (ages 5 [in K] through 21)",null,null,null,null,null,null,"Specific learning disability (ages 5 [in K] through 21)",null,null,null,null,null,null,"Speech or language impairment (ages 5 [in K] through 21)",null,null,null,null,null,null,"All children with disabilities (ages 5 [in K] through 21)",null,null,null,null,null,null,"Autism (ages 5 [in K] through 21)",null,null,null,null,null,null,"Emotional disturbance (ages 5 [in K] through 21)",null,null,null,null,null,null,"Intellectual disability (ages 5 [in K] through 21)",null,null,null,null,null,null,"Other health impairment (ages 5 [in K] through 21)",null,null,null,null,null,null,"Specific learning disability (ages 5 [in K] through 21)",null,null,null,null,null,null,"Speech or language impairment (ages 5 [in K] through 21)",null,null,null,null,null,null,"All children with disabilities (ages 5 [in K] through 21)",null,null,null,null,null,null,"Autism (ages 5 [in K] through 21)",null,null,null,null,null,null,"Emotional disturbance (ages 5 [in K] through 21)",null,null,null,null,null,null,"Intellectual disability (ages 5 [in K] through 21)",null,null,null,null,null,null,"Other health impairment (ages 5 [in K] through 21)",null,null,null,null,null,null,"Specific learning disability (ages 5 [in K] through 21)",null,null,null,null,null,null,"Speech or language impairment (ages 5 [in K] through 21)",null,null,null,null,null,null,"All children with disabilities (ages 5 [in K] through 21)",null,null,null,null,null,null,"Autism (ages 5 [in K] through 21)",null,null,null,null,null,null,"Emotional disturbance (ages 5 [in K] through 21)",null,null,null,null,null,null,"Intellectual disability (ages 5 [in K] through 21)",null,null,null,null,null,null,"Other health impairment (ages 5 [in K] through 21)",null,null,null,null,null,null,"Specific learning disability (ages 5 [in K] through 21)",null,null,null,null,null,null,"Speech or language impairment (ages 5 [in K] through 21)",null,null,null,null,null,null,"All children with disabilities (ages 5 [in K] through 21)",null,null,null,null,null,null,"Autism (ages 5 [in K] through 21)",null,null,null,null,null,null,"Emotional disturbance (ages 5 [in K] through 21)",null,null,null,null,null,null,"Intellectual disability (ages 5 [in K] through 21)",null,null,null,null,null,null,"Other health impairment (ages 5 [in K] through 21)",null,null,null,null,null,null,"Specific learning disability (ages 5 [in K] through 21)",null,null,null,null,null,null,"Speech or language impairment (ages 5 [in K] through 21)",null,null,null,null,null,null,"All children with disabilities (ages 5 [in K] through 21)",null,null,null,null,null,null,"Autism (ages 5 [in K] through 21)",null,null,null,null,null,null,"Emotional disturbance (ages 5 [in K] through 21)",null,null,null,null,null,null,"Intellectual disability (ages 5 [in K] through 21)",null,null,null,null,null,null,"Other health impairment (ages 5 [in K] through 21)",null,null,null,null,null,null,"Specific learning disability (ages 5 [in K] through 21)",null,null,null,null,null,null,"Speech or language impairment (ages 5 [in K] through 21)"]
[null,"Race/ethnicity",null,null,null,null,null,null,"Race/ethnicity",null,null,null,null,null,null,"Race/ethnicity",null,null,null,null,null,null,"Race/ethnicity",null,null,null,null,null,null,"Race/ethnicity",null,null,null,null,null,null,"Race/ethnicity",null,null,null,null,null,null,"Race/ethnicity",null,null,null,null,null,null,"Race/ethnicity",null,null,null,null,null,null,"Race/ethnicity",null,null,null,null,null,null,"Race/ethnicity",null,null,null,null,null,null,"Race/ethnicity",null,null,null,null,null,null,"Race/ethnicity",null,null,null,null,null,null,"Race/ethnicity",null,null,null,null,null,null,"Race/ethnicity",null,null,null,null,null,null,"Race/ethnicity",null,null,null,null,null,null,"Race/ethnicity",null,null,null,null,null,null,"Race/ethnicity",null,null,null,null,null,null,"Race/ethnicity",null,null,null,null,null,null,"Race/ethnicity",null,null,null,null,null,null,"Race/ethnicity",null,null,null,null,null,null,"Race/ethnicity",null,null,null,null,null,null,"Race/ethnicity",null,null,null,null,null,null,"Race/ethnicity",null,null,null,null,null,null,"Race/ethnicity",null,null,null,null,null,null,"Race/ethnicity",null,null,null,null,null,null,"Race/ethnicity",null,null,null,null,null,null,"Race/ethnicity",null,null,null,null,null,null,"Race/ethnicity",null,null,null,null,null,null,"Race/ethnicity",null,null,null,null,null,null,"Race/ethnicity",null,null,null,null,null,null,"Race/ethnicity",null,null,null,null,null,null,"Race/ethnicity",null,null,null,null,null,null,"Race/ethnicity",null,null,null,null,null,null,"Race/ethnicity",null,null,null,null,null,null,"Race/ethnicity",null,null,null,null,null,null,"Race/ethnicity",null,null,null,null,null,null,"Race/ethnicity",null,null,null,null,null,null,"Race/ethnicity",null,null,null,null,null,null,"Race/ethnicity",null,null,null,null,null,null,"Race/ethnicity",null,null,null,null,null,null,"Race/ethnicity",null,null,null,null,null,null,"Race/ethnicity",null,null,null,null,null,null,"Race/ethnicity",null,null,null,null,null,null,"Race/ethnicity",null,null,null,null,null,null,"Race/ethnicity",null,null,null,null,null,null,"Race/ethnicity",null,null,null,null,null,null,"Race/ethnicity",null,null,null,null,null,null,"Race/ethnicity",null,null,null,null,null,null,"Race/ethnicity",null,null,null,null,null,null,"Race/ethnicity",null,null,null,null,null,null,"Race/ethnicity",null,null,null,null,null,null,"Race/ethnicity",null,null,null,null,null,null,"Race/ethnicity",null,null,null,null,null,null,"Race/ethnicity",null,null,null,null,null,null,"Race/ethnicity",null,null,null,null,null,null,"Race/ethnicity",null,null,null,null,null,null,"Race/ethnicity",null,null,null,null,null,null,"Race/ethnicity",null,null,null,null,null,null,"Race/ethnicity",null,null,null,null,null,null,"Race/ethnicity",null,null,null,null,null,null,"Race/ethnicity",null,null,null,null,null,null,"Race/ethnicity",null,null,null,null,null,null,"Race/ethnicity"]
[null,"HI7","AM7","AS7","BL7","PI7","WH7","MU7","HI7","AM7","AS7","BL7","PI7","WH7","MU7","HI7","AM7","AS7","BL7","PI7","WH7","MU7","HI7","AM7","AS7","BL7","PI7","WH7","MU7","HI7","AM7","AS7","BL7","PI7","WH7","MU7","HI7","AM7","AS7","BL7","PI7","WH7","MU7","HI7","AM7","AS7","BL7","PI7","WH7","MU7","HI7","AM7","AS7","BL7","PI7","WH7","MU7","HI7","AM7","AS7","BL7","PI7","WH7","MU7","HI7","AM7","AS7","BL7","PI7","WH7","MU7","HI7","AM7","AS7","BL7","PI7","WH7","MU7","HI7","AM7","AS7","BL7","PI7","WH7","MU7","HI7","AM7","AS7","BL7","PI7","WH7","MU7","HI7","AM7","AS7","BL7","PI7","WH7","MU7","HI7","AM7","AS7","BL7","PI7","WH7","MU7","HI7","AM7","AS7","BL7","PI7","WH7","MU7","HI7","AM7","AS7","BL7","PI7","WH7","MU7","HI7","AM7","AS7","BL7","PI7","WH7","MU7","HI7","AM7","AS7","BL7","PI7","WH7","MU7","HI7","AM7","AS7","BL7","PI7","WH7","MU7","HI7","AM7","AS7","BL7","PI7","WH7","MU7","HI7","AM7","AS7","BL7","PI7","WH7","MU7","HI7","AM7","AS7","BL7","PI7","WH7","MU7","HI7","AM7","AS7","BL7","PI7","WH7","MU7","HI7","AM7","AS7","BL7","PI7","WH7","MU7","HI7","AM7","AS7","BL7","PI7","WH7","MU7","HI7","AM7","AS7","BL7","PI7","WH7","MU7","HI7","AM7","AS7","BL7","PI7","WH7","MU7","HI7","AM7","AS7","BL7","PI7","WH7","MU7","HI7","AM7","AS7","BL7","PI7","WH7","MU7","HI7","AM7","AS7","BL7","PI7","WH7","MU7","HI7","AM7","AS7","BL7","PI7","WH7","MU7","HI7","AM7","AS7","BL7","PI7","WH7","MU7","HI7","AM7","AS7","BL7","PI7","WH7","MU7","HI7","AM7","AS7","BL7","PI7","WH7","MU7","HI7","AM7","AS7","BL7","PI7","WH7","MU7","HI7","AM7","AS7","BL7","PI7","WH7","MU7","HI7","AM7","AS7","BL7","PI7","WH7","MU7","HI7","AM7","AS7","BL7","PI7","WH7","MU7","HI7","AM7","AS7","BL7","PI7","WH7","MU7","HI7","AM7","AS7","BL7","PI7","WH7","MU7","HI7","AM7","AS7","BL7","PI7","WH7","MU7","HI7","AM7","AS7","BL7","PI7","WH7","MU7","HI7","AM7","AS7","BL7","PI7","WH7","MU7","HI7","AM7","AS7","BL7","PI7","WH7","MU7","HI7","AM7","AS7","BL7","PI7","WH7","MU7","HI7","AM7","AS7","BL7","PI7","WH7","MU7","HI7","AM7","AS7","BL7","PI7","WH7","MU7","HI7","AM7","AS7","BL7","PI7","WH7","MU7","HI7","AM7","AS7","BL7","PI7","WH7","MU7","HI7","AM7","AS7","BL7","PI7","WH7","MU7","HI7","AM7","AS7","BL7","PI7","WH7","MU7","HI7","AM7","AS7","BL7","PI7","WH7","MU7","HI7","AM7","AS7","BL7","PI7","WH7","MU7","HI7","AM7","AS7","BL7","PI7","WH7","MU7","HI7","AM7","AS7","BL7","PI7","WH7","MU7","HI7","AM7","AS7","BL7","PI7","WH7","MU7","HI7","AM7","AS7","BL7","PI7","WH7","MU7","HI7","AM7","AS7","BL7","PI7","WH7","MU7","HI7","AM7","AS7","BL7","PI7","WH7","MU7","HI7","AM7","AS7","BL7","PI7","WH7","MU7","HI7","AM7","AS7","BL7","PI7","WH7","MU7","HI7","AM7","AS7","BL7","PI7","WH7","MU7"]
[]
[]
[]
[]
[]
[]
["LEA/school",{"$f":"IF(TRIM(input_year)<>\"\",input_year&\": \",\"\")&\"Risk\"","v":"Risk"},null,null,null,null,null,null,{"$f":"IF(TRIM(input_year)<>\"\",input_year&\": \",\"\")&\"Risk\"","v":"Risk"},null,null,null,null,null,null,{"$f":"IF(TRIM(input_year)<>\"\",input_year&\": \",\"\")&\"Risk\"","v":"Risk"},null,null,null,null,null,null,{"$f":"IF(TRIM(input_year)<>\"\",input_year&\": \",\"\")&\"Risk\"","v":"Risk"},null,null,null,null,null,null,{"$f":"IF(TRIM(input_year)<>\"\",input_year&\": \",\"\")&\"Risk\"","v":"Risk"},null,null,null,null,null,null,{"$f":"IF(TRIM(input_year)<>\"\",input_year&\": \",\"\")&\"Risk\"","v":"Risk"},null,null,null,null,null,null,{"$f":"IF(TRIM(input_year)<>\"\",input_year&\": \",\"\")&\"Risk\"","v":"Risk"},null,null,null,null,null,null,{"$f":"IF(TRIM(input_year)<>\"\",input_year&\": \",\"\")&\"Risk for comparison\"","v":"Risk for comparison"},null,null,null,null,null,null,{"$f":"IF(TRIM(input_year)<>\"\",input_year&\": \",\"\")&\"Risk for comparison\"","v":"Risk for comparison"},null,null,null,null,null,null,{"$f":"IF(TRIM(input_year)<>\"\",input_year&\": \",\"\")&\"Risk for comparison\"","v":"Risk for comparison"},null,null,null,null,null,null,{"$f":"IF(TRIM(input_year)<>\"\",input_year&\": \",\"\")&\"Risk for comparison\"","v":"Risk for comparison"},null,null,null,null,null,null,{"$f":"IF(TRIM(input_year)<>\"\",input_year&\": \",\"\")&\"Risk for comparison\"","v":"Risk for comparison"},null,null,null,null,null,null,{"$f":"IF(TRIM(input_year)<>\"\",input_year&\": \",\"\")&\"Risk for comparison\"","v":"Risk for comparison"},null,null,null,null,null,null,{"$f":"IF(TRIM(input_year)<>\"\",input_year&\": \",\"\")&\"Risk for comparison\"","v":"Risk for comparison"},null,null,null,null,null,null,{"$f":"IF(TRIM(input_year)<>\"\",input_year&\": \",\"\")&\"Weighted risk ratio\"","v":"Weighted risk ratio"},null,null,null,null,null,null,{"$f":"IF(TRIM(input_year)<>\"\",input_year&\": \",\"\")&\"Weighted risk ratio\"","v":"Weighted risk ratio"},null,null,null,null,null,null,{"$f":"IF(TRIM(input_year)<>\"\",input_year&\": \",\"\")&\"Weighted risk ratio\"","v":"Weighted risk ratio"},null,null,null,null,null,null,{"$f":"IF(TRIM(input_year)<>\"\",input_year&\": \",\"\")&\"Weighted risk ratio\"","v":"Weighted risk ratio"},null,null,null,null,null,null,{"$f":"IF(TRIM(input_year)<>\"\",input_year&\": \",\"\")&\"Weighted risk ratio\"","v":"Weighted risk ratio"},null,null,null,null,null,null,{"$f":"IF(TRIM(input_year)<>\"\",input_year&\": \",\"\")&\"Weighted risk ratio\"","v":"Weighted risk ratio"},null,null,null,null,null,null,{"$f":"IF(TRIM(input_year)<>\"\",input_year&\": \",\"\")&\"Weighted risk ratio\"","v":"Weighted risk ratio"},null,null,null,null,null,null,{"$f":"IF(TRIM(input_year2)<>\"\",input_year2&\": \",\"\")&\"Risk\"","v":"Risk"},null,null,null,null,null,null,{"$f":"IF(TRIM(input_year2)<>\"\",input_year2&\": \",\"\")&\"Risk\"","v":"Risk"},null,null,null,null,null,null,{"$f":"IF(TRIM(input_year2)<>\"\",input_year2&\": \",\"\")&\"Risk\"","v":"Risk"},null,null,null,null,null,null,{"$f":"IF(TRIM(input_year2)<>\"\",input_year2&\": \",\"\")&\"Risk\"","v":"Risk"},null,null,null,null,null,null,{"$f":"IF(TRIM(input_year2)<>\"\",input_year2&\": \",\"\")&\"Risk\"","v":"Risk"},null,null,null,null,null,null,{"$f":"IF(TRIM(input_year2)<>\"\",input_year2&\": \",\"\")&\"Risk\"","v":"Risk"},null,null,null,null,null,null,{"$f":"IF(TRIM(input_year2)<>\"\",input_year2&\": \",\"\")&\"Risk\"","v":"Risk"},null,null,null,null,null,null,{"$f":"IF(TRIM(input_year2)<>\"\",input_year2&\": \",\"\")&\"Risk for comparison\"","v":"Risk for comparison"},null,null,null,null,null,null,{"$f":"IF(TRIM(input_year2)<>\"\",input_year2&\": \",\"\")&\"Risk for comparison\"","v":"Risk for comparison"},null,null,null,null,null,null,{"$f":"IF(TRIM(input_year2)<>\"\",input_year2&\": \",\"\")&\"Risk for comparison\"","v":"Risk for comparison"},null,null,null,null,null,null,{"$f":"IF(TRIM(input_year2)<>\"\",input_year2&\": \",\"\")&\"Risk for comparison\"","v":"Risk for comparison"},null,null,null,null,null,null,{"$f":"IF(TRIM(input_year2)<>\"\",input_year2&\": \",\"\")&\"Risk for comparison\"","v":"Risk for comparison"},null,null,null,null,null,null,{"$f":"IF(TRIM(input_year2)<>\"\",input_year2&\": \",\"\")&\"Risk for comparison\"","v":"Risk for comparison"},null,null,null,null,null,null,{"$f":"IF(TRIM(input_year2)<>\"\",input_year2&\": \",\"\")&\"Risk for comparison\"","v":"Risk for comparison"},null,null,null,null,null,null,{"$f":"IF(TRIM(input_year2)<>\"\",input_year2&\": \",\"\")&\"Weighted risk ratio\"","v":"Weighted risk ratio"},null,null,null,null,null,null,{"$f":"IF(TRIM(input_year2)<>\"\",input_year2&\": \",\"\")&\"Weighted risk ratio\"","v":"Weighted risk ratio"},null,null,null,null,null,null,{"$f":"IF(TRIM(input_year2)<>\"\",input_year2&\": \",\"\")&\"Weighted risk ratio\"","v":"Weighted risk ratio"},null,null,null,null,null,null,{"$f":"IF(TRIM(input_year2)<>\"\",input_year2&\": \",\"\")&\"Weighted risk ratio\"","v":"Weighted risk ratio"},null,null,null,null,null,null,{"$f":"IF(TRIM(input_year2)<>\"\",input_year2&\": \",\"\")&\"Weighted risk ratio\"","v":"Weighted risk ratio"},null,null,null,null,null,null,{"$f":"IF(TRIM(input_year2)<>\"\",input_year2&\": \",\"\")&\"Weighted risk ratio\"","v":"Weighted risk ratio"},null,null,null,null,null,null,{"$f":"IF(TRIM(input_year2)<>\"\",input_year2&\": \",\"\")&\"Weighted risk ratio\"","v":"Weighted risk ratio"},null,null,null,null,null,null,{"$f":"IF(TRIM(input_year3)<>\"\",input_year3&\": \",\"\")&\"Risk\"","v":"Risk"},null,null,null,null,null,null,{"$f":"IF(TRIM(input_year3)<>\"\",input_year3&\": \",\"\")&\"Risk\"","v":"Risk"},null,null,null,null,null,null,{"$f":"IF(TRIM(input_year3)<>\"\",input_year3&\": \",\"\")&\"Risk\"","v":"Risk"},null,null,null,null,null,null,{"$f":"IF(TRIM(input_year3)<>\"\",input_year3&\": \",\"\")&\"Risk\"","v":"Risk"},null,null,null,null,null,null,{"$f":"IF(TRIM(input_year3)<>\"\",input_year3&\": \",\"\")&\"Risk\"","v":"Risk"},null,null,null,null,null,null,{"$f":"IF(TRIM(input_year3)<>\"\",input_year3&\": \",\"\")&\"Risk\"","v":"Risk"},null,null,null,null,null,null,{"$f":"IF(TRIM(input_year3)<>\"\",input_year3&\": \",\"\")&\"Risk\"","v":"Risk"},null,null,null,null,null,null,{"$f":"IF(TRIM(input_year3)<>\"\",input_year3&\": \",\"\")&\"Risk for comparison\"","v":"Risk for comparison"},null,null,null,null,null,null,{"$f":"IF(TRIM(input_year3)<>\"\",input_year3&\": \",\"\")&\"Risk for comparison\"","v":"Risk for comparison"},null,null,null,null,null,null,{"$f":"IF(TRIM(input_year3)<>\"\",input_year3&\": \",\"\")&\"Risk for comparison\"","v":"Risk for comparison"},null,null,null,null,null,null,{"$f":"IF(TRIM(input_year3)<>\"\",input_year3&\": \",\"\")&\"Risk for comparison\"","v":"Risk for comparison"},null,null,null,null,null,null,{"$f":"IF(TRIM(input_year3)<>\"\",input_year3&\": \",\"\")&\"Risk for comparison\"","v":"Risk for comparison"},null,null,null,null,null,null,{"$f":"IF(TRIM(input_year3)<>\"\",input_year3&\": \",\"\")&\"Risk for comparison\"","v":"Risk for comparison"},null,null,null,null,null,null,{"$f":"IF(TRIM(input_year3)<>\"\",input_year3&\": \",\"\")&\"Risk for comparison\"","v":"Risk for comparison"},null,null,null,null,null,null,{"$f":"IF(TRIM(input_year3)<>\"\",input_year3&\": \",\"\")&\"Weighted risk ratio\"","v":"Weighted risk ratio"},null,null,null,null,null,null,{"$f":"IF(TRIM(input_year3)<>\"\",input_year3&\": \",\"\")&\"Weighted risk ratio\"","v":"Weighted risk ratio"},null,null,null,null,null,null,{"$f":"IF(TRIM(input_year3)<>\"\",input_year3&\": \",\"\")&\"Weighted risk ratio\"","v":"Weighted risk ratio"},null,null,null,null,null,null,{"$f":"IF(TRIM(input_year3)<>\"\",input_year3&\": \",\"\")&\"Weighted risk ratio\"","v":"Weighted risk ratio"},null,null,null,null,null,null,{"$f":"IF(TRIM(input_year3)<>\"\",input_year3&\": \",\"\")&\"Weighted risk ratio\"","v":"Weighted risk ratio"},null,null,null,null,null,null,{"$f":"IF(TRIM(input_year3)<>\"\",input_year3&\": \",\"\")&\"Weighted risk ratio\"","v":"Weighted risk ratio"},null,null,null,null,null,null,{"$f":"IF(TRIM(input_year3)<>\"\",input_year3&\": \",\"\")&\"Weighted risk ratio\"","v":"Weighted risk ratio"}]
[null,"All children with disabilities (ages 5 [in K] through 21)",null,null,null,null,null,null,"Autism (ages 5 [in K] through 21)",null,null,null,null,null,null,"Emotional disturbance (ages 5 [in K] through 21)",null,null,null,null,null,null,"Intellectual disability (ages 5 [in K] through 21)",null,null,null,null,null,null,"Other health impairment (ages 5 [in K] through 21)",null,null,null,null,null,null,"Specific learning disability (ages 5 [in K] through 21)",null,null,null,null,null,null,"Speech or language impairment (ages 5 [in K] through 21)",null,null,null,null,null,null,"All children with disabilities (ages 5 [in K] through 21)",null,null,null,null,null,null,"Autism (ages 5 [in K] through 21)",null,null,null,null,null,null,"Emotional disturbance (ages 5 [in K] through 21)",null,null,null,null,null,null," Intellectual disability (ages 5 [in K] through 21)",null,null,null,null,null,null,"Other health impairment (ages 5 [in K] through 21)",null,null,null,null,null,null,"Specific learning disability (ages 5 [in K] through 21)",null,null,null,null,null,null,"Speech or language impairment (ages 5 [in K] through 21)",null,null,null,null,null,null,"All children with disabilities (ages 5 [in K] through 21)",null,null,null,null,null,null,"Autism (ages 5 [in K] through 21)",null,null,null,null,null,null,"Emotional disturbance (ages 5 [in K] through 21)",null,null,null,null,null,null,"Intellectual disability (ages 5 [in K] through 21)",null,null,null,null,null,null,"Other health impairment (ages 5 [in K] through 21)",null,null,null,null,null,null,"Specific learning disability (ages 5 [in K] through 21)",null,null,null,null,null,null,"Speech or language impairment (ages 5 [in K] through 21)",null,null,null,null,null,null,"All children with disabilities (ages 5 [in K] through 21)",null,null,null,null,null,null,"Autism (ages 5 [in K] through 21)",null,null,null,null,null,null,"Emotional disturbance (ages 5 [in K] through 21)",null,null,null,null,null,null,"Intellectual disability (ages 5 [in K] through 21)",null,null,null,null,null,null,"Other health impairment (ages 5 [in K] through 21)",null,null,null,null,null,null,"Specific learning disability (ages 5 [in K] through 21)",null,null,null,null,null,null,"Speech or language impairment (ages 5 [in K] through 21)",null,null,null,null,null,null,"All children with disabilities (ages 5 [in K] through 21)",null,null,null,null,null,null,"Autism (ages 5 [in K] through 21)",null,null,null,null,null,null,"Emotional disturbance (ages 5 [in K] through 21)",null,null,null,null,null,null,"Intellectual disability (ages 5 [in K] through 21)",null,null,null,null,null,null,"Other health impairment (ages 5 [in K] through 21)",null,null,null,null,null,null,"Specific learning disability (ages 5 [in K] through 21)",null,null,null,null,null,null,"Speech or language impairment (ages 5 [in K] through 21)",null,null,null,null,null,null,"All children with disabilities (ages 5 [in K] through 21)",null,null,null,null,null,null,"Autism (ages 5 [in K] through 21)",null,null,null,null,null,null,"Emotional disturbance (ages 5 [in K] through 21)",null,null,null,null,null,null,"Intellectual disability (ages 5 [in K] through 21)",null,null,null,null,null,null,"Other health impairment (ages 5 [in K] through 21)",null,null,null,null,null,null,"Specific learning disability (ages 5 [in K] through 21)",null,null,null,null,null,null,"Speech or language impairment (ages 5 [in K] through 21)",null,null,null,null,null,null,"All children with disabilities (ages 5 [in K] through 21)",null,null,null,null,null,null,"Autism (ages 5 [in K] through 21)",null,null,null,null,null,null,"Emotional disturbance (ages 5 [in K] through 21)",null,null,null,null,null,null,"Intellectual disability (ages 5 [in K] through 21)",null,null,null,null,null,null,"Other health impairment (ages 5 [in K] through 21)",null,null,null,null,null,null,"Specific learning disability (ages 5 [in K] through 21)",null,null,null,null,null,null,"Speech or language impairment (ages 5 [in K] through 21)",null,null,null,null,null,null,"All children with disabilities (ages 5 [in K] through 21)",null,null,null,null,null,null,"Autism (ages 5 [in K] through 21)",null,null,null,null,null,null,"Emotional disturbance (ages 5 [in K] through 21)",null,null,null,null,null,null,"Intellectual disability (ages 5 [in K] through 21)",null,null,null,null,null,null,"Other health impairment (ages 5 [in K] through 21)",null,null,null,null,null,null,"Specific learning disability (ages 5 [in K] through 21)",null,null,null,null,null,null,"Speech or language impairment (ages 5 [in K] through 21)",null,null,null,null,null,null,"All children with disabilities (ages 5 [in K] through 21)",null,null,null,null,null,null,"Autism (ages 5 [in K] through 21)",null,null,null,null,null,null,"Emotional disturbance (ages 5 [in K] through 21)",null,null,null,null,null,null,"Intellectual disability (ages 5 [in K] through 21)",null,null,null,null,null,null,"Other health impairment (ages 5 [in K] through 21)",null,null,null,null,null,null,"Specific learning disability (ages 5 [in K] through 21)",null,null,null,null,null,null,"Speech or language impairment (ages 5 [in K] through 21)"]
[null,"Race/ethnicity",null,null,null,null,null,null,"Race/ethnicity",null,null,null,null,null,null,"Race/ethnicity",null,null,null,null,null,null,"Race/ethnicity",null,null,null,null,null,null,"Race/ethnicity",null,null,null,null,null,null,"Race/ethnicity",null,null,null,null,null,null,"Race/ethnicity",null,null,null,null,null,null,"Race/ethnicity",null,null,null,null,null,null,"Race/ethnicity",null,null,null,null,null,null,"Race/ethnicity",null,null,null,null,null,null,"Race/ethnicity",null,null,null,null,null,null,"Race/ethnicity",null,null,null,null,null,null,"Race/ethnicity",null,null,null,null,null,null,"Race/ethnicity",null,null,null,null,null,null,"Race/ethnicity",null,null,null,null,null,null,"Race/ethnicity",null,null,null,null,null,null,"Race/ethnicity",null,null,null,null,null,null,"Race/ethnicity",null,null,null,null,null,null,"Race/ethnicity",null,null,null,null,null,null,"Race/ethnicity",null,null,null,null,null,null,"Race/ethnicity",null,null,null,null,null,null,"Race/ethnicity",null,null,null,null,null,null,"Race/ethnicity",null,null,null,null,null,null,"Race/ethnicity",null,null,null,null,null,null,"Race/ethnicity",null,null,null,null,null,null,"Race/ethnicity",null,null,null,null,null,null,"Race/ethnicity",null,null,null,null,null,null,"Race/ethnicity",null,null,null,null,null,null,"Race/ethnicity",null,null,null,null,null,null,"Race/ethnicity",null,null,null,null,null,null,"Race/ethnicity",null,null,null,null,null,null,"Race/ethnicity",null,null,null,null,null,null,"Race/ethnicity",null,null,null,null,null,null,"Race/ethnicity",null,null,null,null,null,null,"Race/ethnicity",null,null,null,null,null,null,"Race/ethnicity",null,null,null,null,null,null,"Race/ethnicity",null,null,null,null,null,null,"Race/ethnicity",null,null,null,null,null,null,"Race/ethnicity",null,null,null,null,null,null,"Race/ethnicity",null,null,null,null,null,null,"Race/ethnicity",null,null,null,null,null,null,"Race/ethnicity",null,null,null,null,null,null,"Race/ethnicity",null,null,null,null,null,null,"Race/ethnicity",null,null,null,null,null,null,"Race/ethnicity",null,null,null,null,null,null,"Race/ethnicity",null,null,null,null,null,null,"Race/ethnicity",null,null,null,null,null,null,"Race/ethnicity",null,null,null,null,null,null,"Race/ethnicity",null,null,null,null,null,null,"Race/ethnicity",null,null,null,null,null,null,"Race/ethnicity",null,null,null,null,null,null,"Race/ethnicity",null,null,null,null,null,null,"Race/ethnicity",null,null,null,null,null,null,"Race/ethnicity",null,null,null,null,null,null,"Race/ethnicity",null,null,null,null,null,null,"Race/ethnicity",null,null,null,null,null,null,"Race/ethnicity",null,null,null,null,null,null,"Race/ethnicity",null,null,null,null,null,null,"Race/ethnicity",null,null,null,null,null,null,"Race/ethnicity",null,null,null,null,null,null,"Race/ethnicity",null,null,null,null,null,null,"Race/ethnicity",null,null,null,null,null,null,"Race/ethnicity"]
[null,"HI7","AM7","AS7","BL7","PI7","WH7","MU7","HI7","AM7","AS7","BL7","PI7","WH7","MU7","HI7","AM7","AS7","BL7","PI7","WH7","MU7","HI7","AM7","AS7","BL7","PI7","WH7","MU7","HI7","AM7","AS7","BL7","PI7","WH7","MU7","HI7","AM7","AS7","BL7","PI7","WH7","MU7","HI7","AM7","AS7","BL7","PI7","WH7","MU7","HI7","AM7","AS7","BL7","PI7","WH7","MU7","HI7","AM7","AS7","BL7","PI7","WH7","MU7","HI7","AM7","AS7","BL7","PI7","WH7","MU7","HI7","AM7","AS7","BL7","PI7","WH7","MU7","HI7","AM7","AS7","BL7","PI7","WH7","MU7","HI7","AM7","AS7","BL7","PI7","WH7","MU7","HI7","AM7","AS7","BL7","PI7","WH7","MU7","HI7","AM7","AS7","BL7","PI7","WH7","MU7","HI7","AM7","AS7","BL7","PI7","WH7","MU7","HI7","AM7","AS7","BL7","PI7","WH7","MU7","HI7","AM7","AS7","BL7","PI7","WH7","MU7","HI7","AM7","AS7","BL7","PI7","WH7","MU7","HI7","AM7","AS7","BL7","PI7","WH7","MU7","HI7","AM7","AS7","BL7","PI7","WH7","MU7","HI7","AM7","AS7","BL7","PI7","WH7","MU7","HI7","AM7","AS7","BL7","PI7","WH7","MU7","HI7","AM7","AS7","BL7","PI7","WH7","MU7","HI7","AM7","AS7","BL7","PI7","WH7","MU7","HI7","AM7","AS7","BL7","PI7","WH7","MU7","HI7","AM7","AS7","BL7","PI7","WH7","MU7","HI7","AM7","AS7","BL7","PI7","WH7","MU7","HI7","AM7","AS7","BL7","PI7","WH7","MU7","HI7","AM7","AS7","BL7","PI7","WH7","MU7","HI7","AM7","AS7","BL7","PI7","WH7","MU7","HI7","AM7","AS7","BL7","PI7","WH7","MU7","HI7","AM7","AS7","BL7","PI7","WH7","MU7","HI7","AM7","AS7","BL7","PI7","WH7","MU7","HI7","AM7","AS7","BL7","PI7","WH7","MU7","HI7","AM7","AS7","BL7","PI7","WH7","MU7","HI7","AM7","AS7","BL7","PI7","WH7","MU7","HI7","AM7","AS7","BL7","PI7","WH7","MU7","HI7","AM7","AS7","BL7","PI7","WH7","MU7","HI7","AM7","AS7","BL7","PI7","WH7","MU7","HI7","AM7","AS7","BL7","PI7","WH7","MU7","HI7","AM7","AS7","BL7","PI7","WH7","MU7","HI7","AM7","AS7","BL7","PI7","WH7","MU7","HI7","AM7","AS7","BL7","PI7","WH7","MU7","HI7","AM7","AS7","BL7","PI7","WH7","MU7","HI7","AM7","AS7","BL7","PI7","WH7","MU7","HI7","AM7","AS7","BL7","PI7","WH7","MU7","HI7","AM7","AS7","BL7","PI7","WH7","MU7","HI7","AM7","AS7","BL7","PI7","WH7","MU7","HI7","AM7","AS7","BL7","PI7","WH7","MU7","HI7","AM7","AS7","BL7","PI7","WH7","MU7","HI7","AM7","AS7","BL7","PI7","WH7","MU7","HI7","AM7","AS7","BL7","PI7","WH7","MU7","HI7","AM7","AS7","BL7","PI7","WH7","MU7","HI7","AM7","AS7","BL7","PI7","WH7","MU7","HI7","AM7","AS7","BL7","PI7","WH7","MU7","HI7","AM7","AS7","BL7","PI7","WH7","MU7","HI7","AM7","AS7","BL7","PI7","WH7","MU7","HI7","AM7","AS7","BL7","PI7","WH7","MU7","HI7","AM7","AS7","BL7","PI7","WH7","MU7","HI7","AM7","AS7","BL7","PI7","WH7","MU7","HI7","AM7","AS7","BL7","PI7","WH7","MU7","HI7","AM7","AS7","BL7","PI7","WH7","MU7"]
[]
[]
[]
[]
[]
[]
["LEA/school",{"$f":"\"Risk ratio\"","v":"Risk ratio"},null,null,null,null,null,null,{"$f":"\"Risk ratio\"","v":"Risk ratio"},null,null,null,null,null,null,{"$f":"\"Risk ratio\"","v":"Risk ratio"},null,null,null,null,null,null,{"$f":"\"Risk ratio\"","v":"Risk ratio"},null,null,null,null,null,null,{"$f":"\"Risk ratio\"","v":"Risk ratio"},null,null,null,null,null,null,{"$f":"\"Risk ratio\"","v":"Risk ratio"},null,null,null,null,null,null,{"$f":"\"Risk ratio\"","v":"Risk ratio"}]
[null,"All children with disabilities (ages 5 [in K] through 21)",null,null,null,null,null,null,"Autism (ages 5 [in K] through 21)",null,null,null,null,null,null,"Emotional disturbance (ages 5 [in K] through 21)",null,null,null,null,null,null,"Intellectual disability (ages 5 [in K] through 21)",null,null,null,null,null,null,"Other health impairment (ages 5 [in K] through 21)",null,null,null,null,null,null,"Specific learning disability (ages 5 [in K] through 21)",null,null,null,null,null,null,"Speech or language impairment (ages 5 [in K] through 21)"]
[null,"Race/ethnicity",null,null,null,null,null,null,"Race/ethnicity",null,null,null,null,null,null,"Race/ethnicity",null,null,null,null,null,null,"Race/ethnicity",null,null,null,null,null,null,"Race/ethnicity",null,null,null,null,null,null,"Race/ethnicity",null,null,null,null,null,null,"Race/ethnicity"]
[null,"HI7","AM7","AS7","BL7","PI7","WH7","MU7","HI7","AM7","AS7","BL7","PI7","WH7","MU7","HI7","AM7","AS7","BL7","PI7","WH7","MU7","HI7","AM7","AS7","BL7","PI7","WH7","MU7","HI7","AM7","AS7","BL7","PI7","WH7","MU7","HI7","AM7","AS7","BL7","PI7","WH7","MU7","HI7","AM7","AS7","BL7","PI7","WH7","MU7"]
[]
[]
[]
[]
[]
[]
["LEA/school",{"$f":"\"Risk difference\"","v":"Risk difference"},null,null,null,null,null,null,{"$f":"\"Risk difference\"","v":"Risk difference"},null,null,null,null,null,null,{"$f":"\"Risk difference\"","v":"Risk difference"},null,null,null,null,null,null,{"$f":"\"Risk difference\"","v":"Risk difference"},null,null,null,null,null,null,{"$f":"\"Risk difference\"","v":"Risk difference"},null,null,null,null,null,null,{"$f":"\"Risk difference\"","v":"Risk difference"},null,null,null,null,null,null,{"$f":"\"Risk difference\"","v":"Risk difference"}]
[null,"All children with disabilities (ages 5 [in K] through 21)",null,null,null,null,null,null,"Autism (ages 5 [in K] through 21)",null,null,null,null,null,null,"Emotional disturbance (ages 5 [in K] through 21)",null,null,null,null,null,null,"Intellectual disability (ages 5 [in K] through 21)",null,null,null,null,null,null,"Other health impairment (ages 5 [in K] through 21)",null,null,null,null,null,null,"Specific learning disability (ages 5 [in K] through 21)",null,null,null,null,null,null,"Speech or language impairment (ages 5 [in K] through 21)"]
[null,"Race/ethnicity",null,null,null,null,null,null,"Race/ethnicity",null,null,null,null,null,null,"Race/ethnicity",null,null,null,null,null,null,"Race/ethnicity",null,null,null,null,null,null,"Race/ethnicity",null,null,null,null,null,null,"Race/ethnicity",null,null,null,null,null,null,"Race/ethnicity"]
[null,"HI7","AM7","AS7","BL7","PI7","WH7","MU7","HI7","AM7","AS7","BL7","PI7","WH7","MU7","HI7","AM7","AS7","BL7","PI7","WH7","MU7","HI7","AM7","AS7","BL7","PI7","WH7","MU7","HI7","AM7","AS7","BL7","PI7","WH7","MU7","HI7","AM7","AS7","BL7","PI7","WH7","MU7","HI7","AM7","AS7","BL7","PI7","WH7","MU7"]
[]
[]
[]
[]
[]
[]
["LEA/school",{"$f":"\"Alternate risk ratio\"","v":"Alternate risk ratio"},null,null,null,null,null,null,{"$f":"\"Alternate risk ratio\"","v":"Alternate risk ratio"},null,null,null,null,null,null,{"$f":"\"Alternate risk ratio\"","v":"Alternate risk ratio"},null,null,null,null,null,null,{"$f":"\"Alternate risk ratio\"","v":"Alternate risk ratio"},null,null,null,null,null,null,{"$f":"\"Alternate risk ratio\"","v":"Alternate risk ratio"},null,null,null,null,null,null,{"$f":"\"Alternate risk ratio\"","v":"Alternate risk ratio"},null,null,null,null,null,null,{"$f":"\"Alternate risk ratio\"","v":"Alternate risk ratio"}]
[null,"All children with disabilities (ages 5 [in K] through 21)",null,null,null,null,null,null,"Autism (ages 5 [in K] through 21)",null,null,null,null,null,null,"Emotional disturbance (ages 5 [in K] through 21)",null,null,null,null,null,null,"Intellectual disability (ages 5 [in K] through 21)",null,null,null,null,null,null,"Other health impairment (ages 5 [in K] through 21)",null,null,null,null,null,null,"Specific learning disability (ages 5 [in K] through 21)",null,null,null,null,null,null,"Speech or language impairment (ages 5 [in K] through 21)"]
[null,"Race/ethnicity",null,null,null,null,null,null,"Race/ethnicity",null,null,null,null,null,null,"Race/ethnicity",null,null,null,null,null,null,"Race/ethnicity",null,null,null,null,null,null,"Race/ethnicity",null,null,null,null,null,null,"Race/ethnicity",null,null,null,null,null,null,"Race/ethnicity"]
[null,"HI7","AM7","AS7","BL7","PI7","WH7","MU7","HI7","AM7","AS7","BL7","PI7","WH7","MU7","HI7","AM7","AS7","BL7","PI7","WH7","MU7","HI7","AM7","AS7","BL7","PI7","WH7","MU7","HI7","AM7","AS7","BL7","PI7","WH7","MU7","HI7","AM7","AS7","BL7","PI7","WH7","MU7","HI7","AM7","AS7","BL7","PI7","WH7","MU7"]
[]
[]
[]
[]
[]
[]
["LEA/school",{"$f":"\"Weighted risk ratio\"","v":"Weighted risk ratio"},null,null,null,null,null,null,{"$f":"\"Weighted risk ratio\"","v":"Weighted risk ratio"},null,null,null,null,null,null,{"$f":"\"Weighted risk ratio\"","v":"Weighted risk ratio"},null,null,null,null,null,null,{"$f":"\"Weighted risk ratio\"","v":"Weighted risk ratio"},null,null,null,null,null,null,{"$f":"\"Weighted risk ratio\"","v":"Weighted risk ratio"},null,null,null,null,null,null,{"$f":"\"Weighted risk ratio\"","v":"Weighted risk ratio"},null,null,null,null,null,null,{"$f":"\"Weighted risk ratio\"","v":"Weighted risk ratio"}]
[null,"All children with disabilities (ages 5 [in K] through 21)",null,null,null,null,null,null,"Autism (ages 5 [in K] through 21)",null,null,null,null,null,null,"Emotional disturbance (ages 5 [in K] through 21)",null,null,null,null,null,null,"Intellectual disability (ages 5 [in K] through 21)",null,null,null,null,null,null,"Other health impairment (ages 5 [in K] through 21)",null,null,null,null,null,null,"Specific learning disability (ages 5 [in K] through 21)",null,null,null,null,null,null,"Speech or language impairment (ages 5 [in K] through 21)"]
[null,"Race/ethnicity",null,null,null,null,null,null,"Race/ethnicity",null,null,null,null,null,null,"Race/ethnicity",null,null,null,null,null,null,"Race/ethnicity",null,null,null,null,null,null,"Race/ethnicity",null,null,null,null,null,null,"Race/ethnicity",null,null,null,null,null,null,"Race/ethnicity"]
[null,"HI7","AM7","AS7","BL7","PI7","WH7","MU7","HI7","AM7","AS7","BL7","PI7","WH7","MU7","HI7","AM7","AS7","BL7","PI7","WH7","MU7","HI7","AM7","AS7","BL7","PI7","WH7","MU7","HI7","AM7","AS7","BL7","PI7","WH7","MU7","HI7","AM7","AS7","BL7","PI7","WH7","MU7","HI7","AM7","AS7","BL7","PI7","WH7","MU7"]
[]
[]
[]
[]
[]
["LEA/school",{"$f":"\"Difference in composition\"","v":"Difference in composition"},null,null,null,null,null,null,{"$f":"\"Difference in composition\"","v":"Difference in composition"},null,null,null,null,null,null,{"$f":"\"Difference in composition\"","v":"Difference in composition"},null,null,null,null,null,null,{"$f":"\"Difference in composition\"","v":"Difference in composition"},null,null,null,null,null,null,{"$f":"\"Difference in composition\"","v":"Difference in composition"},null,null,null,null,null,null,{"$f":"\"Difference in composition\"","v":"Difference in composition"},null,null,null,null,null,null,{"$f":"\"Difference in composition\"","v":"Difference in composition"},null,null,null,null,null,null,{"$f":"\"Relative difference in composition\"","v":"Relative difference in composition"},null,null,null,null,null,null,{"$f":"\"Relative difference in composition\"","v":"Relative difference in composition"},null,null,null,null,null,null,{"$f":"\"Relative difference in composition\"","v":"Relative difference in composition"},null,null,null,null,null,null,{"$f":"\"Relative difference in composition\"","v":"Relative difference in composition"},null,null,null,null,null,null,{"$f":"\"Relative difference in composition\"","v":"Relative difference in composition"},null,null,null,null,null,null,{"$f":"\"Relative difference in composition\"","v":"Relative difference in composition"},null,null,null,null,null,null,{"$f":"\"Relative difference in composition\"","v":"Relative difference in composition"}]
[null,"All children with disabilities (ages 5 [in K] through 21)",null,null,null,null,null,null,"Autism (ages 5 [in K] through 21)",null,null,null,null,null,null,"Emotional disturbance (ages 5 [in K] through 21)",null,null,null,null,null,null,"Intellectual disability (ages 5 [in K] through 21)",null,null,null,null,null,null,"Other health impairment (ages 5 [in K] through 21)",null,null,null,null,null,null,"Specific learning disability (ages 5 [in K] through 21)",null,null,null,null,null,null,"Speech or language impairment (ages 5 [in K] through 21)",null,null,null,null,null,null,"All children with disabilities (ages 5 [in K] through 21)",null,null,null,null,null,null,"Autism (ages 5 [in K] through 21)",null,null,null,null,null,null,"Emotional disturbance (ages 5 [in K] through 21)",null,null,null,null,null,null,"Intellectual disability (ages 5 [in K] through 21)",null,null,null,null,null,null,"Other health impairment (ages 5 [in K] through 21)",null,null,null,null,null,null,"Specific learning disability (ages 5 [in K] through 21)",null,null,null,null,null,null,"Speech or language impairment (ages 5 [in K] through 21)"]
[null,"Race/ethnicity",null,null,null,null,null,null,"Race/ethnicity",null,null,null,null,null,null,"Race/ethnicity",null,null,null,null,null,null,"Race/ethnicity",null,null,null,null,null,null,"Race/ethnicity",null,null,null,null,null,null,"Race/ethnicity",null,null,null,null,null,null,"Race/ethnicity",null,null,null,null,null,null,"Race/ethnicity",null,null,null,null,null,null,"Race/ethnicity",null,null,null,null,null,null,"Race/ethnicity",null,null,null,null,null,null,"Race/ethnicity",null,null,null,null,null,null,"Race/ethnicity",null,null,null,null,null,null,"Race/ethnicity",null,null,null,null,null,null,"Race/ethnicity"]
["LEA/School","HI7","AM7","AS7","BL7","PI7","WH7","MU7","HI7","AM7","AS7","BL7","PI7","WH7","MU7","HI7","AM7","AS7","BL7","PI7","WH7","MU7","HI7","AM7","AS7","BL7","PI7","WH7","MU7","HI7","AM7","AS7","BL7","PI7","WH7","MU7","HI7","AM7","AS7","BL7","PI7","WH7","MU7","HI7","AM7","AS7","BL7","PI7","WH7","MU7","HI7","AM7","AS7","BL7","PI7","WH7","MU7","HI7","AM7","AS7","BL7","PI7","WH7","MU7","HI7","AM7","AS7","BL7","PI7","WH7","MU7","HI7","AM7","AS7","BL7","PI7","WH7","MU7","HI7","AM7","AS7","BL7","PI7","WH7","MU7","HI7","AM7","AS7","BL7","PI7","WH7","MU7","HI7","AM7","AS7","BL7","PI7","WH7","MU7"]